Workbook

Sheet Main
B10: 2021-02-10
B12: Sheet No. | C12: Template Name | D12: Summary
B13: 1 | C13: Future Intra | D13: For Intraday trading in F&O segment
B14: 2 | C14: Cash Intra | D14: For Intraday trading in cash market segment
B15: 3 | C15: Mid-cap Intra | D15: For Intraday trading in Mid-cap stocks
B16: 4 | C16: Bulk Deals | D16: Reveals Bulk Deals carried on NSE & BSE
B17: 5 | C17: Call Tracker
K27: `

Sheet Future Intra
M5: Back to Main Page
A6: FOR INTRA DAY TRADING | L6: =Main!B10 -> 2021-02-10
A9: Sr.no | B9: Sector | C9: Scrip | D9: Expiry Date | E9: CLOSE RATE | F9: Pivot Point | G9: Supports | J9: Resistances
B10: Sector | E10: Point | F10: Point | G10: S1 | H10: S2 | I10: S3 | J10: R1 | K10: R2 | L10: R3 | M10: HIGH | N10: LOW | O10: OI | P10: % Change in OI
A11: 1 | B11: Index | C11: BANKNIFTY | D11: 2021-02-25 | E11: 36045.95 | F11: 36088.32 | G11: 35596.63 | H11: 35147.32 | I11: 34655.63 | J11: 36537.63 | K11: 37029.32 | L11: 37478.63 | M11: 36580 | N11: 35639 | O11: 1769675 | P11: 0.35%
A12: 2 | B12: Index | C12: NIFTY | D12: 2021-02-25 | E12: 15105.75 | F12: 15144.72 | G12: 15023.43 | H12: 14941.12 | I12: 14819.83 | J12: 15227.03 | K12: 15348.32 | L12: 15430.63 | M12: 15266 | N12: 15062.4 | O12: 12229650 | P12: -0.17%
A13: 3 | B13: Index | C13: FINNIFTY | D13: 2021-02-25 | E13: 16904.35 | F13: 16923.75 | G13: 16750.60 | H13: 16596.85 | I13: 16423.70 | J13: 17077.50 | K13: 17250.65 | L13: 17404.40 | M13: 17096.9 | N13: 16770 | O13: 31080 | P13: 17.73%
A14: 4 | B14: Others | C14: AARTIIND | D14: 2021-02-25 | E14: 1236.10 | F14: 1190.62 | G14: 1129.53 | H14: 1022.97 | I14: 961.88 | J14: 1297.18 | K14: 1358.27 | L14: 1464.83 | M14: 1251.7 | N14: 1084.05 | O14: 614125 | P14: 3.88%
A15: 5 | B15: Cement | C15: ACC | D15: 2021-02-25 | E15: 1763.20 | F15: 1768.53 | G15: 1751.27 | H15: 1739.33 | I15: 1722.07 | J15: 1780.47 | K15: 1797.73 | L15: 1809.67 | M15: 1785.8 | N15: 1756.6 | O15: 3345500 | P15: 0.97%
A16: 6 | B16: Others | C16: ADANIENT | D16: 2021-02-25 | E16: 631.10 | F16: 632.05 | G16: 620.70 | H16: 610.30 | I16: 598.95 | J16: 642.45 | K16: 653.80 | L16: 664.20 | M16: 643.4 | N16: 621.65 | O16: 17050000 | P16: -2.01%
A17: 7 | B17: Others | C17: ADANIPORTS | D17: 2021-02-25 | E17: 585.25 | F17: 584.77 | G17: 576.58 | H17: 567.92 | I17: 559.73 | J17: 593.43 | K17: 601.62 | L17: 610.28 | M17: 592.95 | N17: 576.1 | O17: 44810000 | P17: 5.15%
A18: 8 | B18: Automobile | C18: AMARAJABAT | D18: 2021-02-25 | E18: 965.95 | F18: 973.75 | G18: 954.20 | H18: 942.45 | I18: 922.90 | J18: 985.50 | K18: 1005.05 | L18: 1016.80 | M18: 993.3 | N18: 962 | O18: 2155000 | P18: 2.86%
A19: 9 | B19: Cement | C19: AMBUJACEM | D19: 2021-02-25 | E19: 271.30 | F19: 273.80 | G19: 268.00 | H19: 264.70 | I19: 258.90 | J19: 277.10 | K19: 282.90 | L19: 286.20 | M19: 279.6 | N19: 270.5 | O19: 20382000 | P19: -3.33%
A20: 10 | B20: Others | C20: APOLLOHOSP | D20: 2021-02-25 | E20: 2791.20 | F20: 2793.38 | G20: 2749.77 | H20: 2708.33 | I20: 2664.72 | J20: 2834.82 | K20: 2878.43 | L20: 2919.87 | M20: 2837 | N20: 2751.95 | O20: 1361500 | P20: -0.87%
A21: 11 | B21: Automobile | C21: APOLLOTYRE | D21: 2021-02-25 | E21: 244.60 | F21: 246.17 | G21: 240.78 | H21: 236.97 | I21: 231.58 | J21: 249.98 | K21: 255.37 | L21: 259.18 | M21: 251.55 | N21: 242.35 | O21: 16445000 | P21: -1.35%
A22: 12 | B22: Automobile | C22: ASHOKLEY | D22: 2021-02-25 | E22: 135.10 | F22: 135.68 | G22: 133.57 | H22: 132.03 | I22: 129.92 | J22: 137.22 | K22: 139.33 | L22: 140.87 | M22: 137.8 | N22: 134.15 | O22: 39339000 | P22: -0.61%
A23: 13 | B23: FMCG | C23: ASIANPAINT | D23: 2021-02-25 | E23: 2510.95 | F23: 2493.47 | G23: 2449.03 | H23: 2387.12 | I23: 2342.68 | J23: 2555.38 | K23: 2599.82 | L23: 2661.73 | M23: 2537.9 | N23: 2431.55 | O23: 7252200 | P23: -6.85%
A24: 14 | B24: Pharma | C24: AUROPHARMA | D24: 2021-02-25 | E24: 958.35 | F24: 961.27 | G24: 948.18 | H24: 938.02 | I24: 924.93 | J24: 971.43 | K24: 984.52 | L24: 994.68 | M24: 974.35 | N24: 951.1 | O24: 9737000 | P24: -4.46%
A25: 15 | B25: Banking | C25: AXISBANK | D25: 2021-02-25 | E25: 744.35 | F25: 742.18 | G25: 730.52 | H25: 716.68 | I25: 705.02 | J25: 756.02 | K25: 767.68 | L25: 781.52 | M25: 753.85 | N25: 728.35 | O25: 47713200 | P25: 1.05%
A26: 16 | B26: Automobile | C26: BAJAJ-AUTO | D26: 2021-02-25 | E26: 4175.85 | F26: 4200.13 | G26: 4140.72 | H26: 4105.58 | I26: 4046.17 | J26: 4235.27 | K26: 4294.68 | L26: 4329.82 | M26: 4259.55 | N26: 4165 | O26: 1740750 | P26: 1.95%
A27: 17 | B27: Finance | C27: BAJAJFINSV | D27: 2021-02-25 | E27: 9950.60 | F27: 9998.37 | G27: 9858.73 | H27: 9766.87 | I27: 9627.23 | J27: 10090.23 | K27: 10229.87 | L27: 10321.73 | M27: 10138 | N27: 9906.5 | O27: 721875 | P27: -1.32%
A28: 18 | B28: Finance | C28: BAJFINANCE | D28: 2021-02-25 | E28: 5423.10 | F28: 5460.85 | G28: 5368.85 | H28: 5314.60 | I28: 5222.60 | J28: 5515.10 | K28: 5607.10 | L28: 5661.35 | M28: 5552.85 | N28: 5406.6 | O28: 3982500 | P28: -0.93%
A29: 19 | B29: Automobile | C29: BALKRISIND | D29: 2021-02-25 | E29: 1654.70 | F29: 1719.67 | G29: 1579.08 | H29: 1503.47 | I29: 1362.88 | J29: 1795.28 | K29: 1935.87 | L29: 2011.48 | M29: 1860.25 | N29: 1644.05 | O29: 2621600 | P29: 79.81%
A30: 20 | B30: Banking | C30: BANDHANBNK | D30: 2021-02-25 | E30: 328.65 | F30: 328.27 | G30: 323.83 | H30: 319.02 | I30: 314.58 | J30: 333.08 | K30: 337.52 | L30: 342.33 | M30: 332.7 | N30: 323.45 | O30: 27824400 | P30: -0.84%
A31: 21 | B31: Banking | C31: BANKBARODA | D31: 2021-02-25 | E31: 79.65 | F31: 80.22 | G31: 77.63 | H31: 75.62 | I31: 73.03 | J31: 82.23 | K31: 84.82 | L31: 86.83 | M31: 82.8 | N31: 78.2 | O31: 79150500 | P31: 9.86%
A32: 22 | B32: FMCG | C32: BATAINDIA | D32: 2021-02-25 | E32: 1582.15 | F32: 1588.32 | G32: 1571.63 | H32: 1561.12 | I32: 1544.43 | J32: 1598.83 | K32: 1615.52 | L32: 1626.03 | M32: 1605 | N32: 1577.8 | O32: 1565300 | P32: 3.53%
A33: 23 | B33: Capital_Goods | C33: BEL | D33: 2021-02-25 | E33: 138.15 | F33: 139.18 | G33: 136.47 | H33: 134.78 | I33: 132.07 | J33: 140.87 | K33: 143.58 | L33: 145.27 | M33: 141.9 | N33: 137.5 | O33: 31350000 | P33: -0.43%
A34: 24 | B34: FMCG | C34: BERGEPAINT | D34: 2021-02-25 | E34: 763.45 | F34: 762.53 | G34: 754.07 | H34: 744.68 | I34: 736.22 | J34: 771.92 | K34: 780.38 | L34: 789.77 | M34: 771 | N34: 753.15 | O34: 3152600 | P34: 0.39%
A35: 25 | B35: Automobile | C35: BHARATFORG | D35: 2021-02-25 | E35: 646.50 | F35: 648.08 | G35: 639.17 | H35: 631.83 | I35: 622.92 | J35: 655.42 | K35: 664.33 | L35: 671.67 | M35: 657 | N35: 640.75 | O35: 5878500 | P35: -1.58%
A36: 26 | B36: Telecom | C36: BHARTIARTL | D36: 2021-02-25 | E36: 600.85 | F36: 601.08 | G36: 592.27 | H36: 583.68 | I36: 574.87 | J36: 609.67 | K36: 618.48 | L36: 627.07 | M36: 609.9 | N36: 592.5 | O36: 107939214 | P36: -1.24%
A37: 27 | B37: Capital_Goods | C37: BHEL | D37: 2021-02-25 | E37: 38.75 | F37: 38.85 | G37: 38.35 | H37: 37.95 | I37: 37.45 | J37: 39.25 | K37: 39.75 | L37: 40.15 | M37: 39.35 | N37: 38.45 | O37: 127848000 | P37: -6.12%
A38: 28 | B38: Pharma | C38: BIOCON | D38: 2021-02-25 | E38: 404.00 | F38: 405.27 | G38: 401.08 | H38: 398.17 | I38: 393.98 | J38: 408.18 | K38: 412.37 | L38: 415.28 | M38: 409.45 | N38: 402.35 | O38: 16916500 | P38: -1.00%
A39: 29 | B39: Automobile | C39: BOSCHLTD | D39: 2021-02-25 | E39: 16377.50 | F39: 16478.67 | G39: 16123.93 | H39: 15870.37 | I39: 15515.63 | J39: 16732.23 | K39: 17086.97 | L39: 17340.53 | M39: 16833.4 | N39: 16225.1 | O39: 90700 | P39: 4.92%
A40: 30 | B40: Oil_Gas | C40: BPCL | D40: 2021-02-25 | E40: 405.50 | F40: 411.83 | G40: 396.67 | H40: 387.83 | I40: 372.67 | J40: 420.67 | K40: 435.83 | L40: 444.67 | M40: 427 | N40: 403 | O40: 24139800 | P40: 5.37%
A41: 31 | B41: FMCG | C41: BRITANNIA | D41: 2021-02-25 | E41: 3468.60 | F41: 3479.50 | G41: 3449.10 | H41: 3429.60 | I41: 3399.20 | J41: 3499.00 | K41: 3529.40 | L41: 3548.90 | M41: 3509.9 | N41: 3460 | O41: 2761000 | P41: 2.38%
A42: 32 | B42: Pharma | C42: CADILAHC | D42: 2021-02-25 | E42: 469.60 | F42: 472.12 | G42: 465.23 | H42: 460.87 | I42: 453.98 | J42: 476.48 | K42: 483.37 | L42: 487.73 | M42: 479 | N42: 467.75 | O42: 12104400 | P42: -0.51%
A43: 33 | B43: Banking | C43: CANBK | D43: 2021-02-25 | E43: 156.20 | F43: 158.17 | G43: 153.13 | H43: 150.07 | I43: 145.03 | J43: 161.23 | K43: 166.27 | L43: 169.33 | M43: 163.2 | N43: 155.1 | O43: 59086800 | P43: -0.47%
A44: 34 | B44: Finance | C44: CHOLAFIN | D44: 2021-02-25 | E44: 460.85 | F44: 463.20 | G44: 453.70 | H44: 446.55 | I44: 437.05 | J44: 470.35 | K44: 479.85 | L44: 487.00 | M44: 472.7 | N44: 456.05 | O44: 5487500 | P44: 2.62%
A45: 35 | B45: Pharma | C45: CIPLA | D45: 2021-02-25 | E45: 845.65 | F45: 849.37 | G45: 838.78 | H45: 831.92 | I45: 821.33 | J45: 856.23 | K45: 866.82 | L45: 873.68 | M45: 859.95 | N45: 842.5 | O45: 12997400 | P45: 2.19%
A46: 36 | B46: Others | C46: COALINDIA | D46: 2021-02-25 | E46: 139.25 | F46: 140.42 | G46: 137.33 | H46: 135.42 | I46: 132.33 | J46: 142.33 | K46: 145.42 | L46: 147.33 | M46: 143.5 | N46: 138.5 | O46: 32176200 | P46: 2.61%
A47: 37 | B47: Technology | C47: COFORGE | D47: 2021-02-25 | E47: 2547.50 | F47: 2577.03 | G47: 2505.57 | H47: 2463.63 | I47: 2392.17 | J47: 2618.97 | K47: 2690.43 | L47: 2732.37 | M47: 2648.5 | N47: 2535.1 | O47: 436875 | P47: -3.96%
A48: 38 | B48: FMCG | C48: COLPAL | D48: 2021-02-25 | E48: 1590.40 | F48: 1600.40 | G48: 1578.05 | H48: 1565.70 | I48: 1543.35 | J48: 1612.75 | K48: 1635.10 | L48: 1647.45 | M48: 1622.75 | N48: 1588.05 | O48: 3397100 | P48: -1.04%
A49: 39 | B49: Others | C49: CONCOR | D49: 2021-02-25 | E49: 502.85 | F49: 503.57 | G49: 498.33 | H49: 493.82 | I49: 488.58 | J49: 508.08 | K49: 513.32 | L49: 517.83 | M49: 508.8 | N49: 499.05 | O49: 5931585 | P49: -5.83%
A50: 40 | B50: Capital_Goods | C50: CUMMINSIND | D50: 2021-02-25 | E50: 773.85 | F50: 779.10 | G50: 765.45 | H50: 757.05 | I50: 743.40 | J50: 787.50 | K50: 801.15 | L50: 809.55 | M50: 792.75 | N50: 770.7 | O50: 1146000 | P50: -0.83%
A51: 41 | B51: FMCG | C51: DABUR | D51: 2021-02-25 | E51: 525.95 | F51: 526.55 | G51: 519.75 | H51: 513.55 | I51: 506.75 | J51: 532.75 | K51: 539.55 | L51: 545.75 | M51: 533.35 | N51: 520.35 | O51: 14335000 | P51: -5.10%
A52: 42 | B52: Pharma | C52: DIVISLAB | D52: 2021-02-25 | E52: 3736.45 | F52: 3764.92 | G52: 3685.93 | H52: 3635.42 | I52: 3556.43 | J52: 3815.43 | K52: 3894.42 | L52: 3944.93 | M52: 3843.9 | N52: 3714.4 | O52: 3086000 | P52: -5.61%
A53: 43 | B53: Realty | C53: DLF | D53: 2021-02-25 | E53: 308.50 | F53: 312.30 | G53: 302.00 | H53: 295.50 | I53: 285.20 | J53: 318.80 | K53: 329.10 | L53: 335.60 | M53: 322.6 | N53: 305.8 | O53: 31165200 | P53: -3.76%
A54: 44 | B54: Pharma | C54: DRREDDY | D54: 2021-02-25 | E54: 4845.85 | F54: 4856.25 | G54: 4809.60 | H54: 4773.35 | I54: 4726.70 | J54: 4892.50 | K54: 4939.15 | L54: 4975.40 | M54: 4902.9 | N54: 4820 | O54: 2774375 | P54: -1.50%
A55: 45 | B55: Automobile | C55: EICHERMOT | D55: 2021-02-25 | E55: 2954.05 | F55: 2974.58 | G55: 2921.47 | H55: 2888.88 | I55: 2835.77 | J55: 3007.17 | K55: 3060.28 | L55: 3092.87 | M55: 3027.7 | N55: 2942 | O55: 2334850 | P55: 0.98%
A56: 46 | B56: Automobile | C56: ESCORTS | D56: 2021-02-25 | E56: 1432.80 | F56: 1444.53 | G56: 1414.07 | H56: 1395.33 | I56: 1364.87 | J56: 1463.27 | K56: 1493.73 | L56: 1512.47 | M56: 1475 | N56: 1425.8 | O56: 3281850 | P56: -1.26%
A57: 47 | B57: Automobile | C57: EXIDEIND | D57: 2021-02-25 | E57: 211.75 | F57: 213.70 | G57: 208.40 | H57: 205.05 | I57: 199.75 | J57: 217.05 | K57: 222.35 | L57: 225.70 | M57: 219 | N57: 210.35 | O57: 11948400 | P57: -9.27%
A58: 48 | B58: Banking | C58: FEDERALBNK | D58: 2021-02-25 | E58: 83.00 | F58: 83.58 | G58: 81.52 | H58: 80.03 | I58: 77.97 | J58: 85.07 | K58: 87.13 | L58: 88.62 | M58: 85.65 | N58: 82.1 | O58: 86770000 | P58: 1.59%
A59: 49 | B59: Oil_Gas | C59: GAIL | D59: 2021-02-25 | E59: 131.35 | F59: 131.98 | G59: 130.27 | H59: 129.18 | I59: 127.47 | J59: 133.07 | K59: 134.78 | L59: 135.87 | M59: 133.7 | N59: 130.9 | O59: 37173400 | P59: 1.01%
A60: 50 | B60: Pharma | C60: GLENMARK | D60: 2021-02-25 | E60: 502.35 | F60: 505.83 | G60: 496.77 | H60: 491.18 | I60: 482.12 | J60: 511.42 | K60: 520.48 | L60: 526.07 | M60: 514.9 | N60: 500.25 | O60: 4835750 | P60: 2.06%
A61: 51 | B61: Infrastructure | C61: GMRINFRA | D61: 2021-02-25 | E61: 26.50 | F61: 26.62 | G61: 26.18 | H61: 25.87 | I61: 25.43 | J61: 26.93 | K61: 27.37 | L61: 27.68 | M61: 27.05 | N61: 26.3 | O61: 148117500 | P61: 1.62%
A62: 52 | B62: FMCG | C62: GODREJCP | D62: 2021-02-25 | E62: 744.90 | F62: 737.07 | G62: 724.43 | H62: 703.97 | I62: 691.33 | J62: 757.53 | K62: 770.17 | L62: 790.63 | M62: 749.7 | N62: 716.6 | O62: 3735000 | P62: -1.16%
A63: 53 | B63: Others | C63: GODREJPROP | D63: 2021-02-25 | E63: 1425.25 | F63: 1434.12 | G63: 1406.23 | H63: 1387.22 | I63: 1359.33 | J63: 1453.13 | K63: 1481.02 | L63: 1500.03 | M63: 1462 | N63: 1415.1 | O63: 1940900 | P63: -3.30%
A64: 54 | B64: Cement | C64: GRASIM | D64: 2021-02-25 | E64: 1220.00 | F64: 1219.35 | G64: 1208.25 | H64: 1196.50 | I64: 1185.40 | J64: 1231.10 | K64: 1242.20 | L64: 1253.95 | M64: 1230.45 | N64: 1207.6 | O64: 16904300 | P64: -0.71%
A65: 55 | B65: Others | C65: HAVELLS | D65: 2021-02-25 | E65: 1141.50 | F65: 1149.50 | G65: 1128.00 | H65: 1114.50 | I65: 1093.00 | J65: 1163.00 | K65: 1184.50 | L65: 1198.00 | M65: 1171 | N65: 1136 | O65: 3937000 | P65: -1.33%
A66: 56 | B66: Technology | C66: HCLTECH | D66: 2021-02-25 | E66: 955.05 | F66: 963.00 | G66: 942.30 | H66: 929.55 | I66: 908.85 | J66: 975.75 | K66: 996.45 | L66: 1009.20 | M66: 983.7 | N66: 950.25 | O66: 20195000 | P66: 0.02%
A67: 57 | B67: Finance | C67: HDFC | D67: 2021-02-25 | E67: 2752.20 | F67: 2753.47 | G67: 2715.63 | H67: 2679.07 | I67: 2641.23 | J67: 2790.03 | K67: 2827.87 | L67: 2864.43 | M67: 2791.3 | N67: 2716.9 | O67: 17323500 | P67: -1.09%
A68: 58 | B68: Finance | C68: HDFCAMC | D68: 2021-02-25 | E68: 3008.55 | F68: 3038.97 | G68: 2958.03 | H68: 2907.52 | I68: 2826.58 | J68: 3089.48 | K68: 3170.42 | L68: 3220.93 | M68: 3119.9 | N68: 2988.45 | O68: 443600 | P68: -1.38%
A69: 59 | B69: Banking | C69: HDFCBANK | D69: 2021-02-25 | E69: 1606.05 | F69: 1604.80 | G69: 1587.80 | H69: 1569.55 | I69: 1552.55 | J69: 1623.05 | K69: 1640.05 | L69: 1658.30 | M69: 1621.8 | N69: 1586.55 | O69: 26973100 | P69: -1.32%
A70: 60 | B70: Finance | C70: HDFCLIFE | D70: 2021-02-25 | E70: 707.30 | F70: 703.43 | G70: 693.87 | H70: 680.43 | I70: 670.87 | J70: 716.87 | K70: 726.43 | L70: 739.87 | M70: 713 | N70: 690 | O70: 8781300 | P70: -8.73%
A71: 61 | B71: Automobile | C71: HEROMOTOCO | D71: 2021-02-25 | E71: 3417.80 | F71: 3414.10 | G71: 3353.20 | H71: 3288.60 | I71: 3227.70 | J71: 3478.70 | K71: 3539.60 | L71: 3604.20 | M71: 3475 | N71: 3349.5 | O71: 3566100 | P71: 1.24%
A72: 62 | B72: Metals | C72: HINDALCO | D72: 2021-02-25 | E72: 278.30 | F72: 280.38 | G72: 274.02 | H72: 269.73 | I72: 263.37 | J72: 284.67 | K72: 291.03 | L72: 295.32 | M72: 286.75 | N72: 276.1 | O72: 23125400 | P72: -9.34%
A73: 63 | B73: Oil_Gas | C73: HINDPETRO | D73: 2021-02-25 | E73: 227.65 | F73: 229.28 | G73: 224.72 | H73: 221.78 | I73: 217.22 | J73: 232.22 | K73: 236.78 | L73: 239.72 | M73: 233.85 | N73: 226.35 | O73: 35105400 | P73: 4.16%
A74: 64 | B74: FMCG | C74: HINDUNILVR | D74: 2021-02-25 | E74: 2227.10 | F74: 2237.50 | G74: 2211.60 | H74: 2196.10 | I74: 2170.20 | J74: 2253.00 | K74: 2278.90 | L74: 2294.40 | M74: 2263.4 | N74: 2222 | O74: 8710500 | P74: 9.74%
A75: 65 | B75: Finance | C75: IBULHSGFIN | D75: 2021-02-25 | E75: 219.70 | F75: 220.38 | G75: 214.32 | H75: 208.93 | I75: 202.87 | J75: 225.77 | K75: 231.83 | L75: 237.22 | M75: 226.45 | N75: 215 | O75: 30507100 | P75: 3.64%
A76: 66 | B76: Banking | C76: ICICIBANK | D76: 2021-02-25 | E76: 635.10 | F76: 637.28 | G76: 628.82 | H76: 622.53 | I76: 614.07 | J76: 643.57 | K76: 652.03 | L76: 658.32 | M76: 645.75 | N76: 631 | O76: 111870000 | P76: 0.30%
A77: 67 | B77: Finance | C77: ICICIGI | D77: 2021-02-25 | E77: 1524.05 | F77: 1508.42 | G77: 1472.93 | H77: 1421.82 | I77: 1386.33 | J77: 1559.53 | K77: 1595.02 | L77: 1646.13 | M77: 1543.9 | N77: 1457.3 | O77: 1334500 | P77: 1.65%
A78: 68 | B78: Finance | C78: ICICIPRULI | D78: 2021-02-25 | E78: 478.20 | F78: 480.18 | G78: 473.17 | H78: 468.13 | I78: 461.12 | J78: 485.22 | K78: 492.23 | L78: 497.27 | M78: 487.2 | N78: 475.15 | O78: 8823000 | P78: 2.89%
A79: 69 | B79: Telecom | C79: IDEA | D79: 2021-02-25 | E79: 12.05 | F79: 12.10 | G79: 11.60 | H79: 11.15 | I79: 10.65 | J79: 12.55 | K79: 13.05 | L79: 13.50 | M79: 12.6 | N79: 11.65 | O79: 881090000 | P79: 2.97%
A80: 70 | B80: Banking | C80: IDFCFIRSTB | D80: 2021-02-25 | E80: 49.90 | F80: 50.05 | G80: 47.95 | H80: 46.00 | I80: 43.90 | J80: 52.00 | K80: 54.10 | L80: 56.05 | M80: 52.15 | N80: 48.1 | O80: 177004000 | P80: -6.26%
A81: 71 | B81: Oil_Gas | C81: IGL | D81: 2021-02-25 | E81: 559.35 | F81: 558.67 | G81: 549.23 | H81: 539.12 | I81: 529.68 | J81: 568.78 | K81: 578.22 | L81: 588.33 | M81: 568.1 | N81: 548.55 | O81: 5821750 | P81: 6.20%
A82: 72 | B82: Others | C82: INDIGO | D82: 2021-02-25 | E82: 1660.90 | F82: 1673.85 | G82: 1642.15 | H82: 1623.40 | I82: 1591.70 | J82: 1692.60 | K82: 1724.30 | L82: 1743.05 | M82: 1705.55 | N82: 1655.1 | O82: 3223500 | P82: -0.12%
A83: 73 | B83: Banking | C83: INDUSINDBK | D83: 2021-02-25 | E83: 1028.20 | F83: 1034.93 | G83: 1014.87 | H83: 1001.53 | I83: 981.47 | J83: 1048.27 | K83: 1068.33 | L83: 1081.67 | M83: 1055 | N83: 1021.6 | O83: 24964200 | P83: 0.35%
A84: 74 | B84: Telecom | C84: INDUSTOWER | D84: 2021-02-25 | E84: 254.75 | F84: 253.97 | G84: 243.48 | H84: 232.22 | I84: 221.73 | J84: 265.23 | K84: 275.72 | L84: 286.98 | M84: 264.45 | N84: 242.7 | O84: 13664000 | P84: 3.50%
A85: 75 | B85: Technology | C85: INFY | D85: 2021-02-25 | E85: 1307.00 | F85: 1313.92 | G85: 1293.43 | H85: 1279.87 | I85: 1259.38 | J85: 1327.48 | K85: 1347.97 | L85: 1361.53 | M85: 1334.4 | N85: 1300.35 | O85: 32767200 | P85: -3.18%
A86: 76 | B86: Oil_Gas | C86: IOC | D86: 2021-02-25 | E86: 97.95 | F86: 98.47 | G86: 96.78 | H86: 95.62 | I86: 93.93 | J86: 99.63 | K86: 101.32 | L86: 102.48 | M86: 100.15 | N86: 97.3 | O86: 63888500 | P86: -3.18%
A87: 77 | B87: FMCG | C87: ITC | D87: 2021-02-25 | E87: 227.40 | F87: 230.32 | G87: 223.73 | H87: 220.07 | I87: 213.48 | J87: 233.98 | K87: 240.57 | L87: 244.23 | M87: 236.9 | N87: 226.65 | O87: 127920000 | P87: 10.79%
A88: 78 | B88: Metals | C88: JINDALSTEL | D88: 2021-02-25 | E88: 310.45 | F88: 311.42 | G88: 304.48 | H88: 298.52 | I88: 291.58 | J88: 317.38 | K88: 324.32 | L88: 330.28 | M88: 318.35 | N88: 305.45 | O88: 22050000 | P88: -9.32%
A89: 79 | B89: Metals | C89: JSWSTEEL | D89: 2021-02-25 | E89: 408.50 | F89: 411.50 | G89: 400.85 | H89: 393.20 | I89: 382.55 | J89: 419.15 | K89: 429.80 | L89: 437.45 | M89: 422.15 | N89: 403.85 | O89: 33701400 | P89: 0.72%
A90: 80 | B90: Others | C90: JUBLFOOD | D90: 2021-02-25 | E90: 2808.95 | F90: 2811.00 | G90: 2785.95 | H90: 2762.95 | I90: 2737.90 | J90: 2834.00 | K90: 2859.05 | L90: 2882.05 | M90: 2836.05 | N90: 2788 | O90: 1719500 | P90: -0.79%
A91: 81 | B91: Banking | C91: KOTAKBANK | D91: 2021-02-25 | E91: 1950.55 | F91: 1953.42 | G91: 1932.83 | H91: 1915.12 | I91: 1894.53 | J91: 1971.13 | K91: 1991.72 | L91: 2009.43 | M91: 1974 | N91: 1935.7 | O91: 14787200 | P91: -1.16%
A92: 82 | B92: Finance | C92: L&TFH | D92: 2021-02-25 | E92: 88.65 | F92: 89.12 | G92: 87.73 | H92: 86.82 | I92: 85.43 | J92: 90.03 | K92: 91.42 | L92: 92.33 | M92: 90.5 | N92: 88.2 | O92: 39122816 | P92: -0.43%
A93: 83 | B93: Others | C93: LALPATHLAB | D93: 2021-02-25 | E93: 2414.40 | F93: 2423.62 | G93: 2387.88 | H93: 2361.37 | I93: 2325.63 | J93: 2450.13 | K93: 2485.87 | L93: 2512.38 | M93: 2459.35 | N93: 2397.1 | O93: 105750 | P93: 4.96%
A94: 84 | B94: Finance | C94: LICHSGFIN | D94: 2021-02-25 | E94: 440.05 | F94: 441.15 | G94: 434.45 | H94: 428.85 | I94: 422.15 | J94: 446.75 | K94: 453.45 | L94: 459.05 | M94: 447.85 | N94: 435.55 | O94: 8604000 | P94: -1.76%
A95: 85 | B95: Capital_Goods | C95: LT | D95: 2021-02-25 | E95: 1568.45 | F95: 1564.90 | G95: 1552.20 | H95: 1535.95 | I95: 1523.25 | J95: 1581.15 | K95: 1593.85 | L95: 1610.10 | M95: 1577.6 | N95: 1548.65 | O95: 14667100 | P95: -1.86%
A96: 86 | B96: Pharma | C96: LUPIN | D96: 2021-02-25 | E96: 1062.55 | F96: 1067.25 | G96: 1052.50 | H96: 1042.45 | I96: 1027.70 | J96: 1077.30 | K96: 1092.05 | L96: 1102.10 | M96: 1082 | N96: 1057.2 | O96: 7131500 | P96: 0.45%
A97: 87 | B97: Automobile | C97: M&M | D97: 2021-02-25 | E97: 898.55 | F97: 910.18 | G97: 878.12 | H97: 857.68 | I97: 825.62 | J97: 930.62 | K97: 962.68 | L97: 983.12 | M97: 942.25 | N97: 889.75 | O97: 11712400 | P97: -0.59%
A98: 88 | B98: Finance | C98: M&MFIN | D98: 2021-02-25 | E98: 184.30 | F98: 184.37 | G98: 181.08 | H98: 177.87 | I98: 174.58 | J98: 187.58 | K98: 190.87 | L98: 194.08 | M98: 187.65 | N98: 181.15 | O98: 12372000 | P98: -0.32%
A99: 89 | B99: Finance | C99: MANAPPURAM | D99: 2021-02-25 | E99: 172.90 | F99: 173.77 | G99: 171.13 | H99: 169.37 | I99: 166.73 | J99: 175.53 | K99: 178.17 | L99: 179.93 | M99: 176.4 | N99: 172 | O99: 17892000 | P99: 1.39%
A100: 90 | B100: FMCG | C100: MARICO | D100: 2021-02-25 | E100: 413.95 | F100: 415.80 | G100: 411.25 | H100: 408.55 | I100: 404.00 | J100: 418.50 | K100: 423.05 | L100: 425.75 | M100: 420.35 | N100: 413.1 | O100: 9136000 | P100: -1.81%
A101: 91 | B101: Automobile | C101: MARUTI | D101: 2021-02-25 | E101: 7637.25 | F101: 7643.48 | G101: 7588.97 | H101: 7540.68 | I101: 7486.17 | J101: 7691.77 | K101: 7746.28 | L101: 7794.57 | M101: 7698 | N101: 7595.2 | O101: 2486600 | P101: -3.73%
A102: 92 | B102: FMCG | C102: MCDOWELL-N | D102: 2021-02-25 | E102: 570.70 | F102: 574.07 | G102: 565.13 | H102: 559.57 | I102: 550.63 | J102: 579.63 | K102: 588.57 | L102: 594.13 | M102: 583 | N102: 568.5 | O102: 13566250 | P102: 8.76%
A103: 93 | B103: Finance | C103: MFSL | D103: 2021-02-25 | E103: 740.50 | F103: 738.15 | G103: 722.15 | H103: 703.80 | I103: 687.80 | J103: 756.50 | K103: 772.50 | L103: 790.85 | M103: 754.15 | N103: 719.8 | O103: 5070000 | P103: 1.72%
A104: 94 | B104: Oil_Gas | C104: MGL | D104: 2021-02-25 | E104: 1128.35 | F104: 1123.62 | G104: 1098.08 | H104: 1067.82 | I104: 1042.28 | J104: 1153.88 | K104: 1179.42 | L104: 1209.68 | M104: 1149.15 | N104: 1093.35 | O104: 1542600 | P104: 0.27%
A105: 95 | B105: Technology | C105: MINDTREE | D105: 2021-02-25 | E105: 1721.45 | F105: 1730.80 | G105: 1703.60 | H105: 1685.75 | I105: 1658.55 | J105: 1748.65 | K105: 1775.85 | L105: 1793.70 | M105: 1758 | N105: 1712.95 | O105: 1728800 | P105: -1.05%
A106: 96 | B106: Automobile | C106: MOTHERSUMI | D106: 2021-02-25 | E106: 161.90 | F106: 162.82 | G106: 159.88 | H106: 157.87 | I106: 154.93 | J106: 164.83 | K106: 167.77 | L106: 169.78 | M106: 165.75 | N106: 160.8 | O106: 40866000 | P106: 2.06%
A107: 97 | B107: Automobile | C107: MRF | D107: 2021-02-25 | E107: 94239.75 | F107: 93226.58 | G107: 91553.17 | H107: 88866.58 | I107: 87193.17 | J107: 95913.17 | K107: 97586.58 | L107: 100273.17 | M107: 94900 | N107: 90540 | O107: 57080 | P107: 14.78%
A108: 98 | B108: Finance | C108: MUTHOOTFIN | D108: 2021-02-25 | E108: 1192.80 | F108: 1201.75 | G108: 1172.55 | H108: 1152.30 | I108: 1123.10 | J108: 1222.00 | K108: 1251.20 | L108: 1271.45 | M108: 1230.95 | N108: 1181.5 | O108: 5556750 | P108: 1.09%
A109: 99 | B109: Metals | C109: NATIONALUM | D109: 2021-02-25 | E109: 49.45 | F109: 49.88 | G109: 48.77 | H109: 48.08 | I109: 46.97 | J109: 50.57 | K109: 51.68 | L109: 52.37 | M109: 51 | N109: 49.2 | O109: 55794000 | P109: 7.25%
A110: 100 | B110: Others | C110: NAUKRI | D110: 2021-02-25 | E110: 4971.55 | F110: 5011.08 | G110: 4888.57 | H110: 4805.58 | I110: 4683.07 | J110: 5094.07 | K110: 5216.58 | L110: 5299.57 | M110: 5133.6 | N110: 4928.1 | O110: 814750 | P110: -2.54%
A111: 101 | B111: FMCG | C111: NESTLEIND | D111: 2021-02-25 | E111: 17339.95 | F111: 17348.77 | G111: 17163.18 | H111: 16986.42 | I111: 16800.83 | J111: 17525.53 | K111: 17711.12 | L111: 17887.88 | M111: 17534.35 | N111: 17172 | O111: 356150 | P111: -1.23%
A112: 102 | B112: Metals | C112: NMDC | D112: 2021-02-25 | E112: 116.90 | F112: 118.62 | G112: 114.23 | H112: 111.57 | I112: 107.18 | J112: 121.28 | K112: 125.67 | L112: 128.33 | M112: 123 | N112: 115.95 | O112: 51549800 | P112: 0.56%
A113: 103 | B113: Power | C113: NTPC | D113: 2021-02-25 | E113: 97.30 | F113: 97.62 | G113: 96.53 | H113: 95.77 | I113: 94.68 | J113: 98.38 | K113: 99.47 | L113: 100.23 | M113: 98.7 | N113: 96.85 | O113: 76870200 | P113: 1.82%
A114: 104 | B114: Oil_Gas | C114: ONGC | D114: 2021-02-25 | E114: 99.15 | F114: 99.65 | G114: 97.50 | H114: 95.85 | I114: 93.70 | J114: 101.30 | K114: 103.45 | L114: 105.10 | M114: 101.8 | N114: 98 | O114: 52444700 | P114: -1.76%
A115: 105 | B115: Textile | C115: PAGEIND | D115: 2021-02-25 | E115: 30374.50 | F115: 30133.38 | G115: 29617.87 | H115: 28861.23 | I115: 28345.72 | J115: 30890.02 | K115: 31405.53 | L115: 32162.17 | M115: 30648.9 | N115: 29376.75 | O115: 99210 | P115: 6.13%
A116: 106 | B116: Pharma | C116: PEL | D116: 2021-02-25 | E116: 1579.90 | F116: 1583.58 | G116: 1554.42 | H116: 1528.93 | I116: 1499.77 | J116: 1609.07 | K116: 1638.23 | L116: 1663.72 | M116: 1612.75 | N116: 1558.1 | O116: 3729550 | P116: -2.57%
A117: 107 | B117: Oil_Gas | C117: PETRONET | D117: 2021-02-25 | E117: 243.45 | F117: 244.30 | G117: 241.90 | H117: 240.35 | I117: 237.95 | J117: 245.85 | K117: 248.25 | L117: 249.80 | M117: 246.7 | N117: 242.75 | O117: 16275000 | P117: 4.73%
A118: 108 | B118: Finance | C118: PFC | D118: 2021-02-25 | E118: 126.25 | F118: 126.98 | G118: 124.82 | H118: 123.38 | I118: 121.22 | J118: 128.42 | K118: 130.58 | L118: 132.02 | M118: 129.15 | N118: 125.55 | O118: 29189600 | P118: 0.19%
A119: 109 | B119: FMCG | C119: PIDILITIND | D119: 2021-02-25 | E119: 1768.30 | F119: 1770.83 | G119: 1739.37 | H119: 1710.43 | I119: 1678.97 | J119: 1799.77 | K119: 1831.23 | L119: 1860.17 | M119: 1802.3 | N119: 1741.9 | O119: 2515000 | P119: -1.87%
A120: 110 | B120: Banking | C120: PNB | D120: 2021-02-25 | E120: 39.15 | F120: 39.27 | G120: 37.28 | H120: 35.42 | I120: 33.43 | J120: 41.13 | K120: 43.12 | L120: 44.98 | M120: 41.25 | N120: 37.4 | O120: 196624000 | P120: 3.85%
A121: 111 | B121: Power | C121: POWERGRID | D121: 2021-02-25 | E121: 211.10 | F121: 212.83 | G121: 208.67 | H121: 206.23 | I121: 202.07 | J121: 215.27 | K121: 219.43 | L121: 221.87 | M121: 217 | N121: 210.4 | O121: 14204000 | P121: 16.08%
A122: 112 | B122: Media | C122: PVR | D122: 2021-02-25 | E122: 1499.40 | F122: 1507.95 | G122: 1486.45 | H122: 1473.50 | I122: 1452.00 | J122: 1520.90 | K122: 1542.40 | L122: 1555.35 | M122: 1529.45 | N122: 1495 | O122: 1890515 | P122: -1.57%
A123: 113 | B123: Cement | C123: RAMCOCEM | D123: 2021-02-25 | E123: 931.35 | F123: 932.92 | G123: 922.93 | H123: 914.52 | I123: 904.53 | J123: 941.33 | K123: 951.32 | L123: 959.73 | M123: 942.9 | N123: 924.5 | O123: 1844500 | P123: -5.94%
A124: 114 | B124: Banking | C124: RBLBANK | D124: 2021-02-25 | E124: 245.50 | F124: 246.23 | G124: 241.57 | H124: 237.63 | I124: 232.97 | J124: 250.17 | K124: 254.83 | L124: 258.77 | M124: 250.9 | N124: 242.3 | O124: 24020700 | P124: 2.47%
A125: 115 | B125: Power | C125: RECLTD | D125: 2021-02-25 | E125: 147.20 | F125: 148.22 | G125: 145.23 | H125: 143.27 | I125: 140.28 | J125: 150.18 | K125: 153.17 | L125: 155.13 | M125: 151.2 | N125: 146.25 | O125: 13152000 | P125: 1.81%
A126: 116 | B126: Oil_Gas | C126: RELIANCE | D126: 2021-02-25 | E126: 1962.50 | F126: 1972.63 | G126: 1946.32 | H126: 1930.13 | I126: 1903.82 | J126: 1988.82 | K126: 2015.13 | L126: 2031.32 | M126: 1998.95 | N126: 1956.45 | O126: 30240250 | P126: -0.89%
A127: 117 | B127: Metals | C127: SAIL | D127: 2021-02-25 | E127: 67.20 | F127: 67.38 | G127: 65.77 | H127: 64.33 | I127: 62.72 | J127: 68.82 | K127: 70.43 | L127: 71.87 | M127: 69 | N127: 65.95 | O127: 97717000 | P127: -1.12%
A128: 118 | B128: Finance | C128: SBILIFE | D128: 2021-02-25 | E128: 892.20 | F128: 885.38 | G128: 872.87 | H128: 853.53 | I128: 841.02 | J128: 904.72 | K128: 917.23 | L128: 936.57 | M128: 897.9 | N128: 866.05 | O128: 5841000 | P128: -3.40%
A129: 119 | B129: Banking | C129: SBIN | D129: 2021-02-25 | E129: 396.45 | F129: 397.25 | G129: 389.50 | H129: 382.55 | I129: 374.80 | J129: 404.20 | K129: 411.95 | L129: 418.90 | M129: 405 | N129: 390.3 | O129: 96963000 | P129: -1.86%
A130: 120 | B130: Cement | C130: SHREECEM | D130: 2021-02-25 | E130: 28162.90 | F130: 28132.95 | G130: 27707.60 | H130: 27252.30 | I130: 26826.95 | J130: 28588.25 | K130: 29013.60 | L130: 29468.90 | M130: 28558.3 | N130: 27677.65 | O130: 134000 | P130: 5.43%
A131: 121 | B131: Capital_Goods | C131: SIEMENS | D131: 2021-02-25 | E131: 1859.70 | F131: 1871.60 | G131: 1838.10 | H131: 1816.50 | I131: 1783.00 | J131: 1893.20 | K131: 1926.70 | L131: 1948.30 | M131: 1905.1 | N131: 1850 | O131: 807950 | P131: -5.41%
A132: 122 | B132: Textile | C132: SRF | D132: 2021-02-25 | E132: 5551.75 | F132: 5599.40 | G132: 5479.90 | H132: 5408.05 | I132: 5288.55 | J132: 5671.25 | K132: 5790.75 | L132: 5862.60 | M132: 5718.9 | N132: 5527.55 | O132: 343875 | P132: -0.33%
A133: 123 | B133: Finance | C133: SRTRANSFIN | D133: 2021-02-25 | E133: 1417.05 | F133: 1421.03 | G133: 1391.27 | H133: 1365.48 | I133: 1335.72 | J133: 1446.82 | K133: 1476.58 | L133: 1502.37 | M133: 1450.8 | N133: 1395.25 | O133: 4732000 | P133: -0.85%
A134: 124 | B134: Pharma | C134: SUNPHARMA | D134: 2021-02-25 | E134: 625.15 | F134: 629.23 | G134: 618.22 | H134: 611.28 | I134: 600.27 | J134: 636.17 | K134: 647.18 | L134: 654.12 | M134: 640.25 | N134: 622.3 | O134: 43320200 | P134: -1.91%
A135: 125 | B135: Media | C135: SUNTV | D135: 2021-02-25 | E135: 523.00 | F135: 522.42 | G135: 500.63 | H135: 478.27 | I135: 456.48 | J135: 544.78 | K135: 566.57 | L135: 588.93 | M135: 544.2 | N135: 500.05 | O135: 11076000 | P135: -12.27%
A136: 126 | B136: Fertilisers | C136: TATACHEM | D136: 2021-02-25 | E136: 575.00 | F136: 566.67 | G136: 544.33 | H136: 513.67 | I136: 491.33 | J136: 597.33 | K136: 619.67 | L136: 650.33 | M136: 589 | N136: 536 | O136: 8952000 | P136: 32.31%
A137: 127 | B137: Others | C137: TATACONSUM | D137: 2021-02-25 | E137: 599.60 | F137: 601.97 | G137: 593.88 | H137: 588.17 | I137: 580.08 | J137: 607.68 | K137: 615.77 | L137: 621.48 | M137: 610.05 | N137: 596.25 | O137: 14941800 | P137: -4.39%
A138: 128 | B138: Automobile | C138: TATAMOTORS | D138: 2021-02-25 | E138: 325.90 | F138: 329.57 | G138: 319.43 | H138: 312.97 | I138: 302.83 | J138: 336.03 | K138: 346.17 | L138: 352.63 | M138: 339.7 | N138: 323.1 | O138: 77280600 | P138: 0.41%
A139: 129 | B139: Power | C139: TATAPOWER | D139: 2021-02-25 | E139: 87.40 | F139: 88.22 | G139: 85.93 | H139: 84.47 | I139: 82.18 | J139: 89.68 | K139: 91.97 | L139: 93.43 | M139: 90.5 | N139: 86.75 | O139: 117909000 | P139: 1.49%
A140: 130 | B140: Metals | C140: TATASTEEL | D140: 2021-02-25 | E140: 700.40 | F140: 703.80 | G140: 689.60 | H140: 678.80 | I140: 664.60 | J140: 714.60 | K140: 728.80 | L140: 739.60 | M140: 718 | N140: 693 | O140: 39601500 | P140: -6.56%
A141: 131 | B141: Technology | C141: TCS | D141: 2021-02-25 | E141: 3192.55 | F141: 3211.57 | G141: 3162.33 | H141: 3132.12 | I141: 3082.88 | J141: 3241.78 | K141: 3291.02 | L141: 3321.23 | M141: 3260.8 | N141: 3181.35 | O141: 5967600 | P141: 2.73%
A142: 132 | B142: Technology | C142: TECHM | D142: 2021-02-25 | E142: 976.65 | F142: 983.03 | G142: 964.47 | H142: 952.28 | I142: 933.72 | J142: 995.22 | K142: 1013.78 | L142: 1025.97 | M142: 1001.6 | N142: 970.85 | O142: 12231600 | P142: -2.91%
A143: 133 | B143: FMCG | C143: TITAN | D143: 2021-02-25 | E143: 1563.25 | F143: 1567.75 | G143: 1546.50 | H143: 1529.75 | I143: 1508.50 | J143: 1584.50 | K143: 1605.75 | L143: 1622.50 | M143: 1589 | N143: 1551 | O143: 6535500 | P143: 0.53%
A144: 134 | B144: Pharma | C144: TORNTPHARM | D144: 2021-02-25 | E144: 2565.15 | F144: 2601.47 | G144: 2493.93 | H144: 2422.72 | I144: 2315.18 | J144: 2672.68 | K144: 2780.22 | L144: 2851.43 | M144: 2709 | N144: 2530.25 | O144: 1285250 | P144: 55.08%
A145: 135 | B145: Power | C145: TORNTPOWER | D145: 2021-02-25 | E145: 322.50 | F145: 322.67 | G145: 317.38 | H145: 312.27 | I145: 306.98 | J145: 327.78 | K145: 333.07 | L145: 338.18 | M145: 327.95 | N145: 317.55 | O145: 5856000 | P145: 6.43%
A146: 136 | B146: Automobile | C146: TVSMOTOR | D146: 2021-02-25 | E146: 650.60 | F146: 651.20 | G146: 641.90 | H146: 633.20 | I146: 623.90 | J146: 659.90 | K146: 669.20 | L146: 677.90 | M146: 660.5 | N146: 642.5 | O146: 4284000 | P146: -5.29%
A147: 137 | B147: FMCG | C147: UBL | D147: 2021-02-25 | E147: 1271.75 | F147: 1274.77 | G147: 1261.08 | H147: 1250.42 | I147: 1236.73 | J147: 1285.43 | K147: 1299.12 | L147: 1309.78 | M147: 1288.45 | N147: 1264.1 | O147: 1267700 | P147: 6.40%
A148: 138 | B148: Cement | C148: ULTRACEMCO | D148: 2021-02-25 | E148: 6426.60 | F148: 6430.48 | G148: 6372.12 | H148: 6317.63 | I148: 6259.27 | J148: 6484.97 | K148: 6543.33 | L148: 6597.82 | M148: 6488.85 | N148: 6376 | O148: 1236200 | P148: 0.63%
A149: 139 | B149: Fertilisers | C149: UPL | D149: 2021-02-25 | E149: 540.80 | F149: 545.63 | G149: 533.07 | H149: 525.33 | I149: 512.77 | J149: 553.37 | K149: 565.93 | L149: 573.67 | M149: 558.2 | N149: 537.9 | O149: 18804500 | P149: 2.33%
A150: 140 | B150: Metals | C150: VEDL | D150: 2021-02-25 | E150: 182.50 | F150: 183.80 | G150: 178.45 | H150: 174.40 | I150: 169.05 | J150: 187.85 | K150: 193.20 | L150: 197.25 | M150: 189.15 | N150: 179.75 | O150: 85485600 | P150: 1.97%
A151: 141 | B151: Capital_Goods | C151: VOLTAS | D151: 2021-02-25 | E151: 1083.65 | F151: 1073.58 | G151: 1053.07 | H151: 1022.48 | I151: 1001.97 | J151: 1104.17 | K151: 1124.68 | L151: 1155.27 | M151: 1094.1 | N151: 1043 | O151: 3669000 | P151: 45.48%
A152: 142 | B152: Technology | C152: WIPRO | D152: 2021-02-25 | E152: 440.05 | F152: 443.23 | G152: 433.12 | H152: 426.18 | I152: 416.07 | J152: 450.17 | K152: 460.28 | L152: 467.22 | M152: 453.35 | N152: 436.3 | O152: 29408000 | P152: 1.82%
A153: 143 | B153: Media | C153: ZEEL | D153: 2021-02-25 | E153: 216.95 | F153: 218.22 | G153: 213.43 | H153: 209.92 | I153: 205.13 | J153: 221.73 | K153: 226.52 | L153: 230.03 | M153: 223 | N153: 214.7 | O153: 42567000 | P153: 7.20%
A154: 144
A155: 145
A156: 146
A157: 147
A175: Pivot Point: This is trigger point for intra day buy/sell based on the price range of the previous day
A176: As per the tool,the trader should take BUY position just above Pivot and keep the stop loss of pivot point and the first target would be Resistance 1(R1)
A177: If R1 is crossed then R2 becomes the next target with stop loss of at R1
A178: Similarly if price goes below pivot point then the trader should sell and keep a stop loss of pivot point and the first target would be S1
A179: If S1 is crossed then S2 becomes the next target with stop loss of at S1
A181: Disclaimer:
A182: This document has been prepared by the Retail Research Desk of Asit C Mehta
A183: Investment Intermediates Ltd. and is meant for use of the recipient only
A184: and is not for circulation. This document is not to be reported or
A185: copied or made available to others. It should not be considered to be
A186: taken as an offer to sell or a solicitation to buy any security. The
A187: information contained herein is from sources believed reliable. We do
A188: not represent that it is accurate or complete and it should not be
A189: relied upon as such. We may from time to time have positions in and buy
A190: and sell securities referred to herein

Sheet Cash Intra
M5: Back to Main Page
A6: FOR INTRA DAY TRADING | K6: =Main!B10 -> 2021-02-10
A8: Sr.no | B8: Scrip | C8: CLOSE RATE | D8: Pivot Point | E8: Supports | H8: Resistances
C9: Point | E9: S1 | F9: S2 | G9: S3 | H9: R1 | I9: R2 | J9: R3 | K9: HIGH | L9: LOW | M9: Total Trade Quanity in Lakhs
A10: 1 | B10: Nifty 50 | C10: 15109.3 | D10: 15143.57 | E10: 15030.03 | F10: 14950.77 | G10: 14837.23 | H10: 15222.83 | I10: 15336.37 | J10: 15415.63 | K10: 15257.1 | L10: 15064.3
A11: 2 | B11: Nifty Bank | C11: 36056.5 | D11: 36056.83 | E11: 35636.52 | F11: 35216.53 | G11: 34796.22 | H11: 36476.82 | I11: 36897.13 | J11: 37317.12 | K11: 36477.15 | L11: 35636.85
A12: 3 | B12: Nifty CPSE | C12: 1735.25 | D12: 1743.85 | E12: 1720.50 | F12: 1705.75 | G12: 1682.40 | H12: 1758.60 | I12: 1781.95 | J12: 1796.70 | K12: 1767.2 | L12: 1729.1
A13: 4 | B13: Nifty Infra | C13: 4113.65 | D13: 4120.12 | E13: 4094.63 | F13: 4075.62 | G13: 4050.13 | H13: 4139.13 | I13: 4164.62 | J13: 4183.63 | K13: 4145.6 | L13: 4101.1
A14: 5 | B14: Nifty IT | C14: 25779.15 | D14: 25913.42 | E14: 25525.63 | F14: 25272.12 | G14: 24884.33 | H14: 26166.93 | I14: 26554.72 | J14: 26808.23 | K14: 26301.2 | L14: 25659.9
A15: 6 | B15: Nifty PSE | C15: 3013.4 | D15: 3026.38 | E15: 2988.67 | F15: 2963.93 | G15: 2926.22 | H15: 3051.12 | I15: 3088.83 | J15: 3113.57 | K15: 3064.1 | L15: 3001.65
A16: 7 | B16: Nifty Midcap 50 | C16: 6674.15 | D16: 6688.27 | E16: 6627.93 | F16: 6581.72 | G16: 6521.38 | H16: 6734.48 | I16: 6794.82 | J16: 6841.03 | K16: 6748.6 | L16: 6642.05
A17: 8 | B17: ACC | C17: 1761.65 | D17: 1764.63 | E17: 1750.27 | F17: 1738.88 | G17: 1724.52 | H17: 1776.02 | I17: 1790.38 | J17: 1801.77 | K17: 1779 | L17: 1753.25 | M17: 7.91259
A18: 9 | B18: AUBANK | C18: 1063.35 | D18: 1061.12 | E18: 1041.23 | F18: 1019.12 | G18: 999.23 | H18: 1083.23 | I18: 1103.12 | J18: 1125.23 | K18: 1081 | L18: 1039 | M18: 8.21236
A19: 10 | B19: AARTIIND | C19: 1234.65 | D19: 1184.07 | E19: 1123.13 | F19: 1011.62 | G19: 950.68 | H19: 1295.58 | I19: 1356.52 | J19: 1468.03 | K19: 1245 | L19: 1072.55 | M19: 7.44345
A20: 11 | B20: ABBOTINDIA | C20: 14634.8 | D20: 14713.27 | E20: 14431.53 | F20: 14228.27 | G20: 13946.53 | H20: 14916.53 | I20: 15198.27 | J20: 15401.53 | K20: 14995 | L20: 14510 | M20: 0.38323
A21: 12 | B21: ADANIENT | C21: 629.85 | D21: 630.92 | E21: 619.93 | F21: 610.02 | G21: 599.03 | H21: 640.83 | I21: 651.82 | J21: 661.73 | K21: 641.9 | L21: 621 | M21: 45.10798
A22: 13 | B22: ADANIGREEN | C22: 1086.05 | D22: 1077.70 | E22: 1039.40 | F22: 992.75 | G22: 954.45 | H22: 1124.35 | I22: 1162.65 | J22: 1209.30 | K22: 1116 | L22: 1031.05 | M22: 35.36318
A23: 14 | B23: ADANIPORTS | C23: 581.95 | D23: 581.65 | E23: 573.50 | F23: 565.05 | G23: 556.90 | H23: 590.10 | I23: 598.25 | J23: 606.70 | K23: 589.8 | L23: 573.2 | M23: 109.17915
A24: 15 | B24: ATGL | C24: 382.85 | D24: 382.82 | E24: 380.18 | F24: 377.52 | G24: 374.88 | H24: 385.48 | I24: 388.12 | J24: 390.78 | K24: 385.45 | L24: 380.15 | M24: 8.25573
A25: 16 | B25: ADANITRANS | C25: 567.2 | D25: 570.65 | E25: 557.55 | F25: 547.90 | G25: 534.80 | H25: 580.30 | I25: 593.40 | J25: 603.05 | K25: 583.75 | L25: 561 | M25: 7.05297
A26: 17 | B26: ABCAPITAL | C26: 89.15 | D26: 90.07 | E26: 87.73 | F26: 86.32 | G26: 83.98 | H26: 91.48 | I26: 93.82 | J26: 95.23 | K26: 92.4 | L26: 88.65 | M26: 27.39403
A27: 18 | B27: ABFRL | C27: 165.7 | D27: 167.65 | E27: 163.05 | F27: 160.40 | G27: 155.80 | H27: 170.30 | I27: 174.90 | J27: 177.55 | K27: 172.25 | L27: 165 | M27: 50.28652
A28: 19 | B28: AJANTPHARM | C28: 1807.3 | D28: 1812.97 | E28: 1796.93 | F28: 1786.57 | G28: 1770.53 | H28: 1823.33 | I28: 1839.37 | J28: 1849.73 | K28: 1829 | L28: 1802.6 | M28: 0.81303
A29: 20 | B29: APLLTD | C29: 936.45 | D29: 941.33 | E29: 928.12 | F29: 919.78 | G29: 906.57 | H29: 949.67 | I29: 962.88 | J29: 971.22 | K29: 954.55 | L29: 933 | M29: 3.07422
A30: 21 | B30: ALKEM | C30: 2875.5 | D30: 2878.22 | E30: 2835.28 | F30: 2795.07 | G30: 2752.13 | H30: 2918.43 | I30: 2961.37 | J30: 3001.58 | K30: 2921.15 | L30: 2838 | M30: 1.85904
A31: 22 | B31: AMARAJABAT | C31: 968.7 | D31: 976.25 | E31: 957.00 | F31: 945.30 | G31: 926.05 | H31: 987.95 | I31: 1007.20 | J31: 1018.90 | K31: 995.5 | L31: 964.55 | M31: 9.61015
A32: 23 | B32: AMBUJACEM | C32: 270.55 | D32: 273.28 | E32: 267.12 | F32: 263.68 | G32: 257.52 | H32: 276.72 | I32: 282.88 | J32: 286.32 | K32: 279.45 | L32: 269.85 | M32: 47.25675
A33: 24 | B33: APOLLOHOSP | C33: 2789.3 | D33: 2788.00 | E33: 2739.40 | F33: 2689.50 | G33: 2640.90 | H33: 2837.90 | I33: 2886.50 | J33: 2936.40 | K33: 2836.6 | L33: 2738.1 | M33: 10.5295
A34: 25 | B34: APOLLOTYRE | C34: 243.5 | D34: 245.22 | E34: 239.48 | F34: 235.47 | G34: 229.73 | H34: 249.23 | I34: 254.97 | J34: 258.98 | K34: 250.95 | L34: 241.2 | M34: 137.63979
A35: 26 | B35: ASHOKLEY | C35: 134.75 | D35: 135.18 | E35: 133.32 | F35: 131.88 | G35: 130.02 | H35: 136.62 | I35: 138.48 | J35: 139.92 | K35: 137.05 | L35: 133.75 | M35: 184.05405
A36: 27 | B36: ASIANPAINT | C36: 2506.85 | D36: 2487.65 | E36: 2442.85 | F36: 2378.85 | G36: 2334.05 | H36: 2551.65 | I36: 2596.45 | J36: 2660.45 | K36: 2532.45 | L36: 2423.65 | M36: 71.78572
A37: 28 | B37: AUROPHARMA | C37: 959.45 | D37: 962.12 | E37: 949.33 | F37: 939.22 | G37: 926.43 | H37: 972.23 | I37: 985.02 | J37: 995.13 | K37: 974.9 | L37: 952 | M37: 46.78065
A38: 29 | B38: DMART | C38: 2925 | D38: 2944.30 | E38: 2880.70 | F38: 2836.40 | G38: 2772.80 | H38: 2988.60 | I38: 3052.20 | J38: 3096.50 | K38: 3007.9 | L38: 2900 | M38: 2.8124
A39: 30 | B39: AXISBANK | C39: 742.5 | D39: 739.57 | E39: 729.13 | F39: 715.77 | G39: 705.33 | H39: 752.93 | I39: 763.37 | J39: 776.73 | K39: 750 | L39: 726.2 | M39: 223.07807
A40: 31 | B40: BAJAJ-AUTO | C40: 4154.9 | D40: 4179.30 | E40: 4120.60 | F40: 4086.30 | G40: 4027.60 | H40: 4213.60 | I40: 4272.30 | J40: 4306.60 | K40: 4238 | L40: 4145 | M40: 7.21336
A41: 32 | B41: BAJFINANCE | C41: 5400.3 | D41: 5440.63 | E41: 5342.27 | F41: 5284.23 | G41: 5185.87 | H41: 5498.67 | I41: 5597.03 | J41: 5655.07 | K41: 5539 | L41: 5382.6 | M41: 22.63904
A42: 33 | B42: BAJAJFINSV | C42: 9941.65 | D42: 9963.88 | E42: 9859.77 | F42: 9777.88 | G42: 9673.77 | H42: 10045.77 | I42: 10149.88 | J42: 10231.77 | K42: 10068 | L42: 9882 | M42: 5.12607
A43: 34 | B43: BAJAJHLDNG | C43: 3531.35 | D43: 3531.23 | E43: 3501.47 | F43: 3471.58 | G43: 3441.82 | H43: 3561.12 | I43: 3590.88 | J43: 3620.77 | K43: 3561 | L43: 3501.35 | M43: 0.37267
A44: 35 | B44: BALKRISIND | C44: 1656.55 | D44: 1726.18 | E44: 1577.37 | F44: 1498.18 | G44: 1349.37 | H44: 1805.37 | I44: 1954.18 | J44: 2033.37 | K44: 1875 | L44: 1647 | M44: 67.37946
A45: 36 | B45: BANDHANBNK | C45: 328.3 | D45: 328.08 | E45: 323.77 | F45: 319.23 | G45: 314.92 | H45: 332.62 | I45: 336.93 | J45: 341.47 | K45: 332.4 | L45: 323.55 | M45: 76.37014
A46: 37 | B46: BANKBARODA | C46: 80.2 | D46: 80.77 | E46: 78.38 | F46: 76.57 | G46: 74.18 | H46: 82.58 | I46: 84.97 | J46: 86.78 | K46: 83.15 | L46: 78.95 | M46: 565.2741
A47: 38 | B47: BANKINDIA | C47: 59.25 | D47: 59.53 | E47: 57.07 | F47: 54.88 | G47: 52.42 | H47: 61.72 | I47: 64.18 | J47: 66.37 | K47: 62 | L47: 57.35 | M47: 113.95962
A48: 39 | B48: BATAINDIA | C48: 1574.8 | D48: 1582.83 | E48: 1563.07 | F48: 1551.33 | G48: 1531.57 | H48: 1594.57 | I48: 1614.33 | J48: 1626.07 | K48: 1602.6 | L48: 1571.1 | M48: 5.19405
A49: 40 | B49: BERGEPAINT | C49: 762.15 | D49: 761.45 | E49: 753.40 | F49: 744.65 | G49: 736.60 | H49: 770.20 | I49: 778.25 | J49: 787.00 | K49: 769.5 | L49: 752.7 | M49: 27.18805
A50: 41 | B50: BEL | C50: 137.95 | D50: 139.12 | E50: 136.23 | F50: 134.52 | G50: 131.63 | H50: 140.83 | I50: 143.72 | J50: 145.43 | K50: 142 | L50: 137.4 | M50: 161.02258
A51: 42 | B51: BHARATFORG | C51: 645.3 | D51: 646.60 | E51: 637.55 | F51: 629.80 | G51: 620.75 | H51: 654.35 | I51: 663.40 | J51: 671.15 | K51: 655.65 | L51: 638.85 | M51: 34.22137
A52: 43 | B52: BHEL | C52: 38.75 | D52: 38.97 | E52: 38.18 | F52: 37.62 | G52: 36.83 | H52: 39.53 | I52: 40.32 | J52: 40.88 | K52: 39.75 | L52: 38.4 | M52: 496.01029
A53: 44 | B53: BPCL | C53: 419.35 | D53: 424.68 | E53: 411.32 | F53: 403.28 | G53: 389.92 | H53: 432.72 | I53: 446.08 | J53: 454.12 | K53: 438.05 | L53: 416.65 | M53: 225.77022
A54: 45 | B54: BHARTIARTL | C54: 598.95 | D54: 600.57 | E54: 593.38 | F54: 587.82 | G54: 580.63 | H54: 606.13 | I54: 613.32 | J54: 618.88 | K54: 607.75 | L54: 595 | M54: 205.41765
A55: 46 | B55: BIOCON | C55: 404.8 | D55: 405.85 | E55: 401.75 | F55: 398.70 | G55: 394.60 | H55: 408.90 | I55: 413.00 | J55: 416.05 | K55: 409.95 | L55: 402.8 | M55: 31.95358
A56: 47 | B56: BBTC | C56: 1239.9 | D56: 1240.65 | E56: 1232.50 | F56: 1225.10 | G56: 1216.95 | H56: 1248.05 | I56: 1256.20 | J56: 1263.60 | K56: 1248.8 | L56: 1233.25 | M56: 0.34605
A57: 48 | B57: BOSCHLTD | C57: 16323.75 | D57: 16431.92 | E57: 16091.83 | F57: 15859.92 | G57: 15519.83 | H57: 16663.83 | I57: 17003.92 | J57: 17235.83 | K57: 16772 | L57: 16200 | M57: 0.47103
A58: 49 | B58: BRITANNIA | C58: 3462.4 | D58: 3474.13 | E58: 3443.27 | F58: 3424.13 | G58: 3393.27 | H58: 3493.27 | I58: 3524.13 | J58: 3543.27 | K58: 3505 | L58: 3455 | M58: 9.51124
A59: 50 | B59: CESC | C59: 607.65 | D59: 608.95 | E59: 597.25 | F59: 586.85 | G59: 575.15 | H59: 619.35 | I59: 631.05 | J59: 641.45 | K59: 620.65 | L59: 598.55 | M59: 10.79026
A60: 51 | B60: CADILAHC | C60: 467.8 | D60: 470.55 | E60: 463.35 | F60: 458.90 | G60: 451.70 | H60: 475.00 | I60: 482.20 | J60: 486.65 | K60: 477.75 | L60: 466.1 | M60: 32.61845
A61: 52 | B61: CANBK | C61: 155.65 | D61: 157.50 | E61: 152.65 | F61: 149.65 | G61: 144.80 | H61: 160.50 | I61: 165.35 | J61: 168.35 | K61: 162.35 | L61: 154.5 | M61: 301.2506
A62: 53 | B62: CASTROLIND | C62: 130.4 | D62: 131.73 | E62: 127.97 | F62: 125.53 | G62: 121.77 | H62: 134.17 | I62: 137.93 | J62: 140.37 | K62: 135.5 | L62: 129.3 | M62: 27.14084
A63: 54 | B63: CHOLAFIN | C63: 459.05 | D63: 461.65 | E63: 452.40 | F63: 445.75 | G63: 436.50 | H63: 468.30 | I63: 477.55 | J63: 484.20 | K63: 470.9 | L63: 455 | M63: 40.83298
A64: 55 | B64: CIPLA | C64: 841.75 | D64: 845.87 | E64: 834.88 | F64: 828.02 | G64: 817.03 | H64: 852.73 | I64: 863.72 | J64: 870.58 | K64: 856.85 | L64: 839 | M64: 42.00281
A65: 56 | B65: CUB | C65: 166.65 | D65: 169.12 | E65: 163.78 | F65: 160.92 | G65: 155.58 | H65: 171.98 | I65: 177.32 | J65: 180.18 | K65: 174.45 | L65: 166.25 | M65: 40.55863
A66: 57 | B66: COALINDIA | C66: 139.25 | D66: 140.47 | E66: 137.48 | F66: 135.72 | G66: 132.73 | H66: 142.23 | I66: 145.22 | J66: 146.98 | K66: 143.45 | L66: 138.7 | M66: 85.79689
A67: 58 | B67: COFORGE | C67: 2543.65 | D67: 2571.52 | E67: 2499.13 | F67: 2454.62 | G67: 2382.23 | H67: 2616.03 | I67: 2688.42 | J67: 2732.93 | K67: 2643.9 | L67: 2527 | M67: 3.55183
A68: 59 | B68: COLPAL | C68: 1585.4 | D68: 1595.13 | E68: 1571.27 | F68: 1557.13 | G68: 1533.27 | H68: 1609.27 | I68: 1633.13 | J68: 1647.27 | K68: 1619 | L68: 1581 | M68: 6.31437
A69: 60 | B69: CONCOR | C69: 502.25 | D69: 503.27 | E69: 497.63 | F69: 493.02 | G69: 487.38 | H69: 507.88 | I69: 513.52 | J69: 518.13 | K69: 508.9 | L69: 498.65 | M69: 26.45701
A70: 61 | B70: COROMANDEL | C70: 770.1 | D70: 773.42 | E70: 762.83 | F70: 755.57 | G70: 744.98 | H70: 780.68 | I70: 791.27 | J70: 798.53 | K70: 784 | L70: 766.15 | M70: 2.90852
A71: 62 | B71: CROMPTON | C71: 406.5 | D71: 404.77 | E71: 399.03 | F71: 391.57 | G71: 385.83 | H71: 412.23 | I71: 417.97 | J71: 425.43 | K71: 410.5 | L71: 397.3 | M71: 68.43035
A72: 63 | B72: CUMMINSIND | C72: 774.1 | D72: 778.32 | E72: 764.83 | F72: 755.57 | G72: 742.08 | H72: 787.58 | I72: 801.07 | J72: 810.33 | K72: 791.8 | L72: 769.05 | M72: 5.15443
A73: 64 | B73: DLF | C73: 307 | D73: 310.73 | E73: 300.47 | F73: 293.93 | G73: 283.67 | H73: 317.27 | I73: 327.53 | J73: 334.07 | K73: 321 | L73: 304.2 | M73: 215.72096
A74: 65 | B74: DABUR | C74: 525.15 | D74: 525.40 | E74: 518.75 | F74: 512.35 | G74: 505.70 | H74: 531.80 | I74: 538.45 | J74: 544.85 | K74: 532.05 | L74: 519 | M74: 42.81247
A75: 66 | B75: DALBHARAT | C75: 1348.8 | D75: 1334.78 | E75: 1317.57 | F75: 1286.33 | G75: 1269.12 | H75: 1366.02 | I75: 1383.23 | J75: 1414.47 | K75: 1352 | L75: 1303.55 | M75: 4.12384
A76: 67 | B76: DHANI | C76: 343.8 | D76: 343.28 | E76: 338.57 | F76: 333.33 | G76: 328.62 | H76: 348.52 | I76: 353.23 | J76: 358.47 | K76: 348 | L76: 338.05 | M76: 3.97073
A77: 68 | B77: DIVISLAB | C77: 3722.75 | D77: 3756.35 | E77: 3671.45 | F77: 3620.15 | G77: 3535.25 | H77: 3807.65 | I77: 3892.55 | J77: 3943.85 | K77: 3841.25 | L77: 3705.05 | M77: 13.19497
A78: 69 | B78: LALPATHLAB | C78: 2408.65 | D78: 2417.67 | E78: 2379.98 | F78: 2351.32 | G78: 2313.63 | H78: 2446.33 | I78: 2484.02 | J78: 2512.68 | K78: 2455.35 | L78: 2389 | M78: 0.60826
A79: 70 | B79: DRREDDY | C79: 4844.1 | D79: 4848.27 | E79: 4800.83 | F79: 4757.57 | G79: 4710.13 | H79: 4891.53 | I79: 4938.97 | J79: 4982.23 | K79: 4895.7 | L79: 4805 | M79: 12.46769
A80: 71 | B80: EDELWEISS | C80: 64.9 | D80: 65.62 | E80: 63.83 | F80: 62.77 | G80: 60.98 | H80: 66.68 | I80: 68.47 | J80: 69.53 | K80: 67.4 | L80: 64.55 | M80: 9.6762
A81: 72 | B81: EICHERMOT | C81: 2947.65 | D81: 2967.23 | E81: 2916.47 | F81: 2885.28 | G81: 2834.52 | H81: 2998.42 | I81: 3049.18 | J81: 3080.37 | K81: 3018 | L81: 2936.05 | M81: 11.27584
A82: 73 | B82: EMAMILTD | C82: 490.6 | D82: 495.27 | E82: 481.58 | F82: 472.57 | G82: 458.88 | H82: 504.28 | I82: 517.97 | J82: 526.98 | K82: 508.95 | L82: 486.25 | M82: 6.27429
A83: 74 | B83: ENDURANCE | C83: 1470.15 | D83: 1470.00 | E83: 1456.50 | F83: 1442.85 | G83: 1429.35 | H83: 1483.65 | I83: 1497.15 | J83: 1510.80 | K83: 1483.5 | L83: 1456.35 | M83: 0.69279
A84: 75 | B84: ESCORTS | C84: 1427.35 | D84: 1438.63 | E84: 1408.82 | F84: 1390.28 | G84: 1360.47 | H84: 1457.17 | I84: 1486.98 | J84: 1505.52 | K84: 1468.45 | L84: 1420.1 | M84: 21.79561
A85: 76 | B85: EXIDEIND | C85: 211.45 | D85: 213.62 | E85: 207.93 | F85: 204.42 | G85: 198.73 | H85: 217.13 | I85: 222.82 | J85: 226.33 | K85: 219.3 | L85: 210.1 | M85: 100.4317
A86: 77 | B86: FEDERALBNK | C86: 82.95 | D86: 83.47 | E86: 81.48 | F86: 80.02 | G86: 78.03 | H86: 84.93 | I86: 86.92 | J86: 88.38 | K86: 85.45 | L86: 82 | M86: 270.21814
A87: 78 | B87: FORTIS | C87: 173.95 | D87: 174.05 | E87: 168.70 | F87: 163.45 | G87: 158.10 | H87: 179.30 | I87: 184.65 | J87: 189.90 | K87: 179.4 | L87: 168.8 | M87: 66.10807
A88: 79 | B88: FRETAIL | C88: 80.5 | D88: 79.67 | E88: 78.83 | F88: 77.17 | G88: 76.33 | H88: 81.33 | I88: 82.17 | J88: 83.83 | K88: 80.5 | L88: 78 | M88: 135.28174
A89: 80 | B89: GAIL | C89: 131.05 | D89: 131.73 | E89: 130.02 | F89: 128.98 | G89: 127.27 | H89: 132.77 | I89: 134.48 | J89: 135.52 | K89: 133.45 | L89: 130.7 | M89: 152.32082
A90: 81 | B90: GMRINFRA | C90: 26.45 | D90: 26.58 | E90: 26.12 | F90: 25.78 | G90: 25.32 | H90: 26.92 | I90: 27.38 | J90: 27.72 | K90: 27.05 | L90: 26.25 | M90: 143.50148
A91: 82 | B91: GICRE | C91: 134.8 | D91: 136.08 | E91: 133.22 | F91: 131.63 | G91: 128.77 | H91: 137.67 | I91: 140.53 | J91: 142.12 | K91: 138.95 | L91: 134.5 | M91: 6.90092
A92: 83 | B92: GLENMARK | C92: 501.35 | D92: 504.53 | E92: 495.82 | F92: 490.28 | G92: 481.57 | H92: 510.07 | I92: 518.78 | J92: 524.32 | K92: 513.25 | L92: 499 | M92: 23.03479
A93: 84 | B93: GODREJAGRO | C93: 491.8 | D93: 496.97 | E93: 484.93 | F93: 478.07 | G93: 466.03 | H93: 503.83 | I93: 515.87 | J93: 522.73 | K93: 509 | L93: 490.1 | M93: 2.91119
A94: 85 | B94: GODREJCP | C94: 743.6 | D94: 735.67 | E94: 722.93 | F94: 702.27 | G94: 689.53 | H94: 756.33 | I94: 769.07 | J94: 789.73 | K94: 748.4 | L94: 715 | M94: 24.19027
A95: 86 | B95: GODREJIND | C95: 452.8 | D95: 453.38 | E95: 446.77 | F95: 440.73 | G95: 434.12 | H95: 459.42 | I95: 466.03 | J95: 472.07 | K95: 460 | L95: 447.35 | M95: 1.32152
A96: 87 | B96: GODREJPROP | C96: 1424.6 | D96: 1434.02 | E96: 1406.03 | F96: 1387.47 | G96: 1359.48 | H96: 1452.58 | I96: 1480.57 | J96: 1499.13 | K96: 1462 | L96: 1415.45 | M96: 10.5593
A97: 88 | B97: GRASIM | C97: 1217.95 | D97: 1216.15 | E97: 1205.80 | F97: 1193.65 | G97: 1183.30 | H97: 1228.30 | I97: 1238.65 | J97: 1250.80 | K97: 1226.5 | L97: 1204 | M97: 17.27089
A98: 89 | B98: GUJGASLTD | C98: 461.85 | D98: 458.62 | E98: 440.23 | F98: 418.62 | G98: 400.23 | H98: 480.23 | I98: 498.62 | J98: 520.23 | K98: 477 | L98: 437 | M98: 57.78874
A99: 90 | B99: GSPL | C99: 221.95 | D99: 219.47 | E99: 215.58 | F99: 209.22 | G99: 205.33 | H99: 225.83 | I99: 229.72 | J99: 236.08 | K99: 223.35 | L99: 213.1 | M99: 31.14588
A100: 91 | B100: HCLTECH | C100: 951.6 | D100: 960.03 | E100: 938.17 | F100: 924.73 | G100: 902.87 | H100: 973.47 | I100: 995.33 | J100: 1008.77 | K100: 981.9 | L100: 946.6 | M100: 75.57977
A101: 92 | B101: HDFCAMC | C101: 3010.3 | D101: 3037.07 | E101: 2965.18 | F101: 2920.07 | G101: 2848.18 | H101: 3082.18 | I101: 3154.07 | J101: 3199.18 | K101: 3108.95 | L101: 2991.95 | M101: 3.12441
A102: 93 | B102: HDFCBANK | C102: 1611.85 | D102: 1608.85 | E102: 1589.70 | F102: 1567.55 | G102: 1548.40 | H102: 1631.00 | I102: 1650.15 | J102: 1672.30 | K102: 1628 | L102: 1586.7 | M102: 92.10683
A103: 94 | B103: HDFCLIFE | C103: 704.9 | D103: 701.02 | E103: 691.83 | F103: 678.77 | G103: 669.58 | H103: 714.08 | I103: 723.27 | J103: 736.33 | K103: 710.2 | L103: 687.95 | M103: 73.31068
A104: 95 | B104: HAVELLS | C104: 1139.1 | D104: 1146.25 | E104: 1122.85 | F104: 1106.60 | G104: 1083.20 | H104: 1162.50 | I104: 1185.90 | J104: 1202.15 | K104: 1169.65 | L104: 1130 | M104: 31.83233
A105: 96 | B105: HEROMOTOCO | C105: 3499.45 | D105: 3497.93 | E105: 3457.87 | F105: 3416.28 | G105: 3376.22 | H105: 3539.52 | I105: 3579.58 | J105: 3621.17 | K105: 3538 | L105: 3456.35 | M105: 15.43021
A106: 97 | B106: HINDALCO | C106: 278.05 | D106: 279.87 | E106: 273.83 | F106: 269.62 | G106: 263.58 | H106: 284.08 | I106: 290.12 | J106: 294.33 | K106: 285.9 | L106: 275.65 | M106: 220.66741
A107: 98 | B107: HINDPETRO | C107: 226.55 | D107: 228.18 | E107: 223.62 | F107: 220.68 | G107: 216.12 | H107: 231.12 | I107: 235.68 | J107: 238.62 | K107: 232.75 | L107: 225.25 | M107: 68.48831
A108: 99 | B108: HINDUNILVR | C108: 2216.25 | D108: 2227.15 | E108: 2199.60 | F108: 2182.95 | G108: 2155.40 | H108: 2243.80 | I108: 2271.35 | J108: 2288.00 | K108: 2254.7 | L108: 2210.5 | M108: 31.31481
A109: 100 | B109: HINDZINC | C109: 297.15 | D109: 297.63 | E109: 293.52 | F109: 289.88 | G109: 285.77 | H109: 301.27 | I109: 305.38 | J109: 309.02 | K109: 301.75 | L109: 294 | M109: 8.79542
A110: 101 | B110: HUDCO | C110: 43.05 | D110: 43.12 | E110: 42.23 | F110: 41.42 | G110: 40.53 | H110: 43.93 | I110: 44.82 | J110: 45.63 | K110: 44 | L110: 42.3 | M110: 14.88416
A111: 102 | B111: HDFC | C111: 2747.05 | D111: 2747.17 | E111: 2710.33 | F111: 2673.62 | G111: 2636.78 | H111: 2783.88 | I111: 2820.72 | J111: 2857.43 | K111: 2784 | L111: 2710.45 | M111: 55.86584
A112: 103 | B112: ICICIBANK | C112: 633.35 | D112: 635.05 | E112: 626.90 | F112: 620.45 | G112: 612.30 | H112: 641.50 | I112: 649.65 | J112: 656.10 | K112: 643.2 | L112: 628.6 | M112: 271.55615
A113: 104 | B113: ICICIGI | C113: 1512.8 | D113: 1501.20 | E113: 1467.40 | F113: 1422.00 | G113: 1388.20 | H113: 1546.60 | I113: 1580.40 | J113: 1625.80 | K113: 1535 | L113: 1455.8 | M113: 13.12996
A114: 105 | B114: ICICIPRULI | C114: 476.85 | D114: 478.33 | E114: 471.77 | F114: 466.68 | G114: 460.12 | H114: 483.42 | I114: 489.98 | J114: 495.07 | K114: 484.9 | L114: 473.25 | M114: 27.23616
A115: 106 | B115: ISEC | C115: 408.25 | D115: 410.38 | E115: 405.17 | F115: 402.08 | G115: 396.87 | H115: 413.47 | I115: 418.68 | J115: 421.77 | K115: 415.6 | L115: 407.3 | M115: 4.27906
A116: 107 | B116: IDFCFIRSTB | C116: 50 | D116: 50.17 | E116: 48.13 | F116: 46.27 | G116: 44.23 | H116: 52.03 | I116: 54.07 | J116: 55.93 | K116: 52.2 | L116: 48.3 | M116: 796.00142
A117: 108 | B117: ITC | C117: 229 | D117: 232.13 | E117: 225.07 | F117: 221.13 | G117: 214.07 | H117: 236.07 | I117: 243.13 | J117: 247.07 | K117: 239.2 | L117: 228.2 | M117: 706.55961
A118: 109 | B118: IBULHSGFIN | C118: 218.85 | D118: 219.53 | E118: 213.77 | F118: 208.68 | G118: 202.92 | H118: 224.62 | I118: 230.38 | J118: 235.47 | K118: 225.3 | L118: 214.45 | M118: 163.81708
A119: 110 | B119: INDHOTEL | C119: 124.35 | D119: 124.97 | E119: 122.23 | F119: 120.12 | G119: 117.38 | H119: 127.08 | I119: 129.82 | J119: 131.93 | K119: 127.7 | L119: 122.85 | M119: 41.04399
A120: 111 | B120: IOC | C120: 97.7 | D120: 98.17 | E120: 96.53 | F120: 95.37 | G120: 93.73 | H120: 99.33 | I120: 100.97 | J120: 102.13 | K120: 99.8 | L120: 97 | M120: 479.11877
A121: 112 | B121: IRCTC | C121: 1641.75 | D121: 1640.88 | E121: 1592.87 | F121: 1543.98 | G121: 1495.97 | H121: 1689.77 | I121: 1737.78 | J121: 1786.67 | K121: 1688.9 | L121: 1592 | M121: 53.15247
A122: 113 | B122: IGL | C122: 556.8 | D122: 555.82 | E122: 546.63 | F122: 536.47 | G122: 527.28 | H122: 565.98 | I122: 575.17 | J122: 585.33 | K122: 565 | L122: 545.65 | M122: 37.35963
A123: 114 | B123: INDUSTOWER | C123: 253.7 | D123: 253.07 | E123: 242.73 | F123: 231.77 | G123: 221.43 | H123: 264.03 | I123: 274.37 | J123: 285.33 | K123: 263.4 | L123: 242.1 | M123: 215.0247
A124: 115 | B124: INDUSINDBK | C124: 1025.8 | D124: 1032.47 | E124: 1013.33 | F124: 1000.87 | G124: 981.73 | H124: 1044.93 | I124: 1064.07 | J124: 1076.53 | K124: 1051.6 | L124: 1020 | M124: 79.84133
A125: 116 | B125: NAUKRI | C125: 4969.4 | D125: 5010.63 | E125: 4883.32 | F125: 4797.23 | G125: 4669.92 | H125: 5096.72 | I125: 5224.03 | J125: 5310.12 | K125: 5137.95 | L125: 4924.55 | M125: 5.03977
A126: 117 | B126: INFY | C126: 1305.55 | D126: 1311.80 | E126: 1291.60 | F126: 1277.65 | G126: 1257.45 | H126: 1325.75 | I126: 1345.95 | J126: 1359.90 | K126: 1332 | L126: 1297.85 | M126: 79.65949
A127: 118 | B127: INDIGO | C127: 1662.05 | D127: 1674.25 | E127: 1640.50 | F127: 1618.95 | G127: 1585.20 | H127: 1695.80 | I127: 1729.55 | J127: 1751.10 | K127: 1708 | L127: 1652.7 | M127: 6.14345
A128: 119 | B128: IPCALAB | C128: 1975.9 | D128: 1970.68 | E128: 1946.37 | F128: 1916.83 | G128: 1892.52 | H128: 2000.22 | I128: 2024.53 | J128: 2054.07 | K128: 1995 | L128: 1941.15 | M128: 3.2502
A129: 120 | B129: JSWENERGY | C129: 70.55 | D129: 71.32 | E129: 69.23 | F129: 67.92 | G129: 65.83 | H129: 72.63 | I129: 74.72 | J129: 76.03 | K129: 73.4 | L129: 70 | M129: 28.23816
A130: 121 | B130: JSWSTEEL | C130: 406.45 | D130: 409.43 | E130: 398.87 | F130: 391.28 | G130: 380.72 | H130: 417.02 | I130: 427.58 | J130: 435.17 | K130: 420 | L130: 401.85 | M130: 79.61747
A131: 122 | B131: JINDALSTEL | C131: 309.75 | D131: 310.62 | E131: 303.98 | F131: 298.22 | G131: 291.58 | H131: 316.38 | I131: 323.02 | J131: 328.78 | K131: 317.25 | L131: 304.85 | M131: 172.42835
A132: 123 | B132: JUBLFOOD | C132: 2802 | D132: 2800.77 | E132: 2777.43 | F132: 2752.87 | G132: 2729.53 | H132: 2825.33 | I132: 2848.67 | J132: 2873.23 | K132: 2824.1 | L132: 2776.2 | M132: 5.60008
A133: 124 | B133: KOTAKBANK | C133: 1949.15 | D133: 1954.00 | E133: 1933.00 | F133: 1916.85 | G133: 1895.85 | H133: 1970.15 | I133: 1991.15 | J133: 2007.30 | K133: 1975 | L133: 1937.85 | M133: 22.30923
A134: 125 | B134: L&TFH | C134: 88.55 | D134: 89.10 | E134: 87.50 | F134: 86.45 | G134: 84.85 | H134: 90.15 | I134: 91.75 | J134: 92.80 | K134: 90.7 | L134: 88.05 | M134: 123.75514
A135: 126 | B135: LTTS | C135: 2668.7 | D135: 2680.23 | E135: 2640.47 | F135: 2612.23 | G135: 2572.47 | H135: 2708.47 | I135: 2748.23 | J135: 2776.47 | K135: 2720 | L135: 2652 | M135: 1.04489
A136: 127 | B136: LICHSGFIN | C136: 438.9 | D136: 439.90 | E136: 433.50 | F136: 428.10 | G136: 421.70 | H136: 445.30 | I136: 451.70 | J136: 457.10 | K136: 446.3 | L136: 434.5 | M136: 40.88716
A137: 128 | B137: LTI | C137: 4067.8 | D137: 4094.68 | E137: 4019.52 | F137: 3971.23 | G137: 3896.07 | H137: 4142.97 | I137: 4218.13 | J137: 4266.42 | K137: 4169.85 | L137: 4046.4 | M137: 0.90282
A138: 129 | B138: LT | C138: 1566.45 | D138: 1561.98 | E138: 1549.47 | F138: 1532.48 | G138: 1519.97 | H138: 1578.97 | I138: 1591.48 | J138: 1608.47 | K138: 1574.5 | L138: 1545 | M138: 38.25206
A139: 130 | B139: LUPIN | C139: 1058.3 | D139: 1063.77 | E139: 1047.53 | F139: 1036.77 | G139: 1020.53 | H139: 1074.53 | I139: 1090.77 | J139: 1101.53 | K139: 1080 | L139: 1053 | M139: 13.92375
A140: 131 | B140: MRF | C140: 93597.9 | D140: 92898.97 | E140: 91098.93 | F140: 88599.97 | G140: 86799.93 | H140: 95397.93 | I140: 97197.97 | J140: 99696.93 | K140: 94699 | L140: 90400 | M140: 0.69603
A141: 132 | B141: MGL | C141: 1140.05 | D141: 1132.82 | E141: 1110.98 | F141: 1081.92 | G141: 1060.08 | H141: 1161.88 | I141: 1183.72 | J141: 1212.78 | K141: 1154.65 | L141: 1103.75 | M141: 14.83268
A142: 133 | B142: M&MFIN | C142: 183.8 | D142: 183.78 | E142: 180.82 | F142: 177.83 | G142: 174.87 | H142: 186.77 | I142: 189.73 | J142: 192.72 | K142: 186.75 | L142: 180.8 | M142: 57.8273
A143: 134 | B143: M&M | C143: 895 | D143: 906.40 | E143: 873.80 | F143: 852.60 | G143: 820.00 | H143: 927.60 | I143: 960.20 | J143: 981.40 | K143: 939 | L143: 885.2 | M143: 92.10613
A144: 135 | B144: MANAPPURAM | C144: 173.1 | D144: 173.80 | E144: 171.40 | F144: 169.70 | G144: 167.30 | H144: 175.50 | I144: 177.90 | J144: 179.60 | K144: 176.2 | L144: 172.1 | M144: 39.60788
A145: 136 | B145: MARICO | C145: 412.85 | D145: 414.53 | E145: 410.07 | F145: 407.28 | G145: 402.82 | H145: 417.32 | I145: 421.78 | J145: 424.57 | K145: 419 | L145: 411.75 | M145: 15.96161
A146: 137 | B146: MARUTI | C146: 7627.05 | D146: 7627.02 | E146: 7574.03 | F146: 7521.02 | G146: 7468.03 | H146: 7680.03 | I146: 7733.02 | J146: 7786.03 | K146: 7680 | L146: 7574 | M146: 9.25127
A147: 138 | B147: MFSL | C147: 738.05 | D147: 735.73 | E147: 720.67 | F147: 703.28 | G147: 688.22 | H147: 753.12 | I147: 768.18 | J147: 785.57 | K147: 750.8 | L147: 718.35 | M147: 21.05126
A148: 139 | B148: MINDTREE | C148: 1714.45 | D148: 1723.18 | E148: 1696.92 | F148: 1679.38 | G148: 1653.12 | H148: 1740.72 | I148: 1766.98 | J148: 1784.52 | K148: 1749.45 | L148: 1705.65 | M148: 4.3184
A149: 140 | B149: MOTHERSUMI | C149: 161.65 | D149: 162.47 | E149: 159.43 | F149: 157.22 | G149: 154.18 | H149: 164.68 | I149: 167.72 | J149: 169.93 | K149: 165.5 | L149: 160.25 | M149: 129.00556
A150: 141 | B150: MPHASIS | C150: 1647.2 | D150: 1649.08 | E150: 1623.27 | F150: 1599.33 | G150: 1573.52 | H150: 1673.02 | I150: 1698.83 | J150: 1722.77 | K150: 1674.9 | L150: 1625.15 | M150: 3.29026
A151: 142 | B151: MUTHOOTFIN | C151: 1186.6 | D151: 1196.65 | E151: 1168.30 | F151: 1150.00 | G151: 1121.65 | H151: 1214.95 | I151: 1243.30 | J151: 1261.60 | K151: 1225 | L151: 1178.35 | M151: 46.47756
A152: 143 | B152: NATCOPHARM | C152: 900.75 | D152: 904.43 | E152: 893.32 | F152: 885.88 | G152: 874.77 | H152: 911.87 | I152: 922.98 | J152: 930.42 | K152: 915.55 | L152: 897 | M152: 1.95941
A153: 144 | B153: NMDC | C153: 116.75 | D153: 118.62 | E153: 113.68 | F153: 110.62 | G153: 105.68 | H153: 121.68 | I153: 126.62 | J153: 129.68 | K153: 123.55 | L153: 115.55 | M153: 292.84841
A154: 145 | B154: NTPC | C154: 99.95 | D154: 100.22 | E154: 99.23 | F154: 98.52 | G154: 97.53 | H154: 100.93 | I154: 101.92 | J154: 102.63 | K154: 101.2 | L154: 99.5 | M154: 280.74809
A155: 146 | B155: NATIONALUM | C155: 49.15 | D155: 49.60 | E155: 48.45 | F155: 47.75 | G155: 46.60 | H155: 50.30 | I155: 51.45 | J155: 52.15 | K155: 50.75 | L155: 48.9 | M155: 272.87467
A156: 147 | B156: NAVINFLUOR | C156: 2523.75 | D156: 2523.62 | E156: 2497.78 | F156: 2471.82 | G156: 2445.98 | H156: 2549.58 | I156: 2575.42 | J156: 2601.38 | K156: 2549.45 | L156: 2497.65 | M156: 0.55862
A157: 148 | B157: NESTLEIND | C157: 17318.95 | D157: 17326.32 | E157: 17142.63 | F157: 16966.32 | G157: 16782.63 | H157: 17502.63 | I157: 17686.32 | J157: 17862.63 | K157: 17510 | L157: 17150 | M157: 1.21012
A158: 149 | B158: NAM-INDIA | C158: 327.2 | D158: 328.32 | E158: 323.88 | F158: 320.57 | G158: 316.13 | H158: 331.63 | I158: 336.07 | J158: 339.38 | K158: 332.75 | L158: 325 | M158: 8.89435
A159: 150 | B159: OBEROIRLTY | C159: 566.9 | D159: 567.92 | E159: 561.93 | F159: 556.97 | G159: 550.98 | H159: 572.88 | I159: 578.87 | J159: 583.83 | K159: 573.9 | L159: 562.95 | M159: 2.88548
A160: 151 | B160: ONGC | C160: 101 | D160: 101.38 | E160: 99.42 | F160: 97.83 | G160: 95.87 | H160: 102.97 | I160: 104.93 | J160: 106.52 | K160: 103.35 | L160: 99.8 | M160: 396.38657
A161: 152 | B161: OIL | C161: 119.95 | D161: 119.95 | E161: 118.55 | F161: 117.15 | G161: 115.75 | H161: 121.35 | I161: 122.75 | J161: 124.15 | K161: 121.35 | L161: 118.55 | M161: 18.31871
A162: 153 | B162: OFSS | C162: 3230.95 | D162: 3236.90 | E162: 3206.05 | F162: 3181.15 | G162: 3150.30 | H162: 3261.80 | I162: 3292.65 | J162: 3317.55 | K162: 3267.75 | L162: 3212 | M162: 0.26432
A163: 154 | B163: PIIND | C163: 2222.8 | D163: 2225.90 | E163: 2196.90 | F163: 2171.00 | G163: 2142.00 | H163: 2251.80 | I163: 2280.80 | J163: 2306.70 | K163: 2254.9 | L163: 2200 | M163: 5.38995
A164: 155 | B164: PAGEIND | C164: 30302.1 | D164: 30070.53 | E164: 29564.67 | F164: 28827.23 | G164: 28321.37 | H164: 30807.97 | I164: 31313.83 | J164: 32051.27 | K164: 30576.4 | L164: 29333.1 | M164: 0.58304
A165: 156 | B165: PETRONET | C165: 242.35 | D165: 243.20 | E165: 240.95 | F165: 239.55 | G165: 237.30 | H165: 244.60 | I165: 246.85 | J165: 248.25 | K165: 245.45 | L165: 241.8 | M165: 38.24465
A166: 157 | B166: PFIZER | C166: 4458.15 | D166: 4477.08 | E166: 4431.07 | F166: 4403.98 | G166: 4357.97 | H166: 4504.17 | I166: 4550.18 | J166: 4577.27 | K166: 4523.1 | L166: 4450 | M166: 0.56513
A167: 158 | B167: PIDILITIND | C167: 1762.05 | D167: 1765.05 | E167: 1732.10 | F167: 1702.15 | G167: 1669.20 | H167: 1795.00 | I167: 1827.95 | J167: 1857.90 | K167: 1798 | L167: 1735.1 | M167: 13.67744
A168: 159 | B168: PEL | C168: 1579.25 | D168: 1580.40 | E168: 1553.85 | F168: 1528.45 | G168: 1501.90 | H168: 1605.80 | I168: 1632.35 | J168: 1657.75 | K168: 1606.95 | L168: 1555 | M168: 10.59988
A169: 160 | B169: POLYCAB | C169: 1297.15 | D169: 1304.10 | E169: 1283.25 | F169: 1269.35 | G169: 1248.50 | H169: 1318.00 | I169: 1338.85 | J169: 1352.75 | K169: 1324.95 | L169: 1290.2 | M169: 1.34094
A170: 161 | B170: PFC | C170: 125.95 | D170: 126.55 | E170: 124.60 | F170: 123.25 | G170: 121.30 | H170: 127.90 | I170: 129.85 | J170: 131.20 | K170: 128.5 | L170: 125.2 | M170: 53.35432
A171: 162 | B171: POWERGRID | C171: 210.75 | D171: 212.73 | E171: 208.02 | F171: 205.28 | G171: 200.57 | H171: 215.47 | I171: 220.18 | J171: 222.92 | K171: 217.45 | L171: 210 | M171: 156.02724
A172: 163 | B172: PRESTIGE | C172: 282.65 | D172: 284.90 | E172: 279.30 | F172: 275.95 | G172: 270.35 | H172: 288.25 | I172: 293.85 | J172: 297.20 | K172: 290.5 | L172: 281.55 | M172: 4.78569
A173: 164 | B173: PGHH | C173: 12762.95 | D173: 12827.78 | E173: 12670.17 | F173: 12577.38 | G173: 12419.77 | H173: 12920.57 | I173: 13078.18 | J173: 13170.97 | K173: 12985.4 | L173: 12735 | M173: 0.39465
A174: 165 | B174: PNB | C174: 39.05 | D174: 39.15 | E174: 37.25 | F174: 35.45 | G174: 33.55 | H174: 40.95 | I174: 42.85 | J174: 44.65 | K174: 41.05 | L174: 37.35 | M174: 3766.25747
A175: 166 | B175: RBLBANK | C175: 246.35 | D175: 246.82 | E175: 242.78 | F175: 239.22 | G175: 235.18 | H175: 250.38 | I175: 254.42 | J175: 257.98 | K175: 250.85 | L175: 243.25 | M175: 123.09755
A176: 167 | B176: RECLTD | C176: 146.55 | D176: 147.48 | E176: 144.67 | F176: 142.78 | G176: 139.97 | H176: 149.37 | I176: 152.18 | J176: 154.07 | K176: 150.3 | L176: 145.6 | M176: 62.5208
A177: 168 | B177: RAJESHEXPO | C177: 482.95 | D177: 484.58 | E177: 477.17 | F177: 471.38 | G177: 463.97 | H177: 490.37 | I177: 497.78 | J177: 503.57 | K177: 492 | L177: 478.8 | M177: 3.96615
A178: 169 | B178: RELIANCE | C178: 1956.15 | D178: 1966.02 | E178: 1942.43 | F178: 1928.72 | G178: 1905.13 | H178: 1979.73 | I178: 2003.32 | J178: 2017.03 | K178: 1989.6 | L178: 1952.3 | M178: 90.47308
A179: 170 | B179: SBICARD | C179: 1014.7 | D179: 1010.48 | E179: 989.22 | F179: 963.73 | G179: 942.47 | H179: 1035.97 | I179: 1057.23 | J179: 1082.72 | K179: 1031.75 | L179: 985 | M179: 22.73388
A180: 171 | B180: SBILIFE | C180: 888.7 | D180: 882.23 | E180: 869.47 | F180: 850.23 | G180: 837.47 | H180: 901.47 | I180: 914.23 | J180: 933.47 | K180: 895 | L180: 863 | M180: 43.11868
A181: 172 | B181: SRF | C181: 5527.1 | D181: 5576.27 | E181: 5458.83 | F181: 5390.57 | G181: 5273.13 | H181: 5644.53 | I181: 5761.97 | J181: 5830.23 | K181: 5693.7 | L181: 5508 | M181: 1.24387
A182: 173 | B182: SANOFI | C182: 7962.2 | D182: 7946.07 | E182: 7903.78 | F182: 7845.37 | G182: 7803.08 | H182: 8004.48 | I182: 8046.77 | J182: 8105.18 | K182: 7988.35 | L182: 7887.65 | M182: 0.35555
A183: 174 | B183: SHREECEM | C183: 28165.8 | D183: 28041.67 | E183: 27484.23 | F183: 26802.67 | G183: 26245.23 | H183: 28723.23 | I183: 29280.67 | J183: 29962.23 | K183: 28599.1 | L183: 27360.1 | M183: 1.37375
A184: 175 | B184: SRTRANSFIN | C184: 1413.1 | D184: 1415.62 | E184: 1387.48 | F184: 1361.87 | G184: 1333.73 | H184: 1441.23 | I184: 1469.37 | J184: 1494.98 | K184: 1443.75 | L184: 1390 | M184: 22.18783
A185: 176 | B185: SIEMENS | C185: 1852.4 | D185: 1865.13 | E185: 1830.27 | F185: 1808.13 | G185: 1773.27 | H185: 1887.27 | I185: 1922.13 | J185: 1944.27 | K185: 1900 | L185: 1843 | M185: 3.0751
A186: 177 | B186: SBIN | C186: 394.8 | D186: 395.77 | E186: 388.03 | F186: 381.27 | G186: 373.53 | H186: 402.53 | I186: 410.27 | J186: 417.03 | K186: 403.5 | L186: 389 | M186: 638.6999
A187: 178 | B187: SAIL | C187: 66.75 | D187: 67.05 | E187: 65.25 | F187: 63.75 | G187: 61.95 | H187: 68.55 | I187: 70.35 | J187: 71.85 | K187: 68.85 | L187: 65.55 | M187: 646.88675
A188: 179 | B188: SUNPHARMA | C188: 623.6 | D188: 627.95 | E188: 616.65 | F188: 609.70 | G188: 598.40 | H188: 634.90 | I188: 646.20 | J188: 653.15 | K188: 639.25 | L188: 621 | M188: 57.94015
A189: 180 | B189: SUNTV | C189: 528.2 | D189: 530.00 | E189: 511.60 | F189: 495.00 | G189: 476.60 | H189: 546.60 | I189: 565.00 | J189: 581.60 | K189: 548.4 | L189: 513.4 | M189: 110.75085
A190: 181 | B190: SYNGENE | C190: 584.5 | D190: 582.50 | E190: 575.00 | F190: 565.50 | G190: 558.00 | H190: 592.00 | I190: 599.50 | J190: 609.00 | K190: 590 | L190: 573 | M190: 3.23091
A191: 182 | B191: TVSMOTOR | C191: 650.1 | D191: 650.53 | E191: 641.17 | F191: 632.23 | G191: 622.87 | H191: 659.47 | I191: 668.83 | J191: 677.77 | K191: 659.9 | L191: 641.6 | M191: 42.38824
A192: 183 | B192: TATACHEM | C192: 571.95 | D192: 564.42 | E192: 542.08 | F192: 512.22 | G192: 489.88 | H192: 594.28 | I192: 616.62 | J192: 646.48 | K192: 586.75 | L192: 534.55 | M192: 193.08883
A193: 184 | B193: TCS | C193: 3176.9 | D193: 3195.57 | E193: 3145.33 | F193: 3113.77 | G193: 3063.53 | H193: 3227.13 | I193: 3277.37 | J193: 3308.93 | K193: 3245.8 | L193: 3164 | M193: 26.58751
A194: 185 | B194: TATACONSUM | C194: 598.7 | D194: 600.25 | E194: 593.00 | F194: 587.30 | G194: 580.05 | H194: 605.95 | I194: 613.20 | J194: 618.90 | K194: 607.5 | L194: 594.55 | M194: 30.72281
A195: 186 | B195: TATAMOTORS | C195: 325.05 | D195: 328.58 | E195: 318.67 | F195: 312.28 | G195: 302.37 | H195: 334.97 | I195: 344.88 | J195: 351.27 | K195: 338.5 | L195: 322.2 | M195: 1059.81081
A196: 187 | B196: TATAPOWER | C196: 87.15 | D196: 88.02 | E196: 85.58 | F196: 84.02 | G196: 81.58 | H196: 89.58 | I196: 92.02 | J196: 93.58 | K196: 90.45 | L196: 86.45 | M196: 370.86127
A197: 188 | B197: TATASTEEL | C197: 699.2 | D197: 702.42 | E197: 688.38 | F197: 677.57 | G197: 663.53 | H197: 713.23 | I197: 727.27 | J197: 738.08 | K197: 716.45 | L197: 691.6 | M197: 293.37028
A198: 189 | B198: TECHM | C198: 975.1 | D198: 980.72 | E198: 961.63 | F198: 948.17 | G198: 929.08 | H198: 994.18 | I198: 1013.27 | J198: 1026.73 | K198: 999.8 | L198: 967.25 | M198: 30.86774
A199: 190 | B199: RAMCOCEM | C199: 929.95 | D199: 931.32 | E199: 921.13 | F199: 912.32 | G199: 902.13 | H199: 940.13 | I199: 950.32 | J199: 959.13 | K199: 941.5 | L199: 922.5 | M199: 13.29531
A200: 191 | B200: TITAN | C200: 1559.9 | D200: 1562.53 | E200: 1540.42 | F200: 1520.93 | G200: 1498.82 | H200: 1582.02 | I200: 1604.13 | J200: 1623.62 | K200: 1584.65 | L200: 1543.05 | M200: 23.64475
A201: 192 | B201: TORNTPHARM | C201: 2582.25 | D201: 2609.10 | E201: 2518.15 | F201: 2454.05 | G201: 2363.10 | H201: 2673.20 | I201: 2764.15 | J201: 2828.25 | K201: 2700.05 | L201: 2545 | M201: 25.57483
A202: 193 | B202: TORNTPOWER | C202: 326 | D202: 326.65 | E202: 321.55 | F202: 317.10 | G202: 312.00 | H202: 331.10 | I202: 336.20 | J202: 340.65 | K202: 331.75 | L202: 322.2 | M202: 20.18962
A203: 194 | B203: TRENT | C203: 678.3 | D203: 681.35 | E203: 668.00 | F203: 657.70 | G203: 644.35 | H203: 691.65 | I203: 705.00 | J203: 715.30 | K203: 694.7 | L203: 671.05 | M203: 4.52702
A204: 195 | B204: UPL | C204: 538.6 | D204: 543.38 | E204: 530.77 | F204: 522.93 | G204: 510.32 | H204: 551.22 | I204: 563.83 | J204: 571.67 | K204: 556 | L204: 535.55 | M204: 91.71011
A205: 196 | B205: ULTRACEMCO | C205: 6420.4 | D205: 6424.08 | E205: 6368.17 | F205: 6315.93 | G205: 6260.02 | H205: 6476.32 | I205: 6532.23 | J205: 6584.47 | K205: 6480 | L205: 6371.85 | M205: 9.47676
... 29 more rows

Sheet MidCap Intra
L5: Back To Main Page
A6: FOR INTRA DAY TRADING | K6: =Main!B10 -> 2021-02-10
A9: Sr.no | B9: Scrip | C9: CLOSE RATE | D9: Pivot Point | E9: Supports | H9: Resistances
C10: Point | E10: S1 | F10: S2 | G10: S3 | H10: R1 | I10: R2 | J10: R3 | K10: HIGH | L10: LOW | M10: Total Trade Quanity in Lakhs
A11: 1 | B11: 3MINDIA | C11: 21167.25 | D11: 21337.08 | E11: 20930.17 | F11: 20693.08 | G11: 20286.17 | H11: 21574.17 | I11: 21981.08 | J11: 22218.17 | K11: 21744 | L11: 21100 | M11: 0.02446
A12: 2 | B12: ABB | C12: 1458.65 | D12: 1465.62 | E12: 1432.23 | F12: 1405.82 | G12: 1372.43 | H12: 1492.03 | I12: 1525.42 | J12: 1551.83 | K12: 1499 | L12: 1439.2 | M12: 2.44781
A13: 3 | B13: POWERINDIA | C13: 1319.95 | D13: 1313.70 | E13: 1301.40 | F13: 1282.85 | G13: 1270.55 | H13: 1332.25 | I13: 1344.55 | J13: 1363.10 | K13: 1326 | L13: 1295.15 | M13: 1.21138
A14: 4 | B14: ACC | C14: 1761.65 | D14: 1764.63 | E14: 1750.27 | F14: 1738.88 | G14: 1724.52 | H14: 1776.02 | I14: 1790.38 | J14: 1801.77 | K14: 1779 | L14: 1753.25 | M14: 7.91259
A15: 5 | B15: AIAENG | C15: 1993.45 | D15: 1990.82 | E15: 1956.63 | F15: 1919.82 | G15: 1885.63 | H15: 2027.63 | I15: 2061.82 | J15: 2098.63 | K15: 2025 | L15: 1954 | M15: 0.57399
A16: 6 | B16: APLAPOLLO | C16: 947.9 | D16: 954.63 | E16: 934.37 | F16: 920.83 | G16: 900.57 | H16: 968.17 | I16: 988.43 | J16: 1001.97 | K16: 974.9 | L16: 941.1 | M16: 3.03329
A17: 7 | B17: AUBANK | C17: 1063.35 | D17: 1061.12 | E17: 1041.23 | F17: 1019.12 | G17: 999.23 | H17: 1083.23 | I17: 1103.12 | J17: 1125.23 | K17: 1081 | L17: 1039 | M17: 8.21236
A18: 8 | B18: AARTIDRUGS | C18: 671.55 | D18: 675.15 | E18: 665.55 | F18: 659.55 | G18: 649.95 | H18: 681.15 | I18: 690.75 | J18: 696.75 | K18: 684.75 | L18: 669.15 | M18: 2.08964
A19: 9 | B19: AARTIIND | C19: 1234.65 | D19: 1184.07 | E19: 1123.13 | F19: 1011.62 | G19: 950.68 | H19: 1295.58 | I19: 1356.52 | J19: 1468.03 | K19: 1245 | L19: 1072.55 | M19: 7.44345
A20: 10 | B20: AAVAS | C20: 2261.1 | D20: 2219.50 | E20: 2116.00 | F20: 1970.90 | G20: 1867.40 | H20: 2364.60 | I20: 2468.10 | J20: 2613.20 | K20: 2323 | L20: 2074.4 | M20: 4.91994
A21: 11 | B21: ABBOTINDIA | C21: 14634.8 | D21: 14713.27 | E21: 14431.53 | F21: 14228.27 | G21: 13946.53 | H21: 14916.53 | I21: 15198.27 | J21: 15401.53 | K21: 14995 | L21: 14510 | M21: 0.38323
A22: 12 | B22: ADANIENT | C22: 629.85 | D22: 630.92 | E22: 619.93 | F22: 610.02 | G22: 599.03 | H22: 640.83 | I22: 651.82 | J22: 661.73 | K22: 641.9 | L22: 621 | M22: 45.10798
A23: 13 | B23: ADANIGREEN | C23: 1086.05 | D23: 1077.70 | E23: 1039.40 | F23: 992.75 | G23: 954.45 | H23: 1124.35 | I23: 1162.65 | J23: 1209.30 | K23: 1116 | L23: 1031.05 | M23: 35.36318
A24: 14 | B24: ADANIPORTS | C24: 581.95 | D24: 581.65 | E24: 573.50 | F24: 565.05 | G24: 556.90 | H24: 590.10 | I24: 598.25 | J24: 606.70 | K24: 589.8 | L24: 573.2 | M24: 109.17915
A25: 15 | B25: ATGL | C25: 382.85 | D25: 382.82 | E25: 380.18 | F25: 377.52 | G25: 374.88 | H25: 385.48 | I25: 388.12 | J25: 390.78 | K25: 385.45 | L25: 380.15 | M25: 8.25573
A26: 16 | B26: ADANITRANS | C26: 567.2 | D26: 570.65 | E26: 557.55 | F26: 547.90 | G26: 534.80 | H26: 580.30 | I26: 593.40 | J26: 603.05 | K26: 583.75 | L26: 561 | M26: 7.05297
A27: 17 | B27: ABCAPITAL | C27: 89.15 | D27: 90.07 | E27: 87.73 | F27: 86.32 | G27: 83.98 | H27: 91.48 | I27: 93.82 | J27: 95.23 | K27: 92.4 | L27: 88.65 | M27: 27.39403
A28: 18 | B28: ABFRL | C28: 165.7 | D28: 167.65 | E28: 163.05 | F28: 160.40 | G28: 155.80 | H28: 170.30 | I28: 174.90 | J28: 177.55 | K28: 172.25 | L28: 165 | M28: 50.28652
A29: 19 | B29: ADVENZYMES | C29: 370.3 | D29: 368.20 | E29: 358.45 | F29: 346.60 | G29: 336.85 | H29: 380.05 | I29: 389.80 | J29: 401.65 | K29: 377.95 | L29: 356.35 | M29: 10.34293
A30: 20 | B30: AEGISCHEM | C30: 304.7 | D30: 308.47 | E30: 298.73 | F30: 292.77 | G30: 283.03 | H30: 314.43 | I30: 324.17 | J30: 330.13 | K30: 318.2 | L30: 302.5 | M30: 2.28719
A31: 21 | B31: AFFLE | C31: 4208.75 | D31: 4143.10 | E31: 3971.20 | F31: 3733.65 | G31: 3561.75 | H31: 4380.65 | I31: 4552.55 | J31: 4790.10 | K31: 4315 | L31: 3905.55 | M31: 1.26625
A32: 22 | B32: AJANTPHARM | C32: 1807.3 | D32: 1812.97 | E32: 1796.93 | F32: 1786.57 | G32: 1770.53 | H32: 1823.33 | I32: 1839.37 | J32: 1849.73 | K32: 1829 | L32: 1802.6 | M32: 0.81303
A33: 23 | B33: AKZOINDIA | C33: 2264.15 | D33: 2273.62 | E33: 2249.53 | F33: 2234.92 | G33: 2210.83 | H33: 2288.23 | I33: 2312.32 | J33: 2326.93 | K33: 2297.7 | L33: 2259 | M33: 0.17331
A34: 24 | B34: ALEMBICLTD | C34: 103.65 | D34: 104.75 | E34: 101.90 | F34: 100.15 | G34: 97.30 | H34: 106.50 | I34: 109.35 | J34: 111.10 | K34: 107.6 | L34: 103 | M34: 6.35739
A35: 25 | B35: APLLTD | C35: 936.45 | D35: 941.33 | E35: 928.12 | F35: 919.78 | G35: 906.57 | H35: 949.67 | I35: 962.88 | J35: 971.22 | K35: 954.55 | L35: 933 | M35: 3.07422
A36: 26 | B36: ALKEM | C36: 2875.5 | D36: 2878.22 | E36: 2835.28 | F36: 2795.07 | G36: 2752.13 | H36: 2918.43 | I36: 2961.37 | J36: 3001.58 | K36: 2921.15 | L36: 2838 | M36: 1.85904
A37: 27 | B37: ALKYLAMINE | C37: 5089.2 | D37: 5151.45 | E37: 5002.80 | F37: 4916.40 | G37: 4767.75 | H37: 5237.85 | I37: 5386.50 | J37: 5472.90 | K37: 5300.1 | L37: 5065.05 | M37: 0.91276
A38: 28 | B38: ALOKINDS | C38: 20.8 | D38: 20.88 | E38: 20.67 | F38: 20.53 | G38: 20.32 | H38: 21.02 | I38: 21.23 | J38: 21.37 | K38: 21.1 | L38: 20.75 | M38: 80.87024
A39: 29 | B39: AMARAJABAT | C39: 968.7 | D39: 976.25 | E39: 957.00 | F39: 945.30 | G39: 926.05 | H39: 987.95 | I39: 1007.20 | J39: 1018.90 | K39: 995.5 | L39: 964.55 | M39: 9.61015
A40: 30 | B40: AMBER | C40: 2905.9 | D40: 2874.30 | E40: 2746.60 | F40: 2587.30 | G40: 2459.60 | H40: 3033.60 | I40: 3161.30 | J40: 3320.60 | K40: 3002 | L40: 2715 | M40: 5.1779
A41: 31 | B41: AMBUJACEM | C41: 270.55 | D41: 273.28 | E41: 267.12 | F41: 263.68 | G41: 257.52 | H41: 276.72 | I41: 282.88 | J41: 286.32 | K41: 279.45 | L41: 269.85 | M41: 47.25675
A42: 32 | B42: APOLLOHOSP | C42: 2789.3 | D42: 2788.00 | E42: 2739.40 | F42: 2689.50 | G42: 2640.90 | H42: 2837.90 | I42: 2886.50 | J42: 2936.40 | K42: 2836.6 | L42: 2738.1 | M42: 10.5295
A43: 33 | B43: APOLLOTYRE | C43: 243.5 | D43: 245.22 | E43: 239.48 | F43: 235.47 | G43: 229.73 | H43: 249.23 | I43: 254.97 | J43: 258.98 | K43: 250.95 | L43: 241.2 | M43: 137.63979
A44: 34 | B44: ASHOKLEY | C44: 134.75 | D44: 135.18 | E44: 133.32 | F44: 131.88 | G44: 130.02 | H44: 136.62 | I44: 138.48 | J44: 139.92 | K44: 137.05 | L44: 133.75 | M44: 184.05405
A45: 35 | B45: ASHOKA | C45: 110.7 | D45: 110.20 | E45: 106.10 | F45: 101.50 | G45: 97.40 | H45: 114.80 | I45: 118.90 | J45: 123.50 | K45: 114.3 | L45: 105.6 | M45: 83.7316
A46: 36 | B46: ASIANPAINT | C46: 2506.85 | D46: 2487.65 | E46: 2442.85 | F46: 2378.85 | G46: 2334.05 | H46: 2551.65 | I46: 2596.45 | J46: 2660.45 | K46: 2532.45 | L46: 2423.65 | M46: 71.78572
A47: 37 | B47: ASTERDM | C47: 154.6 | D47: 156.07 | E47: 152.13 | F47: 149.67 | G47: 145.73 | H47: 158.53 | I47: 162.47 | J47: 164.93 | K47: 160 | L47: 153.6 | M47: 1.98629
A48: 38 | B48: ASTRAZEN | C48: 3748.55 | D48: 3778.42 | E48: 3671.13 | F48: 3593.72 | G48: 3486.43 | H48: 3855.83 | I48: 3963.12 | J48: 4040.53 | K48: 3885.7 | L48: 3701 | M48: 1.75133
A49: 39 | B49: ASTRAL | C49: 2029.9 | D49: 2042.95 | E49: 2006.95 | F49: 1984.00 | G49: 1948.00 | H49: 2065.90 | I49: 2101.90 | J49: 2124.85 | K49: 2078.95 | L49: 2020 | M49: 0.77186
A50: 40 | B50: ATUL | C50: 6296.7 | D50: 6328.90 | E50: 6257.80 | F50: 6218.90 | G50: 6147.80 | H50: 6367.80 | I50: 6438.90 | J50: 6477.80 | K50: 6400 | L50: 6290 | M50: 0.17176
A51: 41 | B51: AUROPHARMA | C51: 959.45 | D51: 962.12 | E51: 949.33 | F51: 939.22 | G51: 926.43 | H51: 972.23 | I51: 985.02 | J51: 995.13 | K51: 974.9 | L51: 952 | M51: 46.78065
A52: 42 | B52: AVANTIFEED | C52: 505.35 | D52: 507.48 | E52: 500.97 | F52: 496.58 | G52: 490.07 | H52: 511.87 | I52: 518.38 | J52: 522.77 | K52: 514 | L52: 503.1 | M52: 5.51357
A53: 43 | B53: DMART | C53: 2925 | D53: 2944.30 | E53: 2880.70 | F53: 2836.40 | G53: 2772.80 | H53: 2988.60 | I53: 3052.20 | J53: 3096.50 | K53: 3007.9 | L53: 2900 | M53: 2.8124
A54: 44 | B54: AXISBANK | C54: 742.5 | D54: 739.57 | E54: 729.13 | F54: 715.77 | G54: 705.33 | H54: 752.93 | I54: 763.37 | J54: 776.73 | K54: 750 | L54: 726.2 | M54: 223.07807
A55: 45 | B55: BASF | C55: 1693.05 | D55: 1677.18 | E55: 1644.37 | F55: 1595.68 | G55: 1562.87 | H55: 1725.87 | I55: 1758.68 | J55: 1807.37 | K55: 1710 | L55: 1628.5 | M55: 4.67257
A56: 46 | B56: BEML | C56: 969.15 | D56: 975.42 | E56: 953.83 | F56: 938.52 | G56: 916.93 | H56: 990.73 | I56: 1012.32 | J56: 1027.63 | K56: 997 | L56: 960.1 | M56: 8.32671
A57: 47 | B57: BSE | C57: 605 | D57: 610.00 | E57: 598.00 | F57: 591.00 | G57: 579.00 | H57: 617.00 | I57: 629.00 | J57: 636.00 | K57: 622 | L57: 603 | M57: 4.13323
A58: 48 | B58: BAJAJ-AUTO | C58: 4154.9 | D58: 4179.30 | E58: 4120.60 | F58: 4086.30 | G58: 4027.60 | H58: 4213.60 | I58: 4272.30 | J58: 4306.60 | K58: 4238 | L58: 4145 | M58: 7.21336
A59: 49 | B59: BAJAJCON | C59: 260.85 | D59: 262.63 | E59: 256.27 | F59: 251.68 | G59: 245.32 | H59: 267.22 | I59: 273.58 | J59: 278.17 | K59: 269 | L59: 258.05 | M59: 7.20111
A60: 50 | B60: BAJAJELEC | C60: 1047.6 | D60: 1055.43 | E60: 1020.87 | F60: 994.13 | G60: 959.57 | H60: 1082.17 | I60: 1116.73 | J60: 1143.47 | K60: 1090 | L60: 1028.7 | M60: 23.03341
A61: 51 | B61: BAJFINANCE | C61: 5400.3 | D61: 5440.63 | E61: 5342.27 | F61: 5284.23 | G61: 5185.87 | H61: 5498.67 | I61: 5597.03 | J61: 5655.07 | K61: 5539 | L61: 5382.6 | M61: 22.63904
A62: 52 | B62: BAJAJFINSV | C62: 9941.65 | D62: 9963.88 | E62: 9859.77 | F62: 9777.88 | G62: 9673.77 | H62: 10045.77 | I62: 10149.88 | J62: 10231.77 | K62: 10068 | L62: 9882 | M62: 5.12607
A63: 53 | B63: BAJAJHLDNG | C63: 3531.35 | D63: 3531.23 | E63: 3501.47 | F63: 3471.58 | G63: 3441.82 | H63: 3561.12 | I63: 3590.88 | J63: 3620.77 | K63: 3561 | L63: 3501.35 | M63: 0.37267
A64: 54 | B64: BALKRISIND | C64: 1656.55 | D64: 1726.18 | E64: 1577.37 | F64: 1498.18 | G64: 1349.37 | H64: 1805.37 | I64: 1954.18 | J64: 2033.37 | K64: 1875 | L64: 1647 | M64: 67.37946
A65: 55 | B65: BALMLAWRIE | C65: 114.9 | D65: 114.65 | E65: 112.95 | F65: 111.00 | G65: 109.30 | H65: 116.60 | I65: 118.30 | J65: 120.25 | K65: 116.35 | L65: 112.7 | M65: 8.10567
A66: 56 | B66: BALRAMCHIN | C66: 160.1 | D66: 160.45 | E66: 158.80 | F66: 157.50 | G66: 155.85 | H66: 161.75 | I66: 163.40 | J66: 164.70 | K66: 162.1 | L66: 159.15 | M66: 5.07998
A67: 57 | B67: BANDHANBNK | C67: 328.3 | D67: 328.08 | E67: 323.77 | F67: 319.23 | G67: 314.92 | H67: 332.62 | I67: 336.93 | J67: 341.47 | K67: 332.4 | L67: 323.55 | M67: 76.37014
A68: 58 | B68: BANKBARODA | C68: 80.2 | D68: 80.77 | E68: 78.38 | F68: 76.57 | G68: 74.18 | H68: 82.58 | I68: 84.97 | J68: 86.78 | K68: 83.15 | L68: 78.95 | M68: 565.2741
A69: 59 | B69: BANKINDIA | C69: 59.25 | D69: 59.53 | E69: 57.07 | F69: 54.88 | G69: 52.42 | H69: 61.72 | I69: 64.18 | J69: 66.37 | K69: 62 | L69: 57.35 | M69: 113.95962
A70: 60 | B70: MAHABANK | C70: 15.95 | D70: 16.05 | E70: 15.75 | F70: 15.55 | G70: 15.25 | H70: 16.25 | I70: 16.55 | J70: 16.75 | K70: 16.35 | L70: 15.85 | M70: 46.28023
A71: 61 | B71: BATAINDIA | C71: 1574.8 | D71: 1582.83 | E71: 1563.07 | F71: 1551.33 | G71: 1531.57 | H71: 1594.57 | I71: 1614.33 | J71: 1626.07 | K71: 1602.6 | L71: 1571.1 | M71: 5.19405
A72: 62 | B72: BAYERCROP | C72: 5521.45 | D72: 5546.82 | E72: 5460.63 | F72: 5399.82 | G72: 5313.63 | H72: 5607.63 | I72: 5693.82 | J72: 5754.63 | K72: 5633 | L72: 5486 | M72: 0.21495
A73: 63 | B73: BERGEPAINT | C73: 762.15 | D73: 761.45 | E73: 753.40 | F73: 744.65 | G73: 736.60 | H73: 770.20 | I73: 778.25 | J73: 787.00 | K73: 769.5 | L73: 752.7 | M73: 27.18805
A74: 64 | B74: BDL | C74: 343.45 | D74: 344.78 | E74: 338.67 | F74: 333.88 | G74: 327.77 | H74: 349.57 | I74: 355.68 | J74: 360.47 | K74: 350.9 | L74: 340 | M74: 8.10093
A75: 65 | B75: BEL | C75: 137.95 | D75: 139.12 | E75: 136.23 | F75: 134.52 | G75: 131.63 | H75: 140.83 | I75: 143.72 | J75: 145.43 | K75: 142 | L75: 137.4 | M75: 161.02258
A76: 66 | B76: BHARATFORG | C76: 645.3 | D76: 646.60 | E76: 637.55 | F76: 629.80 | G76: 620.75 | H76: 654.35 | I76: 663.40 | J76: 671.15 | K76: 655.65 | L76: 638.85 | M76: 34.22137
A77: 67 | B77: BHEL | C77: 38.75 | D77: 38.97 | E77: 38.18 | F77: 37.62 | G77: 36.83 | H77: 39.53 | I77: 40.32 | J77: 40.88 | K77: 39.75 | L77: 38.4 | M77: 496.01029
A78: 68 | B78: BPCL | C78: 419.35 | D78: 424.68 | E78: 411.32 | F78: 403.28 | G78: 389.92 | H78: 432.72 | I78: 446.08 | J78: 454.12 | K78: 438.05 | L78: 416.65 | M78: 225.77022
A79: 69 | B79: BHARATRAS | C79: 9949.15 | D79: 9978.72 | E79: 9907.38 | F79: 9865.62 | G79: 9794.28 | H79: 10020.48 | I79: 10091.82 | J79: 10133.58 | K79: 10050.05 | L79: 9936.95 | M79: 0.01335
A80: 70 | B80: BHARTIARTL | C80: 598.95 | D80: 600.57 | E80: 593.38 | F80: 587.82 | G80: 580.63 | H80: 606.13 | I80: 613.32 | J80: 618.88 | K80: 607.75 | L80: 595 | M80: 205.41765
A81: 71 | B81: BIOCON | C81: 404.8 | D81: 405.85 | E81: 401.75 | F81: 398.70 | G81: 394.60 | H81: 408.90 | I81: 413.00 | J81: 416.05 | K81: 409.95 | L81: 402.8 | M81: 31.95358
A82: 72 | B82: BIRLACORPN | C82: 820.15 | D82: 823.25 | E82: 810.95 | F82: 801.75 | G82: 789.45 | H82: 832.45 | I82: 844.75 | J82: 853.95 | K82: 835.55 | L82: 814.05 | M82: 1.52701
A83: 73 | B83: BSOFT | C83: 256.35 | D83: 257.82 | E83: 251.73 | F83: 247.12 | G83: 241.03 | H83: 262.43 | I83: 268.52 | J83: 273.13 | K83: 263.9 | L83: 253.2 | M83: 10.37043
A84: 74 | B84: BLISSGVS | C84: 183.3 | D84: 184.02 | E84: 181.13 | F84: 178.97 | G84: 176.08 | H84: 186.18 | I84: 189.07 | J84: 191.23 | K84: 186.9 | L84: 181.85 | M84: 3.01819
A85: 75 | B85: BLUEDART | C85: 4523.65 | D85: 4511.77 | E85: 4323.63 | F85: 4123.62 | G85: 3935.48 | H85: 4711.78 | I85: 4899.92 | J85: 5099.93 | K85: 4699.9 | L85: 4311.75 | M85: 1.21894
A86: 76 | B86: BLUESTARCO | C86: 805.05 | D86: 806.45 | E86: 794.20 | F86: 783.35 | G86: 771.10 | H86: 817.30 | I86: 829.55 | J86: 840.40 | K86: 818.7 | L86: 795.6 | M86: 1.49966
A87: 77 | B87: BBTC | C87: 1239.9 | D87: 1240.65 | E87: 1232.50 | F87: 1225.10 | G87: 1216.95 | H87: 1248.05 | I87: 1256.20 | J87: 1263.60 | K87: 1248.8 | L87: 1233.25 | M87: 0.34605
A88: 78 | B88: BOMDYEING | C88: 73 | D88: 73.65 | E88: 71.85 | F88: 70.70 | G88: 68.90 | H88: 74.80 | I88: 76.60 | J88: 77.75 | K88: 75.45 | L88: 72.5 | M88: 27.02001
A89: 79 | B89: BOSCHLTD | C89: 16323.75 | D89: 16431.92 | E89: 16091.83 | F89: 15859.92 | G89: 15519.83 | H89: 16663.83 | I89: 17003.92 | J89: 17235.83 | K89: 16772 | L89: 16200 | M89: 0.47103
A90: 80 | B90: BRIGADE | C90: 288.9 | D90: 288.13 | E90: 284.27 | F90: 279.63 | G90: 275.77 | H90: 292.77 | I90: 296.63 | J90: 301.27 | K90: 292 | L90: 283.5 | M90: 5.09436
A91: 81 | B91: BRITANNIA | C91: 3462.4 | D91: 3474.13 | E91: 3443.27 | F91: 3424.13 | G91: 3393.27 | H91: 3493.27 | I91: 3524.13 | J91: 3543.27 | K91: 3505 | L91: 3455 | M91: 9.51124
A92: 82 | B92: CARERATING | C92: 489.35 | D92: 496.78 | E92: 479.57 | F92: 469.78 | G92: 452.57 | H92: 506.57 | I92: 523.78 | J92: 533.57 | K92: 514 | L92: 487 | M92: 2.93828
A93: 83 | B93: CCL | C93: 248.6 | D93: 249.88 | E93: 246.77 | F93: 244.93 | G93: 241.82 | H93: 251.72 | I93: 254.83 | J93: 256.67 | K93: 253 | L93: 248.05 | M93: 1.79922
A94: 84 | B94: CESC | C94: 607.65 | D94: 608.95 | E94: 597.25 | F94: 586.85 | G94: 575.15 | H94: 619.35 | I94: 631.05 | J94: 641.45 | K94: 620.65 | L94: 598.55 | M94: 10.79026
A95: 85 | B95: CRISIL | C95: 1947.7 | D95: 1959.20 | E95: 1928.50 | F95: 1909.30 | G95: 1878.60 | H95: 1978.40 | I95: 2009.10 | J95: 2028.30 | K95: 1989.9 | L95: 1940 | M95: 0.41374
A96: 86 | B96: CSBBANK | C96: 220.1 | D96: 221.02 | E96: 218.58 | F96: 217.07 | G96: 214.63 | H96: 222.53 | I96: 224.97 | J96: 226.48 | K96: 223.45 | L96: 219.5 | M96: 2.32972
A97: 87 | B97: CADILAHC | C97: 467.8 | D97: 470.55 | E97: 463.35 | F97: 458.90 | G97: 451.70 | H97: 475.00 | I97: 482.20 | J97: 486.65 | K97: 477.75 | L97: 466.1 | M97: 32.61845
A98: 88 | B98: CANFINHOME | C98: 500.55 | D98: 502.32 | E98: 494.83 | F98: 489.12 | G98: 481.63 | H98: 508.03 | I98: 515.52 | J98: 521.23 | K98: 509.8 | L98: 496.6 | M98: 9.34318
A99: 89 | B99: CANBK | C99: 155.65 | D99: 157.50 | E99: 152.65 | F99: 149.65 | G99: 144.80 | H99: 160.50 | I99: 165.35 | J99: 168.35 | K99: 162.35 | L99: 154.5 | M99: 301.2506
A100: 90 | B100: CAPLIPOINT | C100: 462.25 | D100: 463.20 | E100: 459.55 | F100: 456.85 | G100: 453.20 | H100: 465.90 | I100: 469.55 | J100: 472.25 | K100: 466.85 | L100: 460.5 | M100: 0.87042
A101: 91 | B101: CGCL | C101: 361.75 | D101: 363.20 | E101: 353.10 | F101: 344.45 | G101: 334.35 | H101: 371.85 | I101: 381.95 | J101: 390.60 | K101: 373.3 | L101: 354.55 | M101: 1.84794
A102: 92 | B102: CARBORUNIV | C102: 526.7 | D102: 523.95 | E102: 507.90 | F102: 489.10 | G102: 473.05 | H102: 542.75 | I102: 558.80 | J102: 577.60 | K102: 540 | L102: 505.15 | M102: 5.95336
A103: 93 | B103: CASTROLIND | C103: 130.4 | D103: 131.73 | E103: 127.97 | F103: 125.53 | G103: 121.77 | H103: 134.17 | I103: 137.93 | J103: 140.37 | K103: 135.5 | L103: 129.3 | M103: 27.14084
A104: 94 | B104: CEATLTD | C104: 1604.9 | D104: 1606.68 | E104: 1568.97 | F104: 1533.03 | G104: 1495.32 | H104: 1642.62 | I104: 1680.33 | J104: 1716.27 | K104: 1644.4 | L104: 1570.75 | M104: 4.0558
A105: 95 | B105: CENTRALBK | C105: 14.8 | D105: 14.88 | E105: 14.57 | F105: 14.33 | G105: 14.02 | H105: 15.12 | I105: 15.43 | J105: 15.67 | K105: 15.2 | L105: 14.65 | M105: 155.1644
A106: 96 | B106: CDSL | C106: 512.45 | D106: 515.65 | E106: 507.80 | F106: 503.15 | G106: 495.30 | H106: 520.30 | I106: 528.15 | J106: 532.80 | K106: 523.5 | L106: 511 | M106: 7.65241
A107: 97 | B107: CENTURYPLY | C107: 283.25 | D107: 287.43 | E107: 275.07 | F107: 266.88 | G107: 254.52 | H107: 295.62 | I107: 307.98 | J107: 316.17 | K107: 299.8 | L107: 279.25 | M107: 9.67891
A108: 98 | B108: CENTURYTEX | C108: 458.8 | D108: 463.70 | E108: 450.75 | F108: 442.70 | G108: 429.75 | H108: 471.75 | I108: 484.70 | J108: 492.75 | K108: 476.65 | L108: 455.65 | M108: 4.30481
A109: 99 | B109: CERA | C109: 3518.25 | D109: 3526.42 | E109: 3482.83 | F109: 3447.42 | G109: 3403.83 | H109: 3561.83 | I109: 3605.42 | J109: 3640.83 | K109: 3570 | L109: 3491 | M109: 0.0963
A110: 100 | B110: CHALET | C110: 174.35 | D110: 175.30 | E110: 170.80 | F110: 167.25 | G110: 162.75 | H110: 178.85 | I110: 183.35 | J110: 186.90 | K110: 179.8 | L110: 171.75 | M110: 1.49773
A111: 101 | B111: CHAMBLFERT | C111: 233.9 | D111: 233.92 | E111: 230.13 | F111: 226.37 | G111: 222.58 | H111: 237.68 | I111: 241.47 | J111: 245.23 | K111: 237.7 | L111: 230.15 | M111: 22.35386
A112: 102 | B112: CHENNPETRO | C112: 91.75 | D112: 92.22 | E112: 90.93 | F112: 90.12 | G112: 88.83 | H112: 93.03 | I112: 94.32 | J112: 95.13 | K112: 93.5 | L112: 91.4 | M112: 5.86697
A113: 103 | B113: CHOLAHLDNG | C113: 544.25 | D113: 546.63 | E113: 535.07 | F113: 525.88 | G113: 514.32 | H113: 555.82 | I113: 567.38 | J113: 576.57 | K113: 558.2 | L113: 537.45 | M113: 0.69684
A114: 104 | B114: CHOLAFIN | C114: 459.05 | D114: 461.65 | E114: 452.40 | F114: 445.75 | G114: 436.50 | H114: 468.30 | I114: 477.55 | J114: 484.20 | K114: 470.9 | L114: 455 | M114: 40.83298
A115: 105 | B115: CIPLA | C115: 841.75 | D115: 845.87 | E115: 834.88 | F115: 828.02 | G115: 817.03 | H115: 852.73 | I115: 863.72 | J115: 870.58 | K115: 856.85 | L115: 839 | M115: 42.00281
A116: 106 | B116: CUB | C116: 166.65 | D116: 169.12 | E116: 163.78 | F116: 160.92 | G116: 155.58 | H116: 171.98 | I116: 177.32 | J116: 180.18 | K116: 174.45 | L116: 166.25 | M116: 40.55863
A117: 107 | B117: COALINDIA | C117: 139.25 | D117: 140.47 | E117: 137.48 | F117: 135.72 | G117: 132.73 | H117: 142.23 | I117: 145.22 | J117: 146.98 | K117: 143.45 | L117: 138.7 | M117: 85.79689
A118: 108 | B118: COCHINSHIP | C118: 342.4 | D118: 344.62 | E118: 338.33 | F118: 334.27 | G118: 327.98 | H118: 348.68 | I118: 354.97 | J118: 359.03 | K118: 350.9 | L118: 340.55 | M118: 3.5351
A119: 109 | B119: COFORGE | C119: 2543.65 | D119: 2571.52 | E119: 2499.13 | F119: 2454.62 | G119: 2382.23 | H119: 2616.03 | I119: 2688.42 | J119: 2732.93 | K119: 2643.9 | L119: 2527 | M119: 3.55183
A120: 110 | B120: COLPAL | C120: 1585.4 | D120: 1595.13 | E120: 1571.27 | F120: 1557.13 | G120: 1533.27 | H120: 1609.27 | I120: 1633.13 | J120: 1647.27 | K120: 1619 | L120: 1581 | M120: 6.31437
A121: 111 | B121: CONCOR | C121: 502.25 | D121: 503.27 | E121: 497.63 | F121: 493.02 | G121: 487.38 | H121: 507.88 | I121: 513.52 | J121: 518.13 | K121: 508.9 | L121: 498.65 | M121: 26.45701
A122: 112 | B122: COROMANDEL | C122: 770.1 | D122: 773.42 | E122: 762.83 | F122: 755.57 | G122: 744.98 | H122: 780.68 | I122: 791.27 | J122: 798.53 | K122: 784 | L122: 766.15 | M122: 2.90852
A123: 113 | B123: CREDITACC | C123: 729.8 | D123: 733.13 | E123: 722.67 | F123: 715.53 | G123: 705.07 | H123: 740.27 | I123: 750.73 | J123: 757.87 | K123: 743.6 | L123: 726 | M123: 1.55016
A124: 114 | B124: CROMPTON | C124: 406.5 | D124: 404.77 | E124: 399.03 | F124: 391.57 | G124: 385.83 | H124: 412.23 | I124: 417.97 | J124: 425.43 | K124: 410.5 | L124: 397.3 | M124: 68.43035
A125: 115 | B125: CUMMINSIND | C125: 774.1 | D125: 778.32 | E125: 764.83 | F125: 755.57 | G125: 742.08 | H125: 787.58 | I125: 801.07 | J125: 810.33 | K125: 791.8 | L125: 769.05 | M125: 5.15443
A126: 116 | B126: CYIENT | C126: 640.9 | D126: 648.08 | E126: 627.77 | F126: 614.63 | G126: 594.32 | H126: 661.22 | I126: 681.53 | J126: 694.67 | K126: 668.4 | L126: 634.95 | M126: 5.86978
A127: 117 | B127: DBCORP | C127: 88.15 | D127: 88.53 | E127: 86.42 | F127: 84.68 | G127: 82.57 | H127: 90.27 | I127: 92.38 | J127: 94.12 | K127: 90.65 | L127: 86.8 | M127: 7.07206
A128: 118 | B128: DCBBANK | C128: 108.4 | D128: 109.42 | E128: 106.58 | F128: 104.77 | G128: 101.93 | H128: 111.23 | I128: 114.07 | J128: 115.88 | K128: 112.25 | L128: 107.6 | M128: 28.31374
A129: 119 | B129: DCMSHRIRAM | C129: 456.35 | D129: 457.85 | E129: 450.60 | F129: 444.85 | G129: 437.60 | H129: 463.60 | I129: 470.85 | J129: 476.60 | K129: 465.1 | L129: 452.1 | M129: 0.76275
A130: 120 | B130: DLF | C130: 307 | D130: 310.73 | E130: 300.47 | F130: 293.93 | G130: 283.67 | H130: 317.27 | I130: 327.53 | J130: 334.07 | K130: 321 | L130: 304.2 | M130: 215.72096
A131: 121 | B131: DABUR | C131: 525.15 | D131: 525.40 | E131: 518.75 | F131: 512.35 | G131: 505.70 | H131: 531.80 | I131: 538.45 | J131: 544.85 | K131: 532.05 | L131: 519 | M131: 42.81247
A132: 122 | B132: DALBHARAT | C132: 1348.8 | D132: 1334.78 | E132: 1317.57 | F132: 1286.33 | G132: 1269.12 | H132: 1366.02 | I132: 1383.23 | J132: 1414.47 | K132: 1352 | L132: 1303.55 | M132: 4.12384
A133: 123 | B133: DEEPAKNTR | C133: 1038.25 | D133: 1035.85 | E133: 1024.80 | F133: 1011.35 | G133: 1000.30 | H133: 1049.30 | I133: 1060.35 | J133: 1073.80 | K133: 1046.9 | L133: 1022.4 | M133: 4.3819
A134: 124 | B134: DELTACORP | C134: 158.2 | D134: 159.40 | E134: 154.30 | F134: 150.40 | G134: 145.30 | H134: 163.30 | I134: 168.40 | J134: 172.30 | K134: 164.5 | L134: 155.5 | M134: 44.60656
A135: 125 | B135: DHANI | C135: 343.8 | D135: 343.28 | E135: 338.57 | F135: 333.33 | G135: 328.62 | H135: 348.52 | I135: 353.23 | J135: 358.47 | K135: 348 | L135: 338.05 | M135: 3.97073
A136: 126 | B136: DHANUKA | C136: 782.75 | D136: 782.32 | E136: 765.73 | F136: 748.72 | G136: 732.13 | H136: 799.33 | I136: 815.92 | J136: 832.93 | K136: 798.9 | L136: 765.3 | M136: 1.66287
A137: 127 | B137: DBL | C137: 490.85 | D137: 497.58 | E137: 475.77 | F137: 460.68 | G137: 438.87 | H137: 512.67 | I137: 534.48 | J137: 549.57 | K137: 519.4 | L137: 482.5 | M137: 3.39088
A138: 128 | B138: DISHTV | C138: 11.9 | D138: 11.95 | E138: 11.75 | F138: 11.60 | G138: 11.40 | H138: 12.10 | I138: 12.30 | J138: 12.45 | K138: 12.15 | L138: 11.8 | M138: 34.10285
A139: 129 | B139: DCAL | C139: 126.95 | D139: 128.80 | E139: 123.95 | F139: 120.95 | G139: 116.10 | H139: 131.80 | I139: 136.65 | J139: 139.65 | K139: 133.65 | L139: 125.8 | M139: 4.98331
A140: 130 | B140: DIVISLAB | C140: 3722.75 | D140: 3756.35 | E140: 3671.45 | F140: 3620.15 | G140: 3535.25 | H140: 3807.65 | I140: 3892.55 | J140: 3943.85 | K140: 3841.25 | L140: 3705.05 | M140: 13.19497
A141: 131 | B141: DIXON | C141: 17737.75 | D141: 17812.93 | E141: 17375.87 | F141: 17013.98 | G141: 16576.92 | H141: 18174.82 | I141: 18611.88 | J141: 18973.77 | K141: 18250 | L141: 17451.05 | M141: 1.16101
A142: 132 | B142: LALPATHLAB | C142: 2408.65 | D142: 2417.67 | E142: 2379.98 | F142: 2351.32 | G142: 2313.63 | H142: 2446.33 | I142: 2484.02 | J142: 2512.68 | K142: 2455.35 | L142: 2389 | M142: 0.60826
A143: 133 | B143: DRREDDY | C143: 4844.1 | D143: 4848.27 | E143: 4800.83 | F143: 4757.57 | G143: 4710.13 | H143: 4891.53 | I143: 4938.97 | J143: 4982.23 | K143: 4895.7 | L143: 4805 | M143: 12.46769
A144: 134 | B144: EIDPARRY | C144: 331.15 | D144: 334.20 | E144: 326.40 | F144: 321.65 | G144: 313.85 | H144: 338.95 | I144: 346.75 | J144: 351.50 | K144: 342 | L144: 329.45 | M144: 3.26349
A145: 135 | B145: EIHOTEL | C145: 95.8 | D145: 97.08 | E145: 92.82 | F145: 89.83 | G145: 85.57 | H145: 100.07 | I145: 104.33 | J145: 107.32 | K145: 101.35 | L145: 94.1 | M145: 17.94303
A146: 136 | B146: EPL | C146: 207.85 | D146: 209.28 | E146: 205.77 | F146: 203.68 | G146: 200.17 | H146: 211.37 | I146: 214.88 | J146: 216.97 | K146: 212.8 | L146: 207.2 | M146: 7.57038
A147: 137 | B147: ESABINDIA | C147: 1990.7 | D147: 2007.57 | E147: 1965.13 | F147: 1939.57 | G147: 1897.13 | H147: 2033.13 | I147: 2075.57 | J147: 2101.13 | K147: 2050 | L147: 1982 | M147: 0.06866
A148: 138 | B148: EDELWEISS | C148: 64.9 | D148: 65.62 | E148: 63.83 | F148: 62.77 | G148: 60.98 | H148: 66.68 | I148: 68.47 | J148: 69.53 | K148: 67.4 | L148: 64.55 | M148: 9.6762
A149: 139 | B149: EICHERMOT | C149: 2947.65 | D149: 2967.23 | E149: 2916.47 | F149: 2885.28 | G149: 2834.52 | H149: 2998.42 | I149: 3049.18 | J149: 3080.37 | K149: 3018 | L149: 2936.05 | M149: 11.27584
A150: 140 | B150: ELGIEQUIP | C150: 176.1 | D150: 175.85 | E150: 170.70 | F150: 165.30 | G150: 160.15 | H150: 181.25 | I150: 186.40 | J150: 191.80 | K150: 181 | L150: 170.45 | M150: 7.86634
A151: 141 | B151: EMAMILTD | C151: 490.6 | D151: 495.27 | E151: 481.58 | F151: 472.57 | G151: 458.88 | H151: 504.28 | I151: 517.97 | J151: 526.98 | K151: 508.95 | L151: 486.25 | M151: 6.27429
A152: 142 | B152: ENDURANCE | C152: 1470.15 | D152: 1470.00 | E152: 1456.50 | F152: 1442.85 | G152: 1429.35 | H152: 1483.65 | I152: 1497.15 | J152: 1510.80 | K152: 1483.5 | L152: 1456.35 | M152: 0.69279
A153: 143 | B153: ENGINERSIN | C153: 76.95 | D153: 77.52 | E153: 76.13 | F153: 75.32 | G153: 73.93 | H153: 78.33 | I153: 79.72 | J153: 80.53 | K153: 78.9 | L153: 76.7 | M153: 23.99099
A154: 144 | B154: EQUITAS | C154: 86.5 | D154: 87.52 | E154: 85.08 | F154: 83.67 | G154: 81.23 | H154: 88.93 | I154: 91.37 | J154: 92.78 | K154: 89.95 | L154: 86.1 | M154: 10.87033
A155: 145 | B155: ERIS | C155: 586.25 | D155: 587.73 | E155: 581.52 | F155: 576.78 | G155: 570.57 | H155: 592.47 | I155: 598.68 | J155: 603.42 | K155: 593.95 | L155: 583 | M155: 0.3266
A156: 146 | B156: ESCORTS | C156: 1427.35 | D156: 1438.63 | E156: 1408.82 | F156: 1390.28 | G156: 1360.47 | H156: 1457.17 | I156: 1486.98 | J156: 1505.52 | K156: 1468.45 | L156: 1420.1 | M156: 21.79561
A157: 147 | B157: EXIDEIND | C157: 211.45 | D157: 213.62 | E157: 207.93 | F157: 204.42 | G157: 198.73 | H157: 217.13 | I157: 222.82 | J157: 226.33 | K157: 219.3 | L157: 210.1 | M157: 100.4317
A158: 148 | B158: FDC | C158: 275.5 | D158: 277.52 | E158: 272.98 | F158: 270.47 | G158: 265.93 | H158: 280.03 | I158: 284.57 | J158: 287.08 | K158: 282.05 | L158: 275 | M158: 2.24302
A159: 149 | B159: FEDERALBNK | C159: 82.95 | D159: 83.47 | E159: 81.48 | F159: 80.02 | G159: 78.03 | H159: 84.93 | I159: 86.92 | J159: 88.38 | K159: 85.45 | L159: 82 | M159: 270.21814
A160: 150 | B160: FINEORG | C160: 2358.65 | D160: 2374.55 | E160: 2324.10 | F160: 2289.55 | G160: 2239.10 | H160: 2409.10 | I160: 2459.55 | J160: 2494.10 | K160: 2425 | L160: 2340 | M160: 0.11971
A161: 151 | B161: FINCABLES | C161: 367.85 | D161: 368.62 | E161: 364.23 | F161: 360.62 | G161: 356.23 | H161: 372.23 | I161: 376.62 | J161: 380.23 | K161: 373 | L161: 365 | M161: 2.25804
A162: 152 | B162: FINPIPE | C162: 660.55 | D162: 661.02 | E162: 640.33 | F162: 620.12 | G162: 599.43 | H162: 681.23 | I162: 701.92 | J162: 722.13 | K162: 681.7 | L162: 640.8 | M162: 2.66971
A163: 153 | B163: FSL | C163: 96.9 | D163: 99.05 | E163: 94.35 | F163: 91.80 | G163: 87.10 | H163: 101.60 | I163: 106.30 | J163: 108.85 | K163: 103.75 | L163: 96.5 | M163: 76.50512
A164: 154 | B164: FORTIS | C164: 173.95 | D164: 174.05 | E164: 168.70 | F164: 163.45 | G164: 158.10 | H164: 179.30 | I164: 184.65 | J164: 189.90 | K164: 179.4 | L164: 168.8 | M164: 66.10807
A165: 155 | B165: FCONSUMER | C165: 8.65 | D165: 8.57 | E165: 8.48 | F165: 8.32 | G165: 8.23 | H165: 8.73 | I165: 8.82 | J165: 8.98 | K165: 8.65 | L165: 8.4 | M165: 299.81908
A166: 156 | B166: FRETAIL | C166: 80.5 | D166: 79.67 | E166: 78.83 | F166: 77.17 | G166: 76.33 | H166: 81.33 | I166: 82.17 | J166: 83.83 | K166: 80.5 | L166: 78 | M166: 135.28174
A167: 157 | B167: GAIL | C167: 131.05 | D167: 131.73 | E167: 130.02 | F167: 128.98 | G167: 127.27 | H167: 132.77 | I167: 134.48 | J167: 135.52 | K167: 133.45 | L167: 130.7 | M167: 152.32082
A168: 158 | B168: GEPIL | C168: 281.15 | D168: 286.15 | E168: 275.30 | F168: 269.45 | G168: 258.60 | H168: 292.00 | I168: 302.85 | J168: 308.70 | K168: 297 | L168: 280.3 | M168: 2.59258
A169: 159 | B169: GHCL | C169: 212.25 | D169: 212.00 | E169: 209.35 | F169: 206.45 | G169: 203.80 | H169: 214.90 | I169: 217.55 | J169: 220.45 | K169: 214.65 | L169: 209.1 | M169: 4.13446
A170: 160 | B170: GMMPFAUDLR | C170: 3727.9 | D170: 3736.72 | E170: 3695.43 | F170: 3662.97 | G170: 3621.68 | H170: 3769.18 | I170: 3810.47 | J170: 3842.93 | K170: 3778 | L170: 3704.25 | M170: 0.45804
A171: 161 | B171: GMRINFRA | C171: 26.45 | D171: 26.58 | E171: 26.12 | F171: 25.78 | G171: 25.32 | H171: 26.92 | I171: 27.38 | J171: 27.72 | K171: 27.05 | L171: 26.25 | M171: 143.50148
A172: 162 | B172: GALAXYSURF | C172: 2233.4 | D172: 2270.97 | E172: 2161.03 | F172: 2088.67 | G172: 1978.73 | H172: 2343.33 | I172: 2453.27 | J172: 2525.63 | K172: 2380.9 | L172: 2198.6 | M172: 0.74854
A173: 163 | B173: GRSE | C173: 196.85 | D173: 198.00 | E173: 190.35 | F173: 183.85 | G173: 176.20 | H173: 204.50 | I173: 212.15 | J173: 218.65 | K173: 205.65 | L173: 191.5 | M173: 6.05323
A174: 164 | B174: GARFIBRES | C174: 2258.45 | D174: 2266.17 | E174: 2242.33 | F174: 2226.22 | G174: 2202.38 | H174: 2282.28 | I174: 2306.12 | J174: 2322.23 | K174: 2290 | L174: 2250.05 | M174: 0.04838
A175: 165 | B175: GICRE | C175: 134.8 | D175: 136.08 | E175: 133.22 | F175: 131.63 | G175: 128.77 | H175: 137.67 | I175: 140.53 | J175: 142.12 | K175: 138.95 | L175: 134.5 | M175: 6.90092
A176: 166 | B176: GILLETTE | C176: 5655.25 | D176: 5656.30 | E176: 5638.20 | F176: 5621.15 | G176: 5603.05 | H176: 5673.35 | I176: 5691.45 | J176: 5708.50 | K176: 5674.4 | L176: 5639.25 | M176: 0.05164
A177: 167 | B177: GLAXO | C177: 1460.1 | D177: 1468.07 | E177: 1448.13 | F177: 1436.17 | G177: 1416.23 | H177: 1480.03 | I177: 1499.97 | J177: 1511.93 | K177: 1488 | L177: 1456.1 | M177: 0.71258
A178: 168 | B178: GLENMARK | C178: 501.35 | D178: 504.53 | E178: 495.82 | F178: 490.28 | G178: 481.57 | H178: 510.07 | I178: 518.78 | J178: 524.32 | K178: 513.25 | L178: 499 | M178: 23.03479
A179: 169 | B179: GODFRYPHLP | C179: 916.4 | D179: 922.27 | E179: 906.13 | F179: 895.87 | G179: 879.73 | H179: 932.53 | I179: 948.67 | J179: 958.93 | K179: 938.4 | L179: 912 | M179: 1.11036
A180: 170 | B180: GODREJAGRO | C180: 491.8 | D180: 496.97 | E180: 484.93 | F180: 478.07 | G180: 466.03 | H180: 503.83 | I180: 515.87 | J180: 522.73 | K180: 509 | L180: 490.1 | M180: 2.91119
A181: 171 | B181: GODREJCP | C181: 743.6 | D181: 735.67 | E181: 722.93 | F181: 702.27 | G181: 689.53 | H181: 756.33 | I181: 769.07 | J181: 789.73 | K181: 748.4 | L181: 715 | M181: 24.19027
A182: 172 | B182: GODREJIND | C182: 452.8 | D182: 453.38 | E182: 446.77 | F182: 440.73 | G182: 434.12 | H182: 459.42 | I182: 466.03 | J182: 472.07 | K182: 460 | L182: 447.35 | M182: 1.32152
A183: 173 | B183: GODREJPROP | C183: 1424.6 | D183: 1434.02 | E183: 1406.03 | F183: 1387.47 | G183: 1359.48 | H183: 1452.58 | I183: 1480.57 | J183: 1499.13 | K183: 1462 | L183: 1415.45 | M183: 10.5593
A184: 174 | B184: GRANULES | C184: 326.9 | D184: 328.98 | E184: 324.17 | F184: 321.43 | G184: 316.62 | H184: 331.72 | I184: 336.53 | J184: 339.27 | K184: 333.8 | L184: 326.25 | M184: 11.68863
A185: 175 | B185: GRAPHITE | C185: 413.3 | D185: 421.90 | E185: 401.30 | F185: 389.30 | G185: 368.70 | H185: 433.90 | I185: 454.50 | J185: 466.50 | K185: 442.5 | L185: 409.9 | M185: 44.84169
A186: 176 | B186: GRASIM | C186: 1217.95 | D186: 1216.15 | E186: 1205.80 | F186: 1193.65 | G186: 1183.30 | H186: 1228.30 | I186: 1238.65 | J186: 1250.80 | K186: 1226.5 | L186: 1204 | M186: 17.27089
A187: 177 | B187: GESHIP | C187: 257.1 | D187: 258.27 | E187: 254.58 | F187: 252.07 | G187: 248.38 | H187: 260.78 | I187: 264.47 | J187: 266.98 | K187: 261.95 | L187: 255.75 | M187: 7.87725
A188: 178 | B188: GREAVESCOT | C188: 85.8 | D188: 86.33 | E188: 84.72 | F188: 83.63 | G188: 82.02 | H188: 87.42 | I188: 89.03 | J188: 90.12 | K188: 87.95 | L188: 85.25 | M188: 9.14905
A189: 179 | B189: GRINDWELL | C189: 844.8 | D189: 841.18 | E189: 808.67 | F189: 772.53 | G189: 740.02 | H189: 877.32 | I189: 909.83 | J189: 945.97 | K189: 873.7 | L189: 805.05 | M189: 1.84375
A190: 180 | B190: GUJALKALI | C190: 334.85 | D190: 337.45 | E190: 330.90 | F190: 326.95 | G190: 320.40 | H190: 341.40 | I190: 347.95 | J190: 351.90 | K190: 344 | L190: 333.5 | M190: 1.42937
A191: 181 | B191: GAEL | C191: 132.25 | D191: 133.23 | E191: 128.52 | F191: 124.78 | G191: 120.07 | H191: 136.97 | I191: 141.68 | J191: 145.42 | K191: 137.95 | L191: 129.5 | M191: 3.23158
A192: 182 | B192: FLUOROCHEM | C192: 569.1 | D192: 579.43 | E192: 549.77 | F192: 530.43 | G192: 500.77 | H192: 598.77 | I192: 628.43 | J192: 647.77 | K192: 609.1 | L192: 560.1 | M192: 2.62089
A193: 183 | B193: GUJGASLTD | C193: 461.85 | D193: 458.62 | E193: 440.23 | F193: 418.62 | G193: 400.23 | H193: 480.23 | I193: 498.62 | J193: 520.23 | K193: 477 | L193: 437 | M193: 57.78874
A194: 184 | B194: GMDCLTD | C194: 61.2 | D194: 62.07 | E194: 60.03 | F194: 58.87 | G194: 56.83 | H194: 63.23 | I194: 65.27 | J194: 66.43 | K194: 64.1 | L194: 60.9 | M194: 16.92705
A195: 185 | B195: GNFC | C195: 226.95 | D195: 227.57 | E195: 223.38 | F195: 219.82 | G195: 215.63 | H195: 231.13 | I195: 235.32 | J195: 238.88 | K195: 231.75 | L195: 224 | M195: 13.5589
A196: 186 | B196: GPPL | C196: 96.7 | D196: 96.73 | E196: 95.12 | F196: 93.53 | G196: 91.92 | H196: 98.32 | I196: 99.93 | J196: 101.52 | K196: 98.35 | L196: 95.15 | M196: 10.06045
A197: 187 | B197: GSFC | C197: 79.1 | D197: 79.63 | E197: 77.97 | F197: 76.83 | G197: 75.17 | H197: 80.77 | I197: 82.43 | J197: 83.57 | K197: 81.3 | L197: 78.5 | M197: 10.40994
A198: 188 | B198: GSPL | C198: 221.95 | D198: 219.47 | E198: 215.58 | F198: 209.22 | G198: 205.33 | H198: 225.83 | I198: 229.72 | J198: 236.08 | K198: 223.35 | L198: 213.1 | M198: 31.14588
A199: 189 | B199: GULFOILLUB | C199: 721.65 | D199: 722.95 | E199: 716.00 | F199: 710.35 | G199: 703.40 | H199: 728.60 | I199: 735.55 | J199: 741.20 | K199: 729.9 | L199: 717.3 | M199: 0.24381
A200: 190 | B200: HEG | C200: 1131.9 | D200: 1156.50 | E200: 1076.00 | F200: 1020.10 | G200: 939.60 | H200: 1212.40 | I200: 1292.90 | J200: 1348.80 | K200: 1237 | L200: 1100.6 | M200: 15.95619
A201: 191 | B201: HCLTECH | C201: 951.6 | D201: 960.03 | E201: 938.17 | F201: 924.73 | G201: 902.87 | H201: 973.47 | I201: 995.33 | J201: 1008.77 | K201: 981.9 | L201: 946.6 | M201: 75.57977
A202: 192 | B202: HDFCAMC | C202: 3010.3 | D202: 3037.07 | E202: 2965.18 | F202: 2920.07 | G202: 2848.18 | H202: 3082.18 | I202: 3154.07 | J202: 3199.18 | K202: 3108.95 | L202: 2991.95 | M202: 3.12441
A203: 193 | B203: HDFCBANK | C203: 1611.85 | D203: 1608.85 | E203: 1589.70 | F203: 1567.55 | G203: 1548.40 | H203: 1631.00 | I203: 1650.15 | J203: 1672.30 | K203: 1628 | L203: 1586.7 | M203: 92.10683
A204: 194 | B204: HDFCLIFE | C204: 704.9 | D204: 701.02 | E204: 691.83 | F204: 678.77 | G204: 669.58 | H204: 714.08 | I204: 723.27 | J204: 736.33 | K204: 710.2 | L204: 687.95 | M204: 73.31068
A205: 195 | B205: HFCL | C205: 27.05 | D205: 26.85 | E205: 26.10 | F205: 25.15 | G205: 24.40 | H205: 27.80 | I205: 28.55 | J205: 29.50 | K205: 27.6 | L205: 25.9 | M205: 145.70993
A206: 196 | B206: HATHWAY | C206: 29.6 | D206: 29.62 | E206: 29.13 | F206: 28.67 | G206: 28.18 | H206: 30.08 | I206: 30.57 | J206: 31.03 | K206: 30.1 | L206: 29.15 | M206: 5.17276
... 321 more rows

Sheet Bulk Deals
E6: Back To Main Page
A7: Subject : | B7: BULK DEAL | D7: =Main!B10 -> 2021-02-10
A9: Date | B9: Scrip code | C9: Scrip Name | D9: Client Name | E9: Buy / Sell | F9: Quantity Traded | G9: Trade Price / Wt.Avg.trade price | H9: Exchange
A10: 2021-02-09 | B10: 539570 | C10: ACEWIN | D10: VLS FINANCE LTD. | E10: SELL | F10: 96,000 | G10: 10.66 | H10: BSE
A11: 2021-02-09 | B11: 542020 | C11: AKI | D11: URMILA DOSHI | E11: BUY | F11: 100,000 | G11: 20.89 | H11: BSE
A12: 2021-02-09 | B12: 538566 | C12: APOLLOTRI | D12: SAKET AGRAWAL | E12: SELL | F12: 303,571 | G12: 910 | H12: BSE
A13: 2021-02-09 | B13: 540545 | C13: BGJL | D13: DIBAKAR LAHA | E13: SELL | F13: 50,636 | G13: 69.85 | H13: BSE
A14: 2021-02-09 | B14: 540545 | C14: BGJL | D14: ARPIT PIYUSHBHAI SHAH | E14: BUY | F14: 20,000 | G14: 69.95 | H14: BSE
A15: 2021-02-09 | B15: 540545 | C15: BGJL | D15: ARPIT PIYUSHBHAI SHAH | E15: SELL | F15: 60,000 | G15: 69.91 | H15: BSE
A16: 2021-02-09 | B16: 539876 | C16: CROMPTON | D16: AMALFIACO LIMITED | E16: SELL | F16: 19,000,000 | G16: 392.45 | H16: BSE
A17: 2021-02-09 | B17: 539876 | C17: CROMPTON | D17: AMALFIACO LIMITED | E17: SELL | F17: 19,000,000 | G17: 392.92 | H17: BSE
A18: 2021-02-09 | B18: 539876 | C18: CROMPTON | D18: SOCIETE GENERALE | E18: BUY | F18: 3,900,000 | G18: 392.1 | H18: BSE
A19: 2021-02-09 | B19: 541778 | C19: DEEP | D19: NNM SECURITIES PVT LTD | E19: BUY | F19: 3,000 | G19: 74 | H19: BSE
A20: 2021-02-09 | B20: 541778 | C20: DEEP | D20: SANJAY | E20: BUY | F20: 70,500 | G20: 65.8 | H20: BSE
A21: 2021-02-09 | B21: 541778 | C21: DEEP | D21: NNM SECURITIES PVT LTD | E21: SELL | F21: 73,500 | G21: 66.09 | H21: BSE
A22: 2021-02-09 | B22: 531502 | C22: ESARIND | D22: DIMPLE PREMKUMAR SHETH | E22: SELL | F22: 195,000 | G22: 3.75 | H22: BSE
A23: 2021-02-09 | B23: 533090 | C23: EXCEL | D23: SHASHI SARDARILAL SEHGAL | E23: SELL | F23: 875,000 | G23: 3.24 | H23: BSE
A24: 2021-02-09 | B24: 542924 | C24: JANUSCORP | D24: JAYESHKUMAR KANTILAL PATEL HUF | E24: BUY | F24: 111,000 | G24: 85.99 | H24: BSE
A25: 2021-02-09 | B25: 542924 | C25: JANUSCORP | D25: JAYESHKUMAR KANTILAL PATEL HUF | E25: SELL | F25: 10,500 | G25: 93.8 | H25: BSE
A26: 2021-02-09 | B26: 542924 | C26: JANUSCORP | D26: VIRALKUMAR RASIKBHAI PATEL | E26: BUY | F26: 55,500 | G26: 93.3 | H26: BSE
A27: 2021-02-09 | B27: 542924 | C27: JANUSCORP | D27: VIRALKUMAR RASIKBHAI PATEL | E27: SELL | F27: 40,500 | G27: 90.17 | H27: BSE
A28: 2021-02-09 | B28: 542924 | C28: JANUSCORP | D28: DISHANT BHARATBHAI SHAH | E28: SELL | F28: 114,000 | G28: 86.09 | H28: BSE
A29: 2021-02-09 | B29: 542924 | C29: JANUSCORP | D29: SYNEMATIC MEDIA AND CONSULTING PRIVATE LIMITED | E29: BUY | F29: 19,500 | G29: 94 | H29: BSE
A30: 2021-02-09 | B30: 542924 | C30: JANUSCORP | D30: SYNEMATIC MEDIA AND CONSULTING PRIVATE LIMITED | E30: SELL | F30: 34,500 | G30: 94 | H30: BSE
A31: 2021-02-09 | B31: 542924 | C31: JANUSCORP | D31: SHIVAAY TRADING COMPANY | E31: BUY | F31: 36,000 | G31: 94.03 | H31: BSE
A32: 2021-02-09 | B32: 539289 | C32: MJCO | D32: RAJASTHAN GLOBAL SECURITIES PRIVATE LIMITED | E32: SELL | F32: 340,462 | G32: 56.04 | H32: BSE
A33: 2021-02-09 | B33: 540198 | C33: OSIAJEE | D33: MAMTABEN DIPESHKUMAR SHAH | E33: SELL | F33: 85,722 | G33: 24.5 | H33: BSE
A34: 2021-02-09 | B34: 540198 | C34: OSIAJEE | D34: BHARAT AGARWAL | E34: BUY | F34: 30,000 | G34: 24.5 | H34: BSE
A35: 2021-02-09 | B35: 540198 | C35: OSIAJEE | D35: ACVC FOREX PRIVATE LIMITED | E35: BUY | F35: 45,000 | G35: 24.5 | H35: BSE
A36: 2021-02-09 | B36: 540198 | C36: OSIAJEE | D36: ACVC FOREX PRIVATE LIMITED | E36: SELL | F36: 10,000 | G36: 24.53 | H36: BSE
A37: 2021-02-09 | B37: 539814 | C37: RADHEY | D37: CHANDRAWATI PRAVEEN KUMAR JAIN | E37: SELL | F37: 16,251 | G37: 30.09 | H37: BSE
A38: 2021-02-09 | B38: 539090 | C38: RAJPUTANA | D38: DIVYAKANDA | E38: SELL | F38: 17,000 | G38: 14.61 | H38: BSE
A39: 2021-02-09 | B39: 539090 | C39: RAJPUTANA | D39: ZYANA STOCKS AND COMMODITIES | E39: BUY | F39: 25,000 | G39: 14.38 | H39: BSE
A40: 2021-02-09 | B40: 530951 | C40: RAMINFO | D40: ARUNA RANI ELIMINETI | E40: BUY | F40: 85,000 | G40: 29 | H40: BSE
A41: 2021-02-09 | B41: 530951 | C41: RAMINFO | D41: DEEPTHI GARIKAPATI | E41: SELL | F41: 87,100 | G41: 29 | H41: BSE
A42: 2021-02-09 | B42: 541151 | C42: RIDINGS | D42: BEELINE MERCHANT BANKING PRIVATE LIMITED | E42: BUY | F42: 416,000 | G42: 14.09 | H42: BSE
A43: 2021-02-09 | B43: 541151 | C43: RIDINGS | D43: BIPINKUMAR KHODIDAS NADIYA | E43: SELL | F43: 344,000 | G43: 14.1 | H43: BSE
A44: 2021-02-09 | B44: 532092 | C44: SAGARPROD | D44: AVANI JASMIN AJMERA | E44: BUY | F44: 605,000 | G44: 6.53 | H44: BSE
A45: 2021-02-09 | B45: 508905 | C45: SMIFS | D45: MINAL BHARAT PATEL | E45: BUY | F45: 55,139 | G45: 44 | H45: BSE
A46: 2021-02-09 | B46: 538920 | C46: SPACEAGE | D46: MADHAVA RAO VELAGA | E46: BUY | F46: 50,000 | G46: 15.57 | H46: BSE
A47: 2021-02-09 | B47: 538920 | C47: SPACEAGE | D47: JAYSHREE JAIN | E47: SELL | F47: 101,221 | G47: 15.57 | H47: BSE
A48: 2021-02-09 | B48: 538920 | C48: SPACEAGE | D48: PRANAV JAGAD HUF | E48: SELL | F48: 137,879 | G48: 15.57 | H48: BSE
A49: 2021-02-09 | B49: 538920 | C49: SPACEAGE | D49: BHAMIDIPATY RAAJITA | E49: BUY | F49: 60,000 | G49: 15.57 | H49: BSE
A50: 2021-02-09 | B50: 538920 | C50: SPACEAGE | D50: ANSHU AGARWAL | E50: BUY | F50: 25,000 | G50: 15.57 | H50: BSE
A51: 2021-02-09 | B51: 538920 | C51: SPACEAGE | D51: RAHUL ANANTRAI MEHTA | E51: BUY | F51: 25,000 | G51: 15.57 | H51: BSE
A52: 2021-02-09 | B52: 538920 | C52: SPACEAGE | D52: GANNAVARAPU SUBBA RAO | E52: BUY | F52: 19,000 | G52: 15.57 | H52: BSE
A53: 2021-02-09 | B53: 538920 | C53: SPACEAGE | D53: SUDHAKAR NARAYAN SANKU | E53: BUY | F53: 26,500 | G53: 15.57 | H53: BSE
A54: 2021-02-09 | B54: 538920 | C54: SPACEAGE | D54: GOPISETTY MOHANA RAO | E54: BUY | F54: 30,000 | G54: 15.57 | H54: BSE
A55: 2021-02-09 | B55: 538920 | C55: SPACEAGE | D55: RAVI KHARWAD HUF | E55: SELL | F55: 30,000 | G55: 15.57 | H55: BSE
A56: 2021-02-09 | B56: BHARATWIRE | C56: Bharat Wire Ropes Ltd. | D56: BAKULESH TRAMBAKLAL SHAH | E56: BUY | F56: 700,000 | G56: 36.98 | H56: NSE
A57: 2021-02-09 | B57: JUMPNET | C57: Jump Networks Limited | D57: OLGA TRADING PRIVATE LIMITED | E57: BUY | F57: 2,301,671 | G57: 12.04 | H57: NSE
A58: 2021-02-09 | B58: KEERTI | C58: Keerti Know & Skill Ltd. | D58: OLGA TRADING PRIVATE LIMITED | E58: BUY | F58: 51,223 | G58: 26.74 | H58: NSE
A59: 2021-02-09 | B59: MAJESCO | C59: Majesco Limited | D59: VLS FINANCE LTD | E59: BUY | F59: 500,000 | G59: 55 | H59: NSE
A60: 2021-02-09 | B60: MCDHOLDING | C60: McDowell Holdings Limited | D60: SURESH POONATI | E60: BUY | F60: 97,556 | G60: 35.58 | H60: NSE
A61: 2021-02-09 | B61: NEULANDLAB | C61: Neuland Laboratories Ltd | D61: EMPLOYEES RETIREMENT SYSTEM OF TEXAS - SELF MANAGED PORTFOLIO | E61: BUY | F61: 86,000 | G61: 1842.24 | H61: NSE
A62: 2021-02-09 | B62: TEMBO | C62: Tembo Global Ind Ltd | D62: DINESH KUMAR JAIN | E62: BUY | F62: 32,000 | G62: 198.77 | H62: NSE
A63: 2021-02-09 | B63: AMJUMBO | C63: A and M Jumbo Bags Ltd | D63: JIGNESHKUMAR PARSOTTAMBHAI AMBALIA | E63: SELL | F63: 88,000 | G63: 12.41 | H63: NSE
A64: 2021-02-09 | B64: BHARATWIRE | C64: Bharat Wire Ropes Ltd. | D64: EPOCH SYNTHETICS PVT LTD | E64: SELL | F64: 417,833 | G64: 37 | H64: NSE
A65: 2021-02-09 | B65: JUMPNET | C65: Jump Networks Limited | D65: OLGA TRADING PRIVATE LIMITED | E65: SELL | F65: 1,052,104 | G65: 12.05 | H65: NSE
A66: 2021-02-09 | B66: JUMPNET | C66: Jump Networks Limited | D66: PROFIN COMMODITIES PRIVATE LIMITED | E66: SELL | F66: 2,000,000 | G66: 12.05 | H66: NSE
A67: 2021-02-09 | B67: KEERTI | C67: Keerti Know & Skill Ltd. | D67: OLGA TRADING PRIVATE LIMITED | E67: SELL | F67: 49,228 | G67: 26.7 | H67: NSE
A68: 2021-02-09 | B68: MAJESCO | C68: Majesco Limited | D68: THIRD ALPHA LLP | E68: SELL | F68: 289,800 | G68: 55.26 | H68: NSE
A69: 2021-02-09 | B69: MAJESCO | C69: Majesco Limited | D69: PARMOD AGGARWAL (HUF) | E69: SELL | F69: 398,930 | G69: 55 | H69: NSE
A70: 2021-02-09 | B70: MAJESCO | C70: Majesco Limited | D70: PRIYANK JASWANTRAI SANGHAVI | E70: SELL | F70: 200,000 | G70: 55.24 | H70: NSE
A71: 2021-02-09 | B71: MAJESCO | C71: Majesco Limited | D71: BESSEGGEN INFOTECH LLP | E71: SELL | F71: 338,860 | G71: 55 | H71: NSE
A72: 2021-02-09 | B72: MAJESCO | C72: Majesco Limited | D72: RAJASTHAN GLOBAL SECURITIES PVT LTD | E72: SELL | F72: 1,242,154 | G72: 55.65 | H72: NSE
A73: 2021-02-09 | B73: MAJESCO | C73: Majesco Limited | D73: GAURAV PALIWAL | E73: SELL | F73: 143,550 | G73: 55 | H73: NSE
A74: 2021-02-09 | B74: PPAP | C74: PPAP Automotive Limited | D74: MARCELLUS INVESTMENT MANAGERS PVT LTD | E74: SELL | F74: 83,814 | G74: 259.79 | H74: NSE
A75: 2021-02-09 | B75: SITINET | C75: Siti Networks Limited | D75: HDFC MF A/C HDFC GROWTH FUND | E75: SELL | F75: 6,000,000 | G75: 1.05 | H75: NSE
A76: 2021-02-09 | B76: TEMBO | C76: Tembo Global Ind Ltd | D76: SHRI RAVINDRA MEDIA VENTURES PRIVATE LIMITED | E76: SELL | F76: 36,000 | G76: 180.48 | H76: NSE

Sheet Call Tracker (Equity & F&O)
M5: Back To Main Page
A6: Retail Research Technical Calls & Fundamental Performance Report for the month of February-2021
M7: =Main!B10 -> 2021-02-10
B8: Positional Call
A9: Sr.no | B9: Date | D9: Company | E9: Rec | F9: Rec Price | G9: Stop Loss*** | H9: Call Closed At | I9: Target | J9: Remark | K9: Profit / Loss per Share | L9: All charges | M9: Net Gain / Loss % | N9: Status | O9: Closed Date
A10: 1 | B10: 2020-12-10 | D10: IRCTC | E10: Buy | F10: 1427.5 | G10: 1330 | H10: 1535 | I10: 1550-1600 | J10: Profit of Rs.107.5/- | K10: =H10-F10 -> 107.5 | L10: =(F10*-0.8)/100 -> -11.42 | M10: =(K10+L10)/F10 -> 6.73% | N10: Successful | O10: 2021-02-04 | R10: H
A11: 2 | B11: 2021-01-05 | D11: BRITANNIA | E11: Buy | F11: 3540 | G11: 3295 | H11: =(3682.5+3520)/2 -> 3601.25 | I11: 3900-4000 | J11: Profit of Rs.61.25/- | K11: =H11-F11 -> 61.25 | L11: =(F11*-0.8)/100 -> -28.32 | M11: =(K11+L11)/F11 -> 0.93% | N11: Successful | O11: 2021-02-01 | R11: H
A12: 3 | B12: 2021-02-02 | D12: JKCEMENT | E12: Buy | F12: 2197.5 | G12: 2070 | H12: 2357.5 | I12: 2400-2450 | J12: Profit of Rs.160/- | K12: 160 | L12: =(F12*-0.8)/100 -> -17.58 | M12: =(K12+L12)/F12 -> 6.48% | N12: Successful | O12: 2020-02-08 | R12: H
A13: 4 | B13: 2021-02-02 | D13: HINDUNILVR | E13: Buy | F13: 2235-2245 | G13: 2090 | I13: 2500-2550 | J13: Open | R13: H
A14: 5 | B14: 2021-02-04 | D14: PIIND | E14: Buy | F14: 2190 | G14: 1995 | H14: 2330 | I14: 2500 | J14: Profit of Rs.140/- | K14: =H14-F14 -> 140 | L14: =(F14*-0.07)/100 -> -1.53 | M14: =(K14+L14)/F14 -> 6.32% | N14: Successful | O14: 2020-02-04 | R14: H
A15: 6 | B15: 2021-02-09 | D15: IRCTC | E15: Buy | F15: 1597.5 | G15: 1514 | H15: 1661 | I15: 1750-1800 | J15: Part Profit of Rs.63.5/- | K15: =H15-F15 -> 63.5 | L15: =(F15*-0.07)/100 -> -1.12 | M15: =(K15+L15)/F15 -> 3.90% | N15: Successful | O15: 2020-02-09
A16: 7 | B16: 2021-02-09 | D16: PIIND | E16: Buy | F16: 2200-2210 | G16: 2070 | I16: 2400-2500 | J16: Open
A22: CLBS = Closing Basis ***
A23: Dividend adjusted <> | F23: Reinitiated $
A24: Part book {} | F24: Revised stoploss #
B26: Momentum Call
A27: Sr.no | B27: Date | D27: Company | E27: Rec | F27: Rec Price | G27: Stop Loss | H27: Call Closed At | I27: Target | J27: Remark | K27: Profit / Loss per Share/Lot | L27: All charges | M27: Net Gain / Loss % | N27: Status | O27: Closed Date
A28: 1 | B28: 2021-02-01 | D28: BHARTIARTL | E28: Buy | F28: 566 | G28: 548 | H28: 577 | I28: 600 | J28: Profit of Rs.11/- | K28: =H28-F28 -> 11 | L28: =(F28*-0.07)/100 -> -0.40 | M28: =(K28+L28)/F28 -> 1.87% | N28: Successful | O28: 2021-02-01 | R28: H
A29: 2 | B29: 2021-02-02 | D29: CESC | E29: Buy | F29: 627.5 | G29: 609 | H29: 608.5 | I29: 660 | J29: Loss of Rs.19/- | K29: -19 | L29: =(F29*-0.7)/100 -> -4.39 | M29: -3.73% | N29: Unsuccessful | O29: 2021-02-08 | R29: H
A30: 3 | B30: 2021-02-02 | D30: MCDOWELL-N | E30: Buy | F30: 576.5 | G30: 560 | H30: 590 | I30: 600-610 | J30: Profit of Rs.14/- | K30: =H30-F30 -> 13.5 | L30: =(F30*-0.7)/100 -> -4.04 | M30: =(K30+L30)/F30 -> 1.64% | N30: Successful | O30: 2021-02-04 | R30: N
A31: 4 | B31: 2021-02-02 | D31: BHARTIARTL | E31: Buy | F31: 601.5 | G31: 585 | H31: 615.5 | I31: 630 | J31: Profit of Rs.14/- | K31: =H31-F31 -> 14 | L31: =(F31*-0.7)/100 -> -4.21 | M31: =(K31+L31)/F31 -> 1.63% | N31: Successful | O31: 2021-02-03 | R31: H
A32: 5 | B32: 2021-02-03 | D32: KOTAKBANK | E32: Buy | F32: 1844 | G32: 1790 | H32: 1887.5 | I32: 1920-1950 | J32: Profit of Rs.43.5/- | K32: =H32-F32 -> 43.5 | L32: =(F32*-0.7)/100 -> -12.91 | M32: =(K32+L32)/F32 -> 1.66% | N32: Successful | O32: 2021-02-04 | R32: H
A33: 6 | B33: 2021-02-04 | D33: BHARTIARTL | E33: Buy | F33: 612.5 | G33: 598 | H33: 592.5 | I33: 640-650 | J33: Loss of Rs.20/- | K33: =H33-F33 -> -20 | L33: =(F33*-0.7)/100 -> -4.29 | M33: =(K33+L33)/F33 -> -3.97% | N33: Unsuccessful | O33: 2021-02-05 | R33: H
A34: 7 | B34: 2021-02-04 | D34: ICICIPRULI | E34: Buy | F34: 470-474 | G34: 457 | I34: 495-505 | J34: Open | R34: H
A35: 8 | B35: 2021-02-05 | D35: IRCTC | E35: Buy | F35: 1520 | G35: 1469 | H35: 1560 | I35: 1600-1620 | J35: Profit of Rs.40/- | K35: =H35-F35 -> 40 | L35: =(F35*-0.07)/100 -> -1.06 | M35: =(K35+L35)/F35 -> 2.56% | N35: Successful | O35: 2021-02-05
A36: 9 | B36: 2021-02-08 | D36: ZEEL | E36: Buy | F36: 220-222 | G36: 214.5 | I36: 230-235 | J36: Open
A41: CLBS = Closing Basis *** | H41: *
A42: Dividend adjusted <> | F42: Reinitiated $
F43: Revised stoploss #
A45: Master Trade High Risk
A46: Sr.no | B46: Date | D46: Company | E46: Rec | F46: Rec Price | G46: Stop Loss | H46: Call Closed At | I46: Target | J46: Remark | K46: Profit / Loss per share | L46: All charges | M46: Gain / Loss per Lot | N46: Lot | O46: Status | P46: Closed Date
A47: 1 | B47: 2021-02-02 | D47: AUROPHARMA FEB FUT | E47: Buy | F47: 925.5 | G47: 905 | H47: 941 | I47: 960-965 | J47: Profit of Rs.15.50/- | K47: =H47-F47 -> 15.5 | L47: =(H47*N47)*0.035% -> 214.08 | M47: =(K47*N47)-L47 -> 9860.9 | N47: 650 | O47: Successful | P47: 2021-02-03 | R47: N
A48: 2 | B48: 2021-02-02 | D48: RELIANCE FEB FUT | E48: Buy | F48: 1930 | G48: 1885 | H48: 1964 | I48: 2000 | J48: Profit of Rs.34/- | K48: =H48-F48 -> 34 | L48: =(H48*N48)*0.035% -> 171.85 | M48: =(K48*N48)-L48 -> 8328.2 | N48: 250 | O48: Successful | P48: 2021-02-08 | R48: H
A49: 3 | B49: 2021-02-03 | D49: NIFTY FEB FUT | E49: Sell | F49: 14700 | G49: 14820 | H49: 14820 | I49: 14500 | J49: Loss of Rs, 120/- | K49: =F49-H49 -> -120 | L49: 389.025 | M49: =(K49*N49)-L49 -> -9389.025 | N49: 75 | O49: Unsuccessful | P49: 2021-02-03 | R49: H
A50: 4 | B50: 2021-02-03 | D50: BATAINDIA FEB FUT | E50: Buy | F50: 1569 | G50: 1545 | H50: 1586 | I50: 1600-1620 | J50: Profit of Rs.17/- | K50: =H50-F50 -> 17 | L50: =(H50*N50)*0.035% -> 305.31 | M50: =(K50*N50)-L50 -> 9044.7 | N50: 550 | O50: Successful | P50: 2021-02-03 | R50: N
A51: 5 | B51: 2021-02-04 | D51: AUROPHARMA FEB FUT | E51: Buy | F51: 924 | G51: 903 | H51: 942 | I51: 960-965 | J51: Profit of Rs.18/- | K51: =H51-F51 -> 18 | L51: 214.31 | M51: 11485.7 | N51: 650 | O51: Successful | P51: 2021-02-05 | R51: N
A52: 6 | B52: 2021-02-05 | D52: NIFTY FEB FUT | E52: Sell | F52: 14980 | G52: 15080 | H52: 14910 | I52: 14800 | J52: Profit of Rs.70/- | K52: =F52-H52 -> 70 | L52: =(H52*N52)*0.035% -> 391.39 | M52: =(K52*N52)-L52 -> 4858.6 | N52: 75 | O52: Successful | P52: 2021-02-05
A53: 7 | B53: 2021-02-08 | D53: HDFCLIFE FEB FUT | E53: Buy | F53: 687 | G53: 675 | H53: 697.5 | I53: 710 | J53: Profit of Rs.10.5/- | K53: =H53-F53 -> 10.5 | L53: 268.54 | M53: 11281.5 | N53: 1100 | O53: Successful | P53: 2021-02-09
A61: Master Trade Medium Risk
A62: Sr.no | B62: Date | D62: Company | E62: Rec | F62: Rec Price | G62: Stop Loss | H62: Call Closed At | I62: Target | J62: Remark | K62: Profit/ Loss per lot | L62: All charges | M62: Gain / Loss per Lot | N62: Lot | O62: Status | P62: Closed Date
A63: 1 | B63: 2021-01-29 | D63: NIFTY 13800 PE 11-FEB | E63: Buy | F63: 210-220 | J63: Open | R63: N
D64: NIFTY 13400 PE 11-FEB | E64: Sell | F64: 95-100 | R64: N
A65: 2 | B65: 2021-02-01 | D65: NIFTY 13800 PE 4-FEB | E65: Buy | F65: 67.5 | G65: 35 | H65: 35 | I65: 150 | J65: Loss of Rs, 32.5/- | K65: =H65-F65 -> -32.5 | L65: 100 | M65: =(K65*N65)+L65 -> -2337.5 | N65: 75 | O65: Unsuccessful | P65: 2021-02-01 | R65: H
A66: 3 | B66: 2021-02-03 | D66: NIFTY 14800 PE 4-FEB | E66: Buy | F66: 51 | G66: 18 | H66: 71.5 | I66: 100-120 | J66: Profit of Rs.20.50/- | K66: =H66-F66 -> 20.5 | L66: 100.00 | M66: =(K66*N66)-L66 -> 1437.5 | N66: 75 | O66: Successful | P66: 2021-02-03 | R66: H
A67: 4 | B67: 2021-02-03 | D67: NIFTY 14800 PE 4-FEB | E67: Buy | F67: 52.5 | G67: 19 | H67: 72 | I67: 100-120 | J67: Profit of Rs.19.50/- | K67: =H67-F67 -> 19.5 | L67: 100.00 | M67: 1362.5 | N67: 75 | O67: Successful | P67: 2021-02-03 | R67: H
A68: 5 | B68: 2021-02-05 | D68: NIFTY 15100 CE 25-FEB | E68: Sell | F68: 227 | G68: 325 | H68: 325 | I68: 50-10 | J68: Loss of Rs, 98/- | K68: =F68-H68 -> -98 | L68: 100 | M68: =(K68*N68)+L68 -> -7250 | N68: 75 | O68: Unsuccessful | P68: 2021-02-09
A78: Techno -Funda (positional)
A79: Sr.no | B79: Date | D79: Company | E79: Rec | F79: Rec Price | G79: Stop Loss*** | H79: Call Closed At | I79: Target | J79: Remark | K79: Profit / Loss per Share/Lot | L79: All charges | M79: Net Gain / Loss % | N79: Status | O79: Closed Date
A80: 1 | B80: 2021-01-07 | D80: SIS | E80: Buy | F80: 420-428 | G80: 385 | I80: 500-520 | J80: Open | R80: H
A82: CLBS = Closing Basis *** | F82: Reinitiated $
A83: Dividend adjusted <> | F83: Revised stoploss #
B85: Intrday Call
A86: Sr.no | B86: Date | D86: Company | E86: Rec | F86: Rec Price | G86: Stop Loss | H86: Call Closed At | I86: Target | J86: Remark | K86: Profit / Loss per Share/Lot | L86: Gain / Loss per Lot | M86: Lot | N86: All charges | O86: Net Gain / Loss % | P86: Status | Q86: Closed Date
B99: Investment Idea
A100: Sr.no | B100: Date | D100: Company | E100: Rec | F100: Rec Price | G100: Point of Review | H100: Close Rate | I100: Target | J100: Remark | K100: Profit / Loss per Share | L100: Gain / Loss % | M100: Status | N100: Closed Date
A101: 1 | B101: 2013-11-01 | D101: L&T Finance Holding | E101: Accu | F101: 82.00 | G101: - | H101: 100 | I101: 100.00 | J101: Target Achieved | K101: =H101-F101 -> 18.00 | L101: =K101/F101 -> 21.95% | M101: Successful | N101: 2016-10-14
A102: 2 | B102: 2014-06-04 | D102: Finolex Inds | E102: Buy | F102: 257.00 | G102: - | H102: 300 | I102: 300.00 | J102: Target Achieved | K102: 43.00 | L102: 16.73% | M102: Successful | N102: 2014-07-02
A103: 3 | B103: 2014-07-08 | D103: JK Cement | E103: Buy | F103: 393.00 | G103: - | H103: 468 | I103: 468.00 | J103: Target Achieved | K103: 75.00 | L103: 19.08% | M103: Successful | N103: 2014-08-12
A104: 4 | B104: 2014-08-06 | D104: Finolex Cables | E104: Buy | F104: 205.00 | G104: - | H104: 275 | I104: 250.00 | J104: Target Achieved | K104: 70.00 | L104: 34.15% | M104: Successful | N104: 2014-11-19
A105: 5 | B105: 2014-09-04 | D105: Exide Inds | E105: Buy | F105: 162.00 | G105: - | H105: 190 | I105: 190.00 | J105: Target Achieved | K105: 28.00 | L105: 17.28% | M105: Successful | N105: 2015-01-02
A106: 6 | B106: 2014-09-04 | D106: Deepak Nitrite | E106: Buy | F106: 75.00 | G106: - | H106: 91.5 | I106: 95-100 | J106: Profit of Rs.16.50/- | K106: 16.50 | L106: 22.00% | M106: Successful | N106: 2014-11-11
A107: 7 | B107: 2014-10-01 | D107: Mercks | E107: Buy | F107: 850.00 | G107: - | H107: 982.5 | I107: 1050.00 | J107: Profit of Rs.132.50/- | K107: 132.50 | L107: 15.59% | M107: Successful | N107: 2015-02-04
A108: 8 | B108: 2014-10-01 | D108: Grindwell Norton | E108: Buy | F108: 475.00 | G108: - | H108: 515 | I108: 600.00 | J108: Profit of Rs.40/- | K108: 40.00 | L108: 8.42% | M108: Successful | N108: 2014-10-27
A109: 9 | B109: 2014-10-01 | D109: Snowman Logistics | E109: Buy | F109: 86.00 | G109: - | H109: 99 | I109: 140.00 | J109: Profit of Rs.13.00/- | K109: 13.00 | L109: 15.12% | M109: Successful | N109: 2014-10-27
A110: 10 | B110: 2014-10-14 | D110: Birla Corp | E110: Buy | F110: 496.60 | G110: - | H110: 621 | I110: 580.00 | J110: Target Achieved | K110: 124.40 | L110: 25.05% | M110: Successful | N110: 2016-08-23
A111: 11 | B111: 2014-10-14 | D111: Ultratech Cem | E111: Buy | F111: 2481.90 | G111: - | H111: 2840 | I111: 2870.00 | J111: Profit of Rs.358.10/- | K111: 358.10 | L111: 14.43% | M111: Successful | N111: 2015-01-13
A112: 12 | B112: 2014-10-16 | D112: Sintex Inds | E112: Buy | F112: 84.50 | G112: - | H112: 93 | I112: 110.00 | J112: Profit of Rs.8.50/- | K112: 8.50 | L112: 10.06% | M112: Successful | N112: 2014-10-27
A113: 13 | B113: 2014-10-16 | D113: HSIL | E113: Buy | F113: 401.00 | G113: - | H113: 428 | I113: 450.00 | J113: Profit of Rs.27.00/- | K113: 27.00 | L113: 6.73% | M113: Successful | N113: 2015-01-16
A114: 14 | B114: 2014-10-16 | D114: Eveready Inds | E114: Buy | F114: 101.00 | G114: - | H114: 112 | I114: 120.00 | J114: Profit of Rs.11.00/- | K114: 11.00 | L114: 10.89% | M114: Successful | N114: 2014-10-27
A115: 15 | B115: 2014-11-11 | D115: Pennar Inds | E115: Buy | F115: 59.00 | G115: - | H115: 76 | I115: 76.00 | J115: Target Achieved | K115: 17.00 | L115: 28.81% | M115: Successful | N115: 2017-10-24
A116: 16 | B116: 2014-11-11 | D116: Snowman Logistics | E116: Buy | F116: 99.00 | G116: - | H116: 120 | I116: 120.00 | J116: Profit of Rs.21/- | K116: 21.00 | L116: 21.21% | M116: Successful | N116: 2014-11-17
A117: 17 | B117: 2014-11-13 | D117: Dharamsi Morarji Chem | E117: Buy | F117: 22.00 | G117: - | H117: 33.55 | I117: 32.00 | J117: Profit of Rs 11.55/- | K117: 11.55 | L117: 52.50% | M117: Successful | N117: 2015-07-03
A118: 18 | B118: 2014-12-03 | D118: Tatachem | E118: Buy | F118: 440.00 | G118: - | H118: 520 | I118: 520.00 | J118: Profit of Rs 80.00/- | K118: 80.00 | L118: 18.18% | M118: Successful | N118: 2015-07-23
A119: 19 | B119: 2014-12-03 | D119: Advanta | E119: Buy | F119: 360.00 | G119: - | H119: 427 | I119: 425.00 | J119: Profit of Rs.67.00/- | K119: 67.00 | L119: 18.61% | M119: Successful | N119: 2015-02-23
A120: 20 | B120: 2015-01-08 | D120: GDL | E120: Buy | F120: 360.00 | G120: - | H120: 455 | I120: 420.00 | J120: Profit of Rs.95.00/- | K120: 95.00 | L120: 26.39% | M120: Successful | N120: 2015-01-20
A121: 21 | B121: 2015-01-08 | D121: NRB Bearing | E121: Buy | F121: 130.00 | H121: 175.5 | I121: 165.00 | J121: Profit of Rs 45.50/- | K121: 45.50 | L121: 35.00% | M121: Successful | N121: 2017-12-19
A122: 22 | B122: 2015-02-05 | D122: GSFC | E122: Accu | F122: 98.00 | H122: 120 | I122: 120.00 | J122: Target Achieved | K122: 22.00 | L122: 22.45% | M122: Successful | N122: 2017-01-18
A123: 23 | B123: 2015-02-05 | D123: Sundrmfast | E123: Accu | F123: 196.00 | H123: 262 | I123: 255.00 | J123: Target Achieved | K123: 66.00 | L123: 33.67% | M123: Successful | N123: 2016-08-17
A124: 24 | B124: 2015-03-04 | D124: GPPL | E124: Accu | F124: 235 | H124: 77.00 | I124: 280-285 | J124: Loss of Rs.158/- | K124: -158.00 | L124: -67.23% | M124: Unsuccessful | N124: 2019-02-26
A125: 25 | B125: 2015-03-04 | D125: ORIENTCEM | E125: Accu | F125: 185.00 | H125: 224 | I125: 220-225 | J125: Target Achieved | K125: 39.00 | L125: 21.08% | M125: Successful | N125: 2016-10-04
A126: 26 | B126: 2015-03-27 | D126: PFS | E126: Accu | F126: 49.5 | H126: 15.85 | I126: 67.00 | J126: Loss of Rs.33.65/- | K126: -33.65 | L126: -68% | M126: Unsuccessful | N126: 2019-06-11
A127: 27 | B127: 2015-03-30 | D127: Walchandnagar Ind Ltd | E127: Accu | F127: 183.50 | H127: 219 | I127: 218.00 | J127: Profit of Rs.35.50/- | K127: 35.50 | L127: 19.35% | M127: Successful | N127: 2015-04-09
A128: 28 | B128: 2015-04-20 | D128: Kalpataru Power Transmission Ltd | E128: Accu | F128: =(227+237)/2 -> 232.00 | H128: 298 | I128: 298.00 | J128: Target Achieved | K128: 66.00 | L128: 28.45% | M128: Successful | N128: 2017-03-29
A129: 29 | B129: 2015-05-04 | D129: Mastek Ltd | E129: Buy | F129: 385.00 | H129: =212.5+331 -> 543.5 | I129: 510.00 | J129: Profit of Rs 158.50/- | K129: 158.50 | L129: 41.17% | M129: Successful | N129: 2015-08-19
A130: 30 | B130: 2015-05-04 | D130: Suprajit Eng | E130: Buy | F130: 115.50 | H130: 146 | I130: 142.00 | J130: Profit of Rs 30.50/- | K130: 30.50 | L130: 26.41% | M130: Successful | N130: 2015-07-17
A131: 31 | B131: 2015-05-27 | D131: TCI | E131: Buy | F131: 237.50 | H131: 279.5 | I131: 278.00 | J131: Target Achieved | K131: 42.00 | L131: 17.68% | M131: Successful | N131: 2015-08-06
A132: 32 | B132: 2015-06-19 | D132: HSIL | E132: Accu | F132: 340.00 | H132: 448 | I132: 448.00 | J132: Target Achieved | K132: 108.00 | L132: 31.76% | M132: Successful | N132: 2017-10-10
A133: 33 | B133: 2015-07-06 | D133: Capital First | E133: Accu | F133: 390.00 | H133: 460 | I133: 460.00 | J133: Target Achieved | K133: =H133-F133 -> 70.00 | L133: =K133/F133 -> 17.95% | M133: Successful | N133: 2016-04-18
A134: 34 | B134: 2015-07-10 | D134: Dolphin OffShore | E134: Accu | F134: 122.5 | H134: 61.00 | I134: 172.00 | J134: Loss of Rs.61.50/- | K134: -61.50 | L134: -50.20% | M134: Unsuccessful | N134: 2018-08-21
A135: 35 | B135: 2015-08-03 | D135: Allcargo logistics | E135: Accu | F135: 297.50 | H135: 350 | I135: 360.00 | J135: Profit of Rs 52.50/- | K135: 52.50 | L135: 17.65% | M135: Successful | N135: 2015-08-16
A136: 36 | B136: 2015-08-03 | D136: Camline Fine | E136: Accu | F136: 115.50 | H136: 149 | I136: 140.00 | J136: Profit of Rs 33.50/- | K136: 33.50 | L136: 29.00% | M136: Successful | N136: 2017-01-05
A137: 37 | B137: 2015-09-04 | D137: TCI | E137: Accu | F137: 226.00 | H137: 292 | I137: 292.00 | J137: Target Achieved | K137: 66.00 | L137: 29.20% | M137: Successful | N137: 2015-10-09
A138: 38 | B138: 2015-09-07 | D138: Kalpataru Power Transmission Ltd | E138: Accu | F138: 232.50 | H138: 312.5 | I138: 310.00 | J138: Target Achieved | K138: 80.00 | L138: 34.41% | M138: Successful | N138: 2017-03-29
A139: 39 | B139: 2015-09-21 | D139: LLOYD ELECTRIC & ENG LTD | E139: Accu | F139: 196.50 | H139: 238 | I139: 238.00 | J139: Target Achieved | K139: 41.50 | L139: 21.12% | M139: Successful | N139: 2015-10-14
A140: 40 | B140: 2015-09-24 | D140: L&T Finance Holding | E140: Accu | F140: 65.00 | H140: 82 | I140: 82.00 | J140: Target Achieved | K140: 17.00 | L140: 26.15% | M140: Successful | N140: 2016-07-27
A141: 41 | B141: 2015-10-14 | D141: KEC International ltd | E141: Accu | F141: 144.00 | H141: 182.5 | I141: 181.00 | J141: Target Achieved | K141: 38.50 | L141: 26.74% | M141: Successful | N141: 2017-03-23
A142: 42 | B142: 2015-10-14 | D142: Gruh Finance | E142: Accu | F142: 264.00 | H142: 311 | I142: 311.00 | J142: Target Achieved | K142: 47.00 | L142: 17.80% | M142: Successful | N142: 2016-08-22
A143: 43 | B143: 2015-11-10 | D143: Pidilitind | E143: Buy | F143: 549.50 | H143: 630 | I143: 630.00 | J143: Target Achieved | K143: 80.50 | L143: 14.65% | M143: Successful | N143: 2016-02-19
A144: 44 | B144: 2015-12-04 | D144: Zensar Technology | E144: Accu | F144: 1027.50 | H144: 1315 | I144: 1250.00 | J144: Target Achieved | K144: 287.50 | L144: 27.98% | M144: Successful | N144: 2018-05-24
A145: 45 | B145: 2015-12-29 | D145: Vinati Organics Ltd | E145: Accu | F145: 465.00 | H145: 540 | I145: 540.00 | J145: Target Achieved | K145: 75.00 | L145: 16.13% | M145: Successful | N145: 2016-06-09
A146: 46 | B146: 2016-01-11 | D146: GSFC | E146: Buy | F146: 81.00 | H146: 110 | I146: 110.00 | J146: Target Achieved | K146: 29.00 | L146: 35.80% | M146: Successful | N146: 2017-01-10
A147: 47 | B147: 2016-01-13 | D147: SSWL | E147: Buy | F147: 417.50 | H147: 547 | I147: 535.00 | J147: Target Achieved | K147: 129.50 | L147: 31.02% | M147: Successful | N147: 2016-07-27
A148: 48 | B148: 2016-02-08 | D148: Persistent System Ltd | E148: Accu | F148: 650.00 | H148: 800 | I148: 800.00 | J148: Target Achieved | K148: 150.00 | L148: 23.08% | M148: Successful | N148: 2018-02-23
A149: 49 | B149: 2016-03-04 | D149: UPL | E149: Accu | F149: 437.50 | H149: 504.5 | I149: 522.00 | J149: Profit of Rs.67/- | K149: 67.00 | L149: 15.31% | M149: Successful | N149: 2016-04-20
A150: 50 | B150: 2016-03-09 | D150: Ashoka Buildcon Ltd | E150: Accu | F150: 189.50 | H150: 218 | I150: 218.00 | J150: Target Achieved | K150: 28.50 | L150: 15.04% | M150: Successful | N150: 2017-10-26
A151: 51 | B151: 2016-04-11 | D151: PTC INDIA FIN SERV LTD | E151: Accu | F151: 36.5 | H151: 15.85 | I151: 60.00 | J151: Loss of Rs.20.65/- | K151: -20.65 | L151: -56.58% | M151: Unsuccessful | N151: 2019-06-11
A152: 52 | B152: 2016-04-12 | D152: CAMLINFINE $ | E152: Accu | F152: 93.00 | H152: 149 | I152: 140.00 | J152: Profit of Rs 56/- | K152: 56.00 | L152: 60.22% | M152: Successful | N152: 2017-01-05
A153: 53 | B153: 2016-04-12 | D153: Greaves Cotton Ltd. | E153: Accu | F153: 130.00 | H153: 150 | I153: 150-155 | J153: Target Achieved | K153: 20.00 | L153: 15.38% | M153: Successful | N153: 2016-07-13
A154: 54 | B154: 2016-04-13 | D154: DHFL | E154: Accu | F154: 196.00 | H154: 299 | I154: 299.00 | J154: Target Achieved | K154: 103.00 | L154: 52.55% | M154: Successful | N154: 2016-09-07
A155: 55 | B155: 2016-04-13 | D155: Magma | E155: Accu | F155: 88.00 | H155: 103 | I155: 103.00 | J155: Target Achieved | K155: 15.00 | L155: 17.05% | M155: Successful | N155: 2016-06-09
A156: 56 | B156: 2016-05-02 | D156: KEC International ltd $ | E156: Accu | F156: 127.50 | H156: 148 | I156: 148-150 | J156: Target Achieved | K156: =H156-F156 -> 20.50 | L156: =K156/F156 -> 16.08% | M156: Successful | N156: 2016-07-13
A157: 57 | B157: 2016-05-03 | D157: Mindtree | E157: Accu | F157: 675.00 | H157: 815 | I157: 790-800 | J157: Target Achieved | K157: =H157-F157 -> 140.00 | L157: =K157/F157 -> 20.74% | M157: Successful | N157: 2018-02-23
A158: 58 | B158: 2016-06-01 | D158: Atulauto | E158: Accu | F158: 500 | H158: 232.50 | I158: 565-570 | J158: Loss of Rs.267.50 /- | K158: =H158-F158 -> -267.50 | L158: =K158/F158 -> -53.50% | M158: Unsuccessful | N158: 2019-09-27
A159: 59 | B159: 2016-06-06 | D159: TRITURBINE | E159: Accu | F159: 110.00 | H159: 126.5 | I159: 125.00 | J159: Profit of Rs.16.50/- | K159: =H159-F159 -> 16.50 | L159: =K159/F159 -> 15.00% | M159: Successful | N159: 2016-07-01
A160: 60 | B160: 2016-06-17 | D160: Pennar Industries Ltd | E160: Accu | F160: 44.00 | H160: 69.5 | I160: 69.50 | J160: Profit of Rs.25.50/- | K160: =H160-F160 -> 25.50 | L160: =K160/F160 -> 57.95% | M160: Successful | N160: 2017-08-30
A161: 61 | B161: 2016-06-28 | D161: EVEREADY | E161: Accu | F161: 262.50 | H161: 340 | I161: 333.00 | J161: Profit of Rs.77.50/- | K161: 77.50 | L161: 29.52% | M161: Successful | N161: 2017-10-09
A162: 62 | B162: 2016-06-28 | D162: FIEMIND | E162: Accu | F162: 840.00 | H162: 1230 | I162: 1230.00 | J162: Target Achieved | K162: 390.00 | L162: 46.43% | M162: Successful | N162: 2016-10-06
A163: 63 | B163: 2016-07-05 | D163: Bajaj Corp Ltd | E163: Accu | F163: 395 | H163: =(468.5+342.5)/2 -> 405.50 | I163: 510.00 | J163: Profit of Rs.10.50/- | K163: =H163-F163 -> 10.50 | L163: =K163/F163 -> 3% | M163: Neutral | N163: 2019-05-21
A164: 64 | B164: 2016-08-02 | D164: GPPL $ | E164: Buy | F164: =169.5-12.8 -> 156.7 | H164: 77.00 | I164: 198-200 | J164: Loss of Rs.79.7/- | K164: -79.70 | L164: -50.86% | M164: Unsuccessful | N164: 2019-02-26
A165: 65 | B165: 2016-08-04 | D165: WONDERLA HOLIDAYS LTD | E165: Accu | F165: 400 | H165: 305.00 | I165: 475.00 | J165: Loss of Rs.95/- | K165: -95.00 | L165: -23.75% | M165: Unsuccessful | N165: 2019-05-21
A166: 66 | B166: 2016-08-11 | D166: CAMLINFINE | E166: Accu | F166: 86.50 | H166: 130 | I166: 130.00 | J166: Profit of Rs.43.50/- | K166: 43.50 | L166: 50.29% | M166: Successful | N166: 2017-12-22
A167: 67 | B167: 2016-08-18 | D167: GRANULES | E167: Accu | F167: 133.5 | H167: 126.50 | I167: 178.00 | J167: Exit | K167: -7.00 | L167: -5.24% | M167: Unsuccessful | N167: 2016-09-02
A168: 68 | B168: 2016-08-31 | D168: VA TECH WABAG | E168: Accu | F168: 560.00 | H168: 725 | I168: 725.00 | J168: Target Achieved | K168: 165.00 | L168: 29.46% | M168: Successful | N168: 2016-03-27
A169: 69 | B169: 2016-09-01 | D169: SKIPPER LIMITED | E169: Accu | F169: 160.50 | H169: 210 | I169: 210.00 | J169: Target Achieved | K169: 49.50 | L169: 30.84% | M169: Successful | N169: 2017-05-16
A170: 70 | B170: 2016-10-03 | D170: IFBIND | E170: Accu | F170: 430.00 | H170: 596 | I170: 575.00 | J170: Profit of Rs.166/- | K170: 166.00 | L170: 38.60% | M170: Successful | N170: 2017-02-03
A171: 71 | B171: 2016-10-14 | D171: ASIANTILES | E171: Accu | F171: 280.00 | H171: 345 | I171: 345.00 | J171: Target Achieved | K171: =H171-F171 -> 65.00 | L171: =K171/F171 -> 23.21% | M171: Successful | N171: 2017-03-20
A172: 72 | B172: 2016-10-14 | D172: DEEPIND | E172: Accu | F172: 245.00 | H172: 325.5 | I172: 330.00 | J172: Profit of Rs.80.5/- | K172: 80.50 | L172: =K172/F172 -> 32.86% | M172: Successful | N172: 2017-02-03
A173: 73 | B173: 2016-10-17 | D173: DCBBANK | E173: Accu | F173: 125.00 | H173: 160 | I173: 160.00 | J173: Target Achieved | K173: 35.00 | L173: 28.00% | M173: Successful | N173: 2017-03-09
A174: 74 | B174: 2016-10-17 | D174: ORIENTREF | E174: Accu | F174: 114.00 | H174: 145 | I174: 145.00 | J174: Target Achieved | K174: 31.00 | L174: =K174/F174 -> 27.19% | M174: Successful | N174: 2017-05-04
A175: 75 | B175: 2016-10-17 | D175: GANECOS | E175: Accu | F175: 212.00 | H175: 280 | I175: 276.00 | J175: Profit of Rs.68/- | K175: 68.00 | L175: =K175/F175 -> 32.08% | M175: Successful | N175: 2017-05-03
A176: 76 | B176: 2016-11-04 | D176: NBCC | E176: Accu | F176: 155.00 | H176: 210 | I176: 210.00 | J176: Profit of Rs.55/- | K176: 55.00 | L176: =K176/F176 -> 35.48% | M176: Successful | N176: 2017-07-28
A177: 77 | B177: 2016-12-06 | D177: PRECAM | E177: Accu | F177: 150.5 | H177: 72.50 | I177: 174.00 | J177: Loss of Rs.78/- | K177: -78.00 | L177: -51.83% | M177: Unsuccessful | N177: 2018-08-21
A178: 78 | B178: 2016-12-08 | D178: INFRATEL | E178: Accu | F178: 380.00 | H178: 478 | I178: 468.00 | J178: Target Achieved | K178: =H178-F178 -> 98.00 | L178: =K178/F178 -> 25.79% | M178: Successful | N178: 2017-10-17
A179: 79 | B179: 2016-12-30 | D179: GODREJPROP | E179: Accu | F179: 305.00 | H179: 375 | I179: 375.00 | J179: Target Achieved | K179: =H179-F179 -> 70.00 | L179: =K179/F179 -> 22.95% | M179: Successful | N179: 2017-02-02
A180: 80 | B180: 2017-01-04 | D180: DEEPAKNTR | E180: Accu | F180: 99.50 | H180: 158 | I180: 158.00 | J180: Target Achieved | K180: =H180-F180 -> 58.50 | L180: =K180/F180 -> 58.79% | M180: Successful | N180: 2017-06-12
A181: 81 | B181: 2017-01-04 | D181: DEEPAKNTR | E181: Accu | F181: 99.50 | H181: 158 | I181: 158.00 | J181: Target Achieved | K181: 58.50 | L181: 58.79% | M181: Successful | N181: 2017-06-12
A182: 82 | B182: 2017-02-20 | D182: RECLTD | E182: Accu | F182: 140.50 | H182: 220 | I182: 220.00 | J182: Target Achieved | K182: =H182-F182 -> 79.50 | L182: =K182/F182 -> 56.58% | M182: Successful | N182: 2017-05-09
A183: 83 | B183: 2017-02-20 | D183: SUBROS | E183: Accu | F183: 202.50 | H183: 234 | I183: 234.00 | J183: Target Achieved | K183: 31.50 | L183: 15.56% | M183: Successful | N183: 2017-04-11
A184: 84 | B184: 2017-03-24 | D184: VRLLOG | E184: Accu | F184: 300.50 | H184: 417.5 | I184: 420.00 | J184: Profit of Rs.117/- | K184: =H184-F184 -> 117.00 | L184: =K184/F184 -> 38.94% | M184: Successful | N184: 2017-12-01
A185: 85 | B185: 2017-03-24 | D185: FIEMIND | E185: Accu | F185: 850.00 | H185: 1042.5 | I185: 1023.00 | J185: Profit of Rs 192.50/- | K185: 192.50 | L185: 22.65% | M185: Successful | N185: 2017-04-05
A186: 86 | B186: 2017-04-05 | D186: RATNAMANI | E186: Accu | F186: 785.00 | H186: 930 | I186: 920.00 | J186: Profit of Rs.145/- | K186: =H186-F186 -> 145.00 | L186: =K186/F186 -> 18.47% | M186: Successful | N186: 2017-08-29
A187: 87 | B187: 2017-04-06 | D187: ZEEMEDIA | E187: Accu | F187: 40 | H187: 13.10 | I187: 60.00 | J187: Loss of Rs.26.9/- | K187: -26.90 | L187: -67.25% | M187: Unsuccessful | N187: 2018-02-07
A188: 88 | B188: 2017-04-12 | D188: DABUR | E188: Accu | F188: 289.50 | H188: 354 | I188: 360.00 | J188: Profit of Rs.64.5/- | K188: =H188-F188 -> 64.50 | L188: =K188/F188 -> 22.28% | M188: Successful | N188: 2017-11-01
A189: 89 | B189: 2017-04-20 | D189: KPRMILL | E189: Accu | F189: 700.00 | H189: 840 | I189: 840.00 | J189: Profit of Rs.140/- | K189: 140.00 | L189: 20.00% | M189: Successful | N189: 2017-06-07
A190: 90 | B190: 2017-06-01 | D190: ESSELPACK | E190: Accu | F190: 130.00 | H190: 144.25 | I190: 170.00 | J190: Profit of Rs.14.25/- | K190: 14.25 | L190: 10.96% | M190: Successful | N190: 2019-07-29
A191: 91 | B191: 2017-06-15 | D191: KEI | E191: Accu | F191: 214.50 | H191: 262 | I191: 262.00 | J191: Profit of Rs.47.5/- | K191: 47.50 | L191: 22.14% | M191: Successful | N191: 2017-08-30
A192: 92 | B192: 2017-07-17 | D192: MAYURUNIQ | E192: Accu | F192: 370.00 | H192: 447.5 | I192: 450.00 | J192: Target Achieved | K192: 77.50 | L192: 20.95% | M192: Successful | N192: 2017-10-27
A193: 93 | B193: 2017-07-27 | D193: RAMCOCEM | E193: Accu | F193: 657.50 | H193: 825 | I193: 820.00 | J193: Target Achieved | K193: 167.50 | L193: 25.48% | M193: Successful | N193: 2017-12-21
A194: 94 | B194: 2017-08-17 | D194: FINPIPE | E194: Accu | F194: 605.00 | H194: 750 | I194: 750.00 | J194: Profit of Rs.145/- | K194: 145.00 | L194: 23.97% | M194: Successful | N194: 2017-10-19
A195: 95 | B195: 2017-09-01 | D195: SHK | E195: Accu | F195: 255 | H195: 217.25 | I195: 320.00 | J195: Loss of Rs.37.75/- | K195: -37.75 | L195: -15% | M195: Unsuccessful | N195: 2019-07-15
A196: 96 | B196: 2017-09-19 | D196: SKIPPER | E196: Accu | F196: 215.00 | H196: 258 | I196: 258.00 | J196: Target Achieved | K196: 43.00 | L196: 20.00% | M196: Successful | N196: 2017-11-01
A197: 97 | B197: 2017-09-19 | D197: SKIPPER | E197: Accu | F197: 215.00 | H197: 258 | I197: 258.00 | J197: Target Achieved | K197: 43.00 | L197: 20.00% | M197: Successful | N197: 2017-11-01
A198: 98 | B198: 2017-09-20 | D198: CAMLINFINE$ | E198: Accu | F198: 75.00 | H198: 90 | I198: 90.00 | J198: Profit of Rs.15.00/- | K198: =H198-F198 -> 15.00 | L198: =K198/F198 -> 20.00% | M198: Successful | N198: 2017-10-11
A199: 99 | B199: 2017-10-03 | D199: GNA | E199: Accu | F199: 315.00 | H199: 392 | I199: 384.00 | J199: Profit of Rs.77/- | K199: 77.00 | L199: 24.44% | M199: Successful | N199: 2017-10-09
A200: 100 | B200: 2017-10-05 | D200: NOCIL | E200: Accu | F200: 145.00 | H200: 179 | I200: 180.00 | J200: Profit of Rs.34/- | K200: 34.00 | L200: 23.45% | M200: Successful | N200: 2017-10-17
A201: 101 | B201: 2017-10-06 | D201: CENTURYPLY | E201: Accu | F201: 256.00 | H201: 323 | I201: 320.00 | J201: Target Achieved | K201: 67.00 | L201: 26.17% | M201: Successful | N201: 2017-11-28
A202: 102 | B202: 2017-10-09 | D202: EIHOTEL | E202: Accu | F202: 137.50 | H202: 184 | I202: 183.00 | J202: Profit of Rs.46.5/- | K202: 46.50 | L202: 33.82% | M202: Successful | N202: 2018-01-08
A203: 103 | B203: 2017-10-10 | D203: NRBBEARING | E203: Accu | F203: 125.50 | H203: 158 | I203: 155.00 | J203: Profit of Rs.32.5/- | K203: 32.50 | L203: 25.90% | M203: Successful | N203: 2017-11-28
A204: 104 | B204: 2017-10-10 | D204: BOROSIL | E204: Accu | F204: 895.00 | H204: 1122.5 | I204: 1078.00 | J204: Profit of Rs.227.5/- | K204: 227.50 | L204: 25.42% | M204: Successful | N204: 2018-01-17
A205: 105 | B205: 2017-10-12 | D205: CYIENT | E205: Accu | F205: 525.00 | H205: 629 | I205: 629.00 | J205: Target Achieved | K205: 104.00 | L205: 19.81% | M205: Successful | N205: 2018-01-19
A206: 106 | B206: 2017-11-07 | D206: HATSUN | E206: Accu | F206: 740.00 | H206: 892.5 | I206: 900.00 | J206: Profit of Rs.152.5/- | K206: =H206-F206 -> 152.50 | L206: =K206/F206 -> 20.61% | M206: Successful | N206: 2017-11-13
A207: 107 | B207: 2017-12-04 | D207: SANGHIIND | E207: Accu | F207: 118.50 | H207: 143.5 | I207: 145.00 | J207: Profit of Rs.25/- | K207: =H207-F207 -> 25.00 | L207: =K207/F207 -> 21.10% | M207: Successful | N207: 2017-12-28
A208: 108 | B208: 2017-12-21 | D208: KAJARIACER | E208: Accu | F208: 715 | H208: 500.00 | I208: 872.00 | J208: Loss of Rs.215/- | K208: =H208-F208 -> -215.00 | L208: =K208/F208 -> -30.07% | M208: Unsuccessful | N208: 2019-07-24
A209: 109 | B209: 2017-12-29 | D209: GNA | E209: Accu | F209: 435.00 | H209: 542.5 | I209: 539.00 | J209: Target Achieved | K209: 107.50 | L209: 24.71% | M209: Successful | N209: 2018-04-16
A210: 110 | B210: 2017-12-29 | D210: ZENSARTECH | E210: Accu | F210: 885.00 | H210: 1090 | I210: 1084.00 | J210: Target Achieved | K210: 205.00 | L210: 23.16% | M210: Successful | N210: 2018-04-23
A211: 111 | B211: 2018-04-02 | D211: EVERESTIND | E211: Accu | F211: 478.50 | H211: 442 | I211: 613.00 | J211: Loss of Rs.36.50 /- | K211: =H211-F211 -> -36.50 | L211: =K211/F211 -> -7.63% | M211: Unsuccessful | N211: 2019-10-24
A212: 112 | B212: 2018-04-04 | D212: GPPL$ | E212: Accu | F212: =141.5-7.3 -> 134.2 | H212: 77.00 | I212: 180.00 | J212: Loss of Rs.57.2/- | K212: =H212-F212 -> -57.20 | L212: =K212/F212 -> -42.62% | M212: Unsuccessful | N212: 2019-02-26
A213: 113 | B213: 2018-04-19 | D213: MANPASAND | E213: Accu | F213: 430 | H213: 220.00 | I213: 537.00 | J213: Loss of Rs.210/- | K213: =H213-F213 -> -210.00 | L213: =K213/F213 -> -48.84% | M213: Unsuccessful | N213: 2018-06-01
A214: 114 | B214: 2018-04-30 | D214: HEIDELBERG | E214: Accu | F214: 153.50 | H214: 196.00 | I214: 196.00 | J214: Profit of Rs.42.50/- | K214: =H214-F214 -> 42.50 | L214: =K214/F214 -> 28% | M214: Successful | N214: 2019-05-20
A215: 115 | B215: 2018-07-25 | D215: ZEEMEDIA | E215: Accu | F215: 27.5 | H215: 13.10 | I215: 60.00 | J215: Loss of Rs.14.40/- | K215: -14.40 | L215: -52.36% | M215: Unsuccessful | N215: 2018-02-07
A216: 116 | B216: 2018-08-06 | D216: GABRIEL | E216: Accu | F216: 148.5 | H216: 102 | I216: 182.00 | J216: Loss of Rs.46.50/- | K216: =H216-F216 -> -46.50 | L216: =K216/F216 -> -31.31% | M216: Unsuccessful | N216: 2019-07-15
A217: 117 | B217: 2018-08-23 | D217: INDIANHUME | E217: Accu | F217: 285 | H217: 355 | I217: 364.00 | J217: Profit of Rs.70/- | K217: 70.00 | L217: 24.56% | M217: Successful | N217: 2018-12-21
A218: 118 | B218: 2018-08-29 | D218: GRINDWELL | E218: Accu | F218: 525 | H218: 585 | I218: 635.00 | J218: Profit of Rs.60- | K218: =H218-F218 -> 60.00 | L218: =K218/F218 -> 11.43% | M218: Successful | N218: 2019-07-16
A219: 119 | B219: 2018-10-22 | D219: FINPIPE | E219: Accu | F219: 475 | H219: 574 | I219: 570.00 | J219: Target Achieved | K219: 99.00 | L219: 20.84% | M219: Successful | N219: 2018-10-30
A220: 120 | B220: 2018-10-24 | D220: GULFOILLUB | E220: Accu | F220: 707.5 | H220: 872 | I220: 872.00 | J220: Target Achieved | K220: 164.50 | L220: 23.25% | M220: Successful | N220: 2019-01-17
A221: 121 | B221: 2018-10-25 | D221: DBCORP | E221: Accu | F221: 162 | H221: 204 | I221: 209.00 | J221: Profit of Rs.42/- | K221: 42.00 | L221: 25.93% | M221: Successful | N221: 2019-03-15
A222: 122 | B222: 2018-10-26 | D222: RITES | E222: Accu | F222: 240 | H222: 297 | I222: 297.00 | J222: Target Achieved | K222: 57.00 | L222: 23.75% | M222: Successful | N222: 2018-11-13
A223: 123 | B223: 2018-12-05 | D223: BRIGADE | E223: Accu | F223: 202.5 | H223: 255 | I223: 252.00 | J223: Target Achieved | K223: 52.50 | L223: 25.93% | M223: Successful | N223: 2019-03-18 | R223: V
A224: 124 | B224: 2018-12-31 | D224: JKCEMENT | E224: Accu | F224: 710 | H224: 866 | I224: 866.00 | J224: Target Achieved | K224: 156.00 | L224: 21.97% | M224: Successful | N224: 2019-03-29 | R224: V
A225: 125 | B225: 2019-02-26 | D225: MARICO | E225: Accu | F225: 337.25 | H225: 398.5 | I225: 411.00 | J225: Profit of Rs.61.25/- | K225: 61.25 | L225: 18.16% | M225: Successful | N225: 2019-10-22 | R225: V
A226: 126 | B226: 2019-04-04 | D226: ITDCEM | E226: Accu | F226: 130 | H226: 65 | I226: 158.00 | J226: Loss of Rs.65 /- | K226: -65.00 | L226: -50.00% | M226: Unsuccessful | N226: 2019-09-18 | R226: K
A227: 127 | B227: 2017-10-09 | D227: RECLTD | E227: Accu | F227: 141.5 | H227: 183.50 | I227: 210.00 | J227: Part Profit of Rs.42/- | K227: 42.00 | L227: 30% | M227: Successful | N227: 2017-11-03 | R227: K
A228: 128 | B228: 2017-12-05 | D228: ALLCARGO | E228: Accu | F228: 172.00 | H228: 155.25 | I228: 230.00 | J228: Loss of Rs.16.75/- | K228: =H228-F228 -> -16.75 | L228: =K228/F228 -> -9.74% | M228: Unsuccessful | N228: 2019-11-18 | R228: K
A229: 129 | B229: 2018-10-25 | D229: GODREJCP | E229: Accu | F229: 698.50 | H229: 850.00 | I229: 890.00 | J229: Part Profit of Rs.151.50/- | K229: 151.50 | L229: 22% | M229: Successful | N229: 2018-12-19 | R229: V
A230: 130 | B230: 2017-05-22 | D230: GREAVESCOT | E230: Accu | F230: 127.6 | H230: 138.00 | I230: 190.00 | J230: Profit of Rs.10.40 | K230: 10.40 | L230: 8% | M230: Successful | N230: 2019-11-05 | R230: K
A231: 131 | B231: 2018-02-27 | D231: MOLDTKPAC | E231: Accu | F231: 317.00 | I231: 398.00 | J231: Open | M231: Open | R231: K
A232: 132 | B232: 2018-03-05 | D232: LICHSGFIN | E232: Accu | F232: =510-14.4 -> 495.60 | H232: 350 | I232: 672.00 | J232: Loss of Rs.145.60/- | K232: =H232-F232 -> -145.60 | L232: =K232/F232 -> -29.38% | M232: Unsuccessful | N232: 2020-02-26 | R232: V
A233: 133 | B233: 2018-05-17 | D233: PHILIPCARB | E233: Accu | F233: 230.30 | H233: 102.5 | I233: 348.00 | J233: Loss of Rs.127.80/- | K233: =H233-F233 -> -127.80 | L233: =K233/F233 -> -55.49% | M233: Unsuccessful | N233: 2020-03-06 | R233: V
A234: 134 | B234: 2018-06-07 | D234: KEC | E234: Accu | F234: =342.5-5.1 -> 337.4 | H234: 412.50 | I234: 439.00 | J234: Profit of Rs.75.10 | K234: 75.10 | L234: 22% | M234: Successful | N234: 2021-02-03 | R234: K
A235: 135 | B235: 2018-07-04 | D235: ASHOKLEY | E235: Accu | F235: =127.5-5.53 -> 121.97 | I235: 170.00 | J235: Open | M235: Open | R235: V
A236: 136 | B236: 2018-07-13 | D236: FCONSUMER | E236: Accu | F236: 46.50 | H236: 17 | I236: 59.00 | J236: Loss of Rs.29.50/- | K236: =H236-F236 -> -29.50 | L236: =K236/F236 -> -63.44% | M236: Unsuccessful | N236: 2020-02-26 | R236: V
A237: 137 | B237: 2018-10-23 | D237: JKPAPER | E237: Accu | F237: 156.50 | I237: 191.00 | J237: Open | M237: Open | R237: V
A238: 138 | B238: 2018-12-05 | D238: CCL | E238: Accu | F238: 259.50 | I238: 321.00 | J238: Open | M238: Open | R238: V
A239: 139 | B239: 2018-12-05 | D239: VARROC | E239: Accu | F239: 715 | H239: 445 | I239: 840.00 | J239: Loss of Rs.270/- | K239: =H239-F239 -> -270.00 | L239: =K239/F239 -> -37.76% | M239: Unsuccessful | N239: 2019-12-01 | R239: V
A240: 140 | B240: 2019-01-04 | D240: MGL | E240: Accu | F240: 875 | H240: 1165 | I240: 1185.00 | J240: Profit of Rs.290/- | K240: 290.00 | L240: 33.14% | M240: Successful | N240: 2020-01-17 | R240: V
A241: 141 | B241: 2019-04-04 | D241: COCHINSHIP | E241: Accu | F241: =387-14.63 -> 372.37 | H241: 490 | I241: 490.00 | J241: Target Achieved | K241: 117.63 | L241: 31.59% | M241: Successful | N241: 2020-01-20 | R241: V
A242: 142 | B242: 2019-04-23 | D242: MAHINDCIE | E242: Buy | F242: 220 | H242: 127.5 | I242: 284.00 | J242: Loss of Rs.92.50/- | K242: -92.50 | L242: -42.05% | M242: Unsuccessful | N242: 2020-03-06 | R242: V
A243: 143 | B243: 2019-06-06 | D243: RADICO | E243: Buy | F243: 332.8 | H243: 405 | I243: 419.00 | J243: Profit of Rs.72.20/- | K243: =H243-F243 -> 72.20 | L243: =K243/F243 -> 21.69% | M243: Successful | N243: 2020-01-30 | R243: K
A244: 144 | B244: 2019-06-25 | D244: M&MFIN | E244: Accu | F244: 386 | H244: 395.00 | I244: 452.00 | J244: Profit of Rs.9/- | K244: =H244-F244 -> 9.00 | L244: =K244/F244 -> 2% | M244: Neutral | N244: 2020-02-07 | R244: K
A245: 145 | B245: 2019-08-30 | D245: INDHOTEL | E245: Accu | F245: 135-140 | I245: 190.00 | J245: Open | M245: Open | R245: V
... 17 more rows
